Workbook

Sheet in
A1: Transaction ID | B1: Date | C1: ARN | D1: Type | E1: Currency | F1: Amount | G1: Commission Amount | H1: Settled Amount | I1: Region | L1: Guest Country | M1: Payment Type | N1: PMC | O1: Waiver Risk | P1: VAT % | Q1: Client Paid | R1: SH Commision
A2: 153575387 | B2: 2023-08-01 | C2: '82717083192327888459289 | D2: DISPUTE RESPONSE | E2: GBP | F2: 500 | G2: 0 | H2: 500 | L2: United Kingdom | M2: Deposit
A3: 141316309 | B3: 2023-04-30 | C3: '82717083120317218724780 | D3: SALE | E3: GBP | F3: 2 | G3: -0.02 | H3: 1.99 | I3: Domestic | L3: =_xlfn.XLOOKUP(A3,[1]Sheet1!AL:AL,[1]Sheet1!AT:AT,0) -> United Kingdom | M3: =_xlfn.XLOOKUP(A3,[1]Sheet1!AL:AL,[1]Sheet1!AH:AH,0) -> Fee | N3: =_xlfn.XLOOKUP(A3,[1]Sheet1!AL:AL,[1]Sheet1!AO:AO,0) -> Snapos Real-Estate Bookings | P3: 20
A4: 141294765 | B4: 2023-04-30 | C4: '74568963120317218725076 | D4: SALE | E4: GBP | F4: 2 | G4: -0.02 | H4: 1.99 | I4: Domestic | L4: =_xlfn.XLOOKUP(A4,[1]Sheet1!AL:AL,[1]Sheet1!AT:AT,0) -> United Kingdom | M4: =_xlfn.XLOOKUP(A4,[1]Sheet1!AL:AL,[1]Sheet1!AH:AH,0) -> Fee | N4: =_xlfn.XLOOKUP(A4,[1]Sheet1!AL:AL,[1]Sheet1!AO:AO,0) -> Snapos Real-Estate Bookings | P4: 20
A5: 141237877 | B5: 2023-04-30 | C5: '82717083120317218724459 | D5: SALE | E5: GBP | F5: 5 | G5: -0.04 | H5: 4.96 | I5: Domestic | L5: =_xlfn.XLOOKUP(A5,[1]Sheet1!AL:AL,[1]Sheet1!AT:AT,0) -> United Kingdom | M5: =_xlfn.XLOOKUP(A5,[1]Sheet1!AL:AL,[1]Sheet1!AH:AH,0) -> Fee | N5: =_xlfn.XLOOKUP(A5,[1]Sheet1!AL:AL,[1]Sheet1!AO:AO,0) -> Priority Villas Bookings | P5: 20
A6: 141293075 | B6: 2023-04-30 | C6: '74568963120317218723493 | D6: SALE | E6: GBP | F6: 5 | G6: -0.04 | H6: 4.96 | I6: Domestic | L6: =_xlfn.XLOOKUP(A6,[1]Sheet1!AL:AL,[1]Sheet1!AT:AT,0) -> United Kingdom | M6: =_xlfn.XLOOKUP(A6,[1]Sheet1!AL:AL,[1]Sheet1!AH:AH,0) -> Fee | N6: =_xlfn.XLOOKUP(A6,[1]Sheet1!AL:AL,[1]Sheet1!AO:AO,0) -> Tempstay Bookings | P6: 20
A7: 141298725 | B7: 2023-04-30 | C7: '74568963120317218725084 | D7: SALE | E7: GBP | F7: 5 | G7: -0.04 | H7: 4.96 | I7: Domestic | L7: =_xlfn.XLOOKUP(A7,[1]Sheet1!AL:AL,[1]Sheet1!AT:AT,0) -> United Kingdom | M7: =_xlfn.XLOOKUP(A7,[1]Sheet1!AL:AL,[1]Sheet1!AH:AH,0) -> Fee | N7: =_xlfn.XLOOKUP(A7,[1]Sheet1!AL:AL,[1]Sheet1!AO:AO,0) -> Tempstay Bookings | P7: 20
A8: 141291637 | B8: 2023-04-30 | C8: '74568963120317218724962 | D8: SALE | E8: GBP | F8: 5 | G8: -0.12 | H8: 4.88 | I8: Inter | L8: =_xlfn.XLOOKUP(A8,[1]Sheet1!AL:AL,[1]Sheet1!AT:AT,0) -> Japan | M8: =_xlfn.XLOOKUP(A8,[1]Sheet1!AL:AL,[1]Sheet1!AH:AH,0) -> Fee | N8: =_xlfn.XLOOKUP(A8,[1]Sheet1!AL:AL,[1]Sheet1!AO:AO,0) -> Priority Villas Bookings | P8: 0
A9: 141298015 | B9: 2023-04-30 | C9: '82717083120317218724152 | D9: SALE | E9: GBP | F9: 7 | G9: -0.05 | H9: 6.95 | I9: Domestic | L9: =_xlfn.XLOOKUP(A9,[1]Sheet1!AL:AL,[1]Sheet1!AT:AT,0) -> United Kingdom | M9: =_xlfn.XLOOKUP(A9,[1]Sheet1!AL:AL,[1]Sheet1!AH:AH,0) -> Fee | N9: =_xlfn.XLOOKUP(A9,[1]Sheet1!AL:AL,[1]Sheet1!AO:AO,0) -> Sunshine Homes Booking | P9: 20
A10: 141325321 | B10: 2023-04-30 | C10: '74568963120317218723873 | D10: SALE | E10: GBP | F10: 10 | G10: -0.08 | H10: 9.93 | I10: Domestic | L10: =_xlfn.XLOOKUP(A10,[1]Sheet1!AL:AL,[1]Sheet1!AT:AT,0) -> United Kingdom | M10: =_xlfn.XLOOKUP(A10,[1]Sheet1!AL:AL,[1]Sheet1!AH:AH,0) -> Fee | N10: =_xlfn.XLOOKUP(A10,[1]Sheet1!AL:AL,[1]Sheet1!AO:AO,0) -> Host & Stay North Yorkshire | P10: 20
A11: 156920289 | B11: 2023-08-01 | C11: '74568963213330090563018 | D11: REFUND | E11: GBP | F11: -500 | G11: -1 | H11: -501 | I11: Inter | M11: Deposit
A12: 156920315 | B12: 2023-08-01 | C12: '82717083213330090563117 | D12: REFUND | E12: GBP | F12: -500 | G12: -1 | H12: -501 | I12: Domestic | M12: Deposit
A13: 141316301 | B13: 2023-04-30 | C13: '82717083120317218724327 | D13: SALE | E13: GBP | F13: 10 | G13: -0.08 | H13: 9.93 | I13: Domestic | L13: =_xlfn.XLOOKUP(A13,[1]Sheet1!AL:AL,[1]Sheet1!AT:AT,0) -> United Kingdom | M13: =_xlfn.XLOOKUP(A13,[1]Sheet1!AL:AL,[1]Sheet1!AH:AH,0) -> Fee | N13: =_xlfn.XLOOKUP(A13,[1]Sheet1!AL:AL,[1]Sheet1!AO:AO,0) -> Host & Stay North Yorkshire | P13: 20
A14: 141297265 | B14: 2023-04-30 | C14: '82717083120317218724616 | D14: SALE | E14: GBP | F14: 10 | G14: -0.08 | H14: 9.93 | I14: Domestic | L14: =_xlfn.XLOOKUP(A14,[1]Sheet1!AL:AL,[1]Sheet1!AT:AT,0) -> United Kingdom | M14: =_xlfn.XLOOKUP(A14,[1]Sheet1!AL:AL,[1]Sheet1!AH:AH,0) -> Fee | N14: =_xlfn.XLOOKUP(A14,[1]Sheet1!AL:AL,[1]Sheet1!AO:AO,0) -> Host & Stay North Yorkshire | P14: 20
A15: 141325191 | B15: 2023-04-30 | C15: '74568963120317218725175 | D15: SALE | E15: GBP | F15: 10 | G15: -0.08 | H15: 9.93 | I15: Domestic | L15: =_xlfn.XLOOKUP(A15,[1]Sheet1!AL:AL,[1]Sheet1!AT:AT,0) -> United Kingdom | M15: =_xlfn.XLOOKUP(A15,[1]Sheet1!AL:AL,[1]Sheet1!AH:AH,0) -> Fee | N15: =_xlfn.XLOOKUP(A15,[1]Sheet1!AL:AL,[1]Sheet1!AO:AO,0) -> Host & Stay North Yorkshire | P15: 20
A16: 141329629 | B16: 2023-04-30 | C16: '82717083120317218724871 | D16: SALE | E16: GBP | F16: 10 | G16: -0.08 | H16: 9.93 | I16: Domestic | L16: =_xlfn.XLOOKUP(A16,[1]Sheet1!AL:AL,[1]Sheet1!AT:AT,0) -> United Kingdom | M16: =_xlfn.XLOOKUP(A16,[1]Sheet1!AL:AL,[1]Sheet1!AH:AH,0) -> Fee | N16: =_xlfn.XLOOKUP(A16,[1]Sheet1!AL:AL,[1]Sheet1!AO:AO,0) -> Host & Stay North Yorkshire | P16: 20
A17: 141317875 | B17: 2023-04-30 | C17: '82717083120317218724343 | D17: SALE | E17: GBP | F17: 10 | G17: -0.08 | H17: 9.93 | I17: Domestic | L17: =_xlfn.XLOOKUP(A17,[1]Sheet1!AL:AL,[1]Sheet1!AT:AT,0) -> United Kingdom | M17: =_xlfn.XLOOKUP(A17,[1]Sheet1!AL:AL,[1]Sheet1!AH:AH,0) -> Fee | N17: =_xlfn.XLOOKUP(A17,[1]Sheet1!AL:AL,[1]Sheet1!AO:AO,0) -> Home to Host Ltd | P17: 20
A18: 141317999 | B18: 2023-04-30 | C18: '74568963120317218723782 | D18: SALE | E18: GBP | F18: 10 | G18: -0.08 | H18: 9.93 | I18: Domestic | L18: =_xlfn.XLOOKUP(A18,[1]Sheet1!AL:AL,[1]Sheet1!AT:AT,0) -> United Kingdom | M18: =_xlfn.XLOOKUP(A18,[1]Sheet1!AL:AL,[1]Sheet1!AH:AH,0) -> Fee | N18: =_xlfn.XLOOKUP(A18,[1]Sheet1!AL:AL,[1]Sheet1!AO:AO,0) -> Your AirHost Limited | P18: 20
A19: 141320319 | B19: 2023-04-30 | C19: '74568963120317218723808 | D19: SALE | E19: GBP | F19: 10 | G19: -0.08 | H19: 9.93 | I19: Domestic | L19: =_xlfn.XLOOKUP(A19,[1]Sheet1!AL:AL,[1]Sheet1!AT:AT,0) -> United Kingdom | M19: =_xlfn.XLOOKUP(A19,[1]Sheet1!AL:AL,[1]Sheet1!AH:AH,0) -> Fee | N19: =_xlfn.XLOOKUP(A19,[1]Sheet1!AL:AL,[1]Sheet1!AO:AO,0) -> Host & Stay North Yorkshire | P19: 20
A20: 141288733 | B20: 2023-04-30 | C20: '74568963120317218723451 | D20: SALE | E20: GBP | F20: 10 | G20: -0.08 | H20: 9.93 | I20: Domestic | L20: =_xlfn.XLOOKUP(A20,[1]Sheet1!AL:AL,[1]Sheet1!AT:AT,0) -> United Kingdom | M20: =_xlfn.XLOOKUP(A20,[1]Sheet1!AL:AL,[1]Sheet1!AH:AH,0) -> Fee | N20: =_xlfn.XLOOKUP(A20,[1]Sheet1!AL:AL,[1]Sheet1!AO:AO,0) -> Host & Stay North Yorkshire | P20: 20
A21: 141319671 | B21: 2023-04-30 | C21: '82717083120317218724392 | D21: SALE | E21: GBP | F21: 10 | G21: -0.08 | H21: 9.93 | I21: Domestic | L21: =_xlfn.XLOOKUP(A21,[1]Sheet1!AL:AL,[1]Sheet1!AT:AT,0) -> United Kingdom | M21: =_xlfn.XLOOKUP(A21,[1]Sheet1!AL:AL,[1]Sheet1!AH:AH,0) -> Fee | N21: =_xlfn.XLOOKUP(A21,[1]Sheet1!AL:AL,[1]Sheet1!AO:AO,0) -> Host & Stay North Yorkshire | P21: 20
A22: 141322839 | B22: 2023-04-30 | C22: '74568963120317218723840 | D22: SALE | E22: GBP | F22: 10 | G22: -0.08 | H22: 9.93 | I22: Domestic | L22: =_xlfn.XLOOKUP(A22,[1]Sheet1!AL:AL,[1]Sheet1!AT:AT,0) -> United Kingdom | M22: =_xlfn.XLOOKUP(A22,[1]Sheet1!AL:AL,[1]Sheet1!AH:AH,0) -> Fee | N22: =_xlfn.XLOOKUP(A22,[1]Sheet1!AL:AL,[1]Sheet1!AO:AO,0) -> Host & Stay North Yorkshire | P22: 20
A23: 141248127 | B23: 2023-04-30 | C23: '74568963120317218724921 | D23: SALE | E23: GBP | F23: 10 | G23: -0.08 | H23: 9.93 | I23: Domestic | L23: =_xlfn.XLOOKUP(A23,[1]Sheet1!AL:AL,[1]Sheet1!AT:AT,0) -> United Kingdom | M23: =_xlfn.XLOOKUP(A23,[1]Sheet1!AL:AL,[1]Sheet1!AH:AH,0) -> Fee | N23: =_xlfn.XLOOKUP(A23,[1]Sheet1!AL:AL,[1]Sheet1!AO:AO,0) -> Host & Stay North Yorkshire | P23: 20
A24: 141318189 | B24: 2023-04-30 | C24: '82717083120317218724806 | D24: SALE | E24: GBP | F24: 10 | G24: -0.08 | H24: 9.93 | I24: Domestic | L24: =_xlfn.XLOOKUP(A24,[1]Sheet1!AL:AL,[1]Sheet1!AT:AT,0) -> United Kingdom | M24: =_xlfn.XLOOKUP(A24,[1]Sheet1!AL:AL,[1]Sheet1!AH:AH,0) -> Fee | N24: =_xlfn.XLOOKUP(A24,[1]Sheet1!AL:AL,[1]Sheet1!AO:AO,0) -> Host & Stay North Yorkshire | P24: 20
A25: 141313527 | B25: 2023-04-30 | C25: '82717083120317218724764 | D25: SALE | E25: GBP | F25: 10 | G25: -0.08 | H25: 9.93 | I25: Domestic | L25: =_xlfn.XLOOKUP(A25,[1]Sheet1!AL:AL,[1]Sheet1!AT:AT,0) -> United Kingdom | M25: =_xlfn.XLOOKUP(A25,[1]Sheet1!AL:AL,[1]Sheet1!AH:AH,0) -> Fee | N25: =_xlfn.XLOOKUP(A25,[1]Sheet1!AL:AL,[1]Sheet1!AO:AO,0) -> Host & Stay North Yorkshire | P25: 20
A26: 141296855 | B26: 2023-04-30 | C26: '82717083120317218724590 | D26: SALE | E26: GBP | F26: 10 | G26: -0.08 | H26: 9.93 | I26: Domestic | L26: =_xlfn.XLOOKUP(A26,[1]Sheet1!AL:AL,[1]Sheet1!AT:AT,0) -> United Kingdom | M26: =_xlfn.XLOOKUP(A26,[1]Sheet1!AL:AL,[1]Sheet1!AH:AH,0) -> Fee | N26: =_xlfn.XLOOKUP(A26,[1]Sheet1!AL:AL,[1]Sheet1!AO:AO,0) -> Host & Stay North Yorkshire | P26: 20
A27: 141319021 | B27: 2023-04-30 | C27: '82717083120317218724376 | D27: SALE | E27: GBP | F27: 10 | G27: -0.08 | H27: 9.93 | I27: Domestic | L27: =_xlfn.XLOOKUP(A27,[1]Sheet1!AL:AL,[1]Sheet1!AT:AT,0) -> United Kingdom | M27: =_xlfn.XLOOKUP(A27,[1]Sheet1!AL:AL,[1]Sheet1!AH:AH,0) -> Fee | N27: =_xlfn.XLOOKUP(A27,[1]Sheet1!AL:AL,[1]Sheet1!AO:AO,0) -> Host & Stay North Yorkshire | P27: 20
A28: 141305167 | B28: 2023-04-30 | C28: '74568963120317218723667 | D28: SALE | E28: GBP | F28: 10 | G28: -0.08 | H28: 9.93 | I28: Domestic | L28: =_xlfn.XLOOKUP(A28,[1]Sheet1!AL:AL,[1]Sheet1!AT:AT,0) -> United Kingdom | M28: =_xlfn.XLOOKUP(A28,[1]Sheet1!AL:AL,[1]Sheet1!AH:AH,0) -> Fee | N28: =_xlfn.XLOOKUP(A28,[1]Sheet1!AL:AL,[1]Sheet1!AO:AO,0) -> Home to Host Ltd | P28: 20
A29: 141297337 | B29: 2023-04-30 | C29: '82717083120317218724632 | D29: SALE | E29: GBP | F29: 10 | G29: -0.08 | H29: 9.93 | I29: Domestic | L29: =_xlfn.XLOOKUP(A29,[1]Sheet1!AL:AL,[1]Sheet1!AT:AT,0) -> United Kingdom | M29: =_xlfn.XLOOKUP(A29,[1]Sheet1!AL:AL,[1]Sheet1!AH:AH,0) -> Fee | N29: =_xlfn.XLOOKUP(A29,[1]Sheet1!AL:AL,[1]Sheet1!AO:AO,0) -> Home to Host Ltd | P29: 20
A30: 141244115 | B30: 2023-04-30 | C30: '74568963120317218724913 | D30: SALE | E30: GBP | F30: 10 | G30: -0.24 | H30: 9.76 | I30: Inter | L30: =_xlfn.XLOOKUP(A30,[1]Sheet1!AL:AL,[1]Sheet1!AT:AT,0) -> Hong Kong | M30: =_xlfn.XLOOKUP(A30,[1]Sheet1!AL:AL,[1]Sheet1!AH:AH,0) -> Fee | N30: =_xlfn.XLOOKUP(A30,[1]Sheet1!AL:AL,[1]Sheet1!AO:AO,0) -> Home to Host Ltd | P30: 0
A31: 157279883 | B31: 2023-08-01 | C31: '82717083213330088942448 | D31: SALE | E31: GBP | F31: 35 | G31: -0.26 | H31: 34.74 | I31: Domestic | L31: =_xlfn.XLOOKUP(A31,[1]Sheet1!F:F,[1]Sheet1!AB:AB,0) -> United Kingdom | M31: =_xlfn.XLOOKUP(A31,[1]Sheet1!F:F,[1]Sheet1!B:B,0) -> Waiver | N31: =_xlfn.XLOOKUP(A31,[1]Sheet1!F:F,[1]Sheet1!W:W,0) -> 247lets LTD | O31: CLIENT | P31: 20 | Q31: =F31-R31 -> 30 | R31: 5
A32: 156895599 | B32: 2023-07-31 | C32: '74568963212330076652141 | D32: SALE | E32: GBP | F32: 35 | G32: -0.26 | H32: 34.74 | I32: Domestic | L32: =_xlfn.XLOOKUP(A32,[1]Sheet1!AL:AL,[1]Sheet1!AT:AT,0) -> United Kingdom | M32: =_xlfn.XLOOKUP(A32,[1]Sheet1!AL:AL,[1]Sheet1!AH:AH,0) -> Waiver | N32: =_xlfn.XLOOKUP(A32,[1]Sheet1!AL:AL,[1]Sheet1!AO:AO,0) -> Airhosts4u Bookings | O32: SH | P32: 20
A33: 161463511 | B33: 2023-08-26 | C33: '74568963238333327446750 | D33: SALE | E33: GBP | F33: 25 | G33: -0.6 | H33: 24.4 | I33: Inter | L33: =_xlfn.XLOOKUP(A33,[1]Sheet1!F:F,[1]Sheet1!AB:AB,0) -> Afghanistan | M33: =_xlfn.XLOOKUP(A33,[1]Sheet1!F:F,[1]Sheet1!B:B,0) -> Waiver | N33: =_xlfn.XLOOKUP(A33,[1]Sheet1!F:F,[1]Sheet1!W:W,0) -> AZ Getaway Rentals Bookings | O33: CLIENT | P33: 0 | Q33: =F33-R33 -> 21.06 | R33: 3.94
A34: 161839993 | B34: 2023-08-29 | C34: '74568963241334351224845 | D34: SALE | E34: GBP | F34: 25 | G34: -0.6 | H34: 24.4 | I34: Inter | L34: =_xlfn.XLOOKUP(A34,[1]Sheet1!F:F,[1]Sheet1!AB:AB,0) -> United Kingdom | M34: =_xlfn.XLOOKUP(A34,[1]Sheet1!F:F,[1]Sheet1!B:B,0) -> Waiver | N34: =_xlfn.XLOOKUP(A34,[1]Sheet1!F:F,[1]Sheet1!W:W,0) -> AZ Getaway Rentals Bookings | O34: CLIENT | P34: 0 | Q34: =F34-R34 -> 21.06 | R34: 3.94
A35: 146397271 | B35: 2023-05-31 | C35: '82717083151321504263745 | D35: SALE | E35: GBP | F35: 35 | G35: -0.26 | H35: 34.74 | I35: Domestic | L35: =_xlfn.XLOOKUP(A35,[1]Sheet1!AL:AL,[1]Sheet1!AT:AT,0) -> United Kingdom | M35: =_xlfn.XLOOKUP(A35,[1]Sheet1!AL:AL,[1]Sheet1!AH:AH,0) -> Waiver | N35: =_xlfn.XLOOKUP(A35,[1]Sheet1!AL:AL,[1]Sheet1!AO:AO,0) -> Beachside Holiday Rentals Bookings | O35: CLIENT | P35: 20 | Q35: =F35-R35 -> 31.5 | R35: =0.1*F35 -> 3.5
A36: 146395971 | B36: 2023-05-31 | C36: '82717083151321504263208 | D36: SALE | E36: GBP | F36: 35 | G36: -0.26 | H36: 34.74 | I36: Domestic | L36: =_xlfn.XLOOKUP(A36,[1]Sheet1!AL:AL,[1]Sheet1!AT:AT,0) -> United Kingdom | M36: =_xlfn.XLOOKUP(A36,[1]Sheet1!AL:AL,[1]Sheet1!AH:AH,0) -> Waiver | N36: =_xlfn.XLOOKUP(A36,[1]Sheet1!AL:AL,[1]Sheet1!AO:AO,0) -> Beachside Holiday Rentals Bookings | O36: CLIENT | P36: 20 | Q36: 31.5 | R36: 3.5
A37: 156852517 | B37: 2023-07-31 | C37: '82717083212330076650806 | D37: SALE | E37: GBP | F37: 35 | G37: -0.26 | H37: 34.74 | I37: Domestic | L37: =_xlfn.XLOOKUP(A37,[1]Sheet1!AL:AL,[1]Sheet1!AT:AT,0) -> United Kingdom | M37: =_xlfn.XLOOKUP(A37,[1]Sheet1!AL:AL,[1]Sheet1!AH:AH,0) -> Waiver | N37: =_xlfn.XLOOKUP(A37,[1]Sheet1!AL:AL,[1]Sheet1!AO:AO,0) -> Beachside Holiday Rentals Bookings | O37: CLIENT | P37: 20 | Q37: 31.5 | R37: 3.5
A38: 158312021 | B38: 2023-08-06 | C38: '82717083218331138040162 | D38: SALE | E38: GBP | F38: 35 | G38: -0.26 | H38: 34.74 | I38: Domestic | L38: =_xlfn.XLOOKUP(A38,[1]Sheet1!F:F,[1]Sheet1!AB:AB,0) -> United Kingdom | M38: =_xlfn.XLOOKUP(A38,[1]Sheet1!F:F,[1]Sheet1!B:B,0) -> Waiver | N38: =_xlfn.XLOOKUP(A38,[1]Sheet1!F:F,[1]Sheet1!W:W,0) -> Beachside Holiday Rentals Bookings | O38: CLIENT | P38: 20 | Q38: =F38-R38 -> 31.5 | R38: =0.1*F38 -> 3.5
A39: 158830537 | B39: 2023-08-09 | C39: '82717083221331163954365 | D39: SALE | E39: GBP | F39: 35 | G39: -0.26 | H39: 34.74 | I39: Domestic | L39: =_xlfn.XLOOKUP(A39,[1]Sheet1!F:F,[1]Sheet1!AB:AB,0) -> United Kingdom | M39: =_xlfn.XLOOKUP(A39,[1]Sheet1!F:F,[1]Sheet1!B:B,0) -> Waiver | N39: =_xlfn.XLOOKUP(A39,[1]Sheet1!F:F,[1]Sheet1!W:W,0) -> Beachside Holiday Rentals Bookings | O39: CLIENT | P39: 20 | Q39: 31.5 | R39: 3.5
A40: 159339937 | B40: 2023-08-13 | C40: '74568963225332204934610 | D40: SALE | E40: GBP | F40: 35 | G40: -0.26 | H40: 34.74 | I40: Domestic | L40: =_xlfn.XLOOKUP(A40,[1]Sheet1!F:F,[1]Sheet1!AB:AB,0) -> United Kingdom | M40: =_xlfn.XLOOKUP(A40,[1]Sheet1!F:F,[1]Sheet1!B:B,0) -> Waiver | N40: =_xlfn.XLOOKUP(A40,[1]Sheet1!F:F,[1]Sheet1!W:W,0) -> Beachside Holiday Rentals Bookings | O40: CLIENT | P40: 20 | Q40: 31.5 | R40: 3.5
A41: 159711465 | B41: 2023-08-15 | C41: '82717083227332221438080 | D41: SALE | E41: GBP | F41: 35 | G41: -0.26 | H41: 34.74 | I41: Domestic | L41: =_xlfn.XLOOKUP(A41,[1]Sheet1!F:F,[1]Sheet1!AB:AB,0) -> United Kingdom | M41: =_xlfn.XLOOKUP(A41,[1]Sheet1!F:F,[1]Sheet1!B:B,0) -> Waiver | N41: =_xlfn.XLOOKUP(A41,[1]Sheet1!F:F,[1]Sheet1!W:W,0) -> Beachside Holiday Rentals Bookings | O41: CLIENT | P41: 20 | Q41: 31.5 | R41: 3.5
A42: 159915979 | B42: 2023-08-16 | C42: '74568963228332230348162 | D42: SALE | E42: GBP | F42: 35 | G42: -0.26 | H42: 34.74 | I42: Domestic | L42: =_xlfn.XLOOKUP(A42,[1]Sheet1!F:F,[1]Sheet1!AB:AB,0) -> United Kingdom | M42: =_xlfn.XLOOKUP(A42,[1]Sheet1!F:F,[1]Sheet1!B:B,0) -> Waiver | N42: =_xlfn.XLOOKUP(A42,[1]Sheet1!F:F,[1]Sheet1!W:W,0) -> Beachside Holiday Rentals Bookings | O42: CLIENT | P42: 20 | Q42: 31.5 | R42: 3.5
A43: 160015787 | B43: 2023-08-17 | C43: '74568963229332238697809 | D43: SALE | E43: GBP | F43: 35 | G43: -0.26 | H43: 34.74 | I43: Domestic | L43: =_xlfn.XLOOKUP(A43,[1]Sheet1!F:F,[1]Sheet1!AB:AB,0) -> United Kingdom | M43: =_xlfn.XLOOKUP(A43,[1]Sheet1!F:F,[1]Sheet1!B:B,0) -> Waiver | N43: =_xlfn.XLOOKUP(A43,[1]Sheet1!F:F,[1]Sheet1!W:W,0) -> Beachside Holiday Rentals Bookings | O43: CLIENT | P43: 20 | Q43: 31.5 | R43: 3.5
A44: 160441403 | B44: 2023-08-20 | C44: '74568963232333269597657 | D44: SALE | E44: GBP | F44: 35 | G44: -0.26 | H44: 34.74 | I44: Domestic | L44: =_xlfn.XLOOKUP(A44,[1]Sheet1!F:F,[1]Sheet1!AB:AB,0) -> United Kingdom | M44: =_xlfn.XLOOKUP(A44,[1]Sheet1!F:F,[1]Sheet1!B:B,0) -> Waiver | N44: =_xlfn.XLOOKUP(A44,[1]Sheet1!F:F,[1]Sheet1!W:W,0) -> Beachside Holiday Rentals Bookings | O44: CLIENT | P44: 20 | Q44: 31.5 | R44: 3.5
A45: 160652597 | B45: 2023-08-21 | C45: '82717083233333277336923 | D45: SALE | E45: GBP | F45: 35 | G45: -0.26 | H45: 34.74 | I45: Domestic | L45: =_xlfn.XLOOKUP(A45,[1]Sheet1!F:F,[1]Sheet1!AB:AB,0) -> United Kingdom | M45: =_xlfn.XLOOKUP(A45,[1]Sheet1!F:F,[1]Sheet1!B:B,0) -> Waiver | N45: =_xlfn.XLOOKUP(A45,[1]Sheet1!F:F,[1]Sheet1!W:W,0) -> Beachside Holiday Rentals Bookings | O45: CLIENT | P45: 20 | Q45: 31.5 | R45: 3.5
A46: 160954945 | B46: 2023-08-23 | C46: '82717083235333294545025 | D46: SALE | E46: GBP | F46: 35 | G46: -0.26 | H46: 34.74 | I46: Domestic | L46: =_xlfn.XLOOKUP(A46,[1]Sheet1!F:F,[1]Sheet1!AB:AB,0) -> United Kingdom | M46: =_xlfn.XLOOKUP(A46,[1]Sheet1!F:F,[1]Sheet1!B:B,0) -> Waiver | N46: =_xlfn.XLOOKUP(A46,[1]Sheet1!F:F,[1]Sheet1!W:W,0) -> Beachside Holiday Rentals Bookings | O46: CLIENT | P46: 20 | Q46: 31.5 | R46: 3.5
A47: 161656747 | B47: 2023-08-28 | C47: '74568963240334344489118 | D47: SALE | E47: GBP | F47: 35 | G47: -0.26 | H47: 34.74 | I47: Domestic | L47: =_xlfn.XLOOKUP(A47,[1]Sheet1!F:F,[1]Sheet1!AB:AB,0) -> United Kingdom | M47: =_xlfn.XLOOKUP(A47,[1]Sheet1!F:F,[1]Sheet1!B:B,0) -> Waiver | N47: =_xlfn.XLOOKUP(A47,[1]Sheet1!F:F,[1]Sheet1!W:W,0) -> Beachside Holiday Rentals Bookings | O47: CLIENT | P47: 20 | Q47: 31.5 | R47: 3.5
A48: 156832591 | B48: 2023-07-31 | C48: '82717083212330076650665 | D48: SALE | E48: GBP | F48: 35 | G48: -0.26 | H48: 34.74 | I48: Domestic | L48: =_xlfn.XLOOKUP(A48,[1]Sheet1!AL:AL,[1]Sheet1!AT:AT,0) -> United Kingdom | M48: =_xlfn.XLOOKUP(A48,[1]Sheet1!AL:AL,[1]Sheet1!AH:AH,0) -> Waiver | N48: =_xlfn.XLOOKUP(A48,[1]Sheet1!AL:AL,[1]Sheet1!AO:AO,0) -> Birch Living Bookster | O48: SH | P48: 20
A49: 158974145 | B49: 2023-08-11 | C49: '82717083223331187130248 | D49: SALE | E49: GBP | F49: 20 | G49: -0.48 | H49: 19.52 | I49: Inter | L49: =_xlfn.XLOOKUP(A49,[1]Sheet1!F:F,[1]Sheet1!AB:AB,0) -> Taiwan | M49: =_xlfn.XLOOKUP(A49,[1]Sheet1!F:F,[1]Sheet1!B:B,0) -> Waiver | N49: =_xlfn.XLOOKUP(A49,[1]Sheet1!F:F,[1]Sheet1!W:W,0) -> BnB Hosts Hostaway Bookings | O49: CLIENT | P49: 0 | Q49: =F49-R49 -> 15.66 | R49: 4.34
A50: 161995469 | B50: 2023-08-29 | C50: '74568963241334351223193 | D50: SALE | E50: GBP | F50: 28 | G50: -0.21 | H50: 27.79 | I50: Domestic | L50: =_xlfn.XLOOKUP(A50,[1]Sheet1!F:F,[1]Sheet1!AB:AB,0) -> United Kingdom | M50: =_xlfn.XLOOKUP(A50,[1]Sheet1!F:F,[1]Sheet1!B:B,0) -> Waiver | N50: =_xlfn.XLOOKUP(A50,[1]Sheet1!F:F,[1]Sheet1!W:W,0) -> Bnbeyond Vacations 2nd Account | O50: CLIENT | P50: 0 | Q50: =F50-R50 -> 23.63 | R50: 4.37
A51: 156883337 | B51: 2023-07-31 | C51: '74568963212330076649246 | D51: SALE | E51: GBP | F51: 35 | G51: -0.26 | H51: 34.74 | I51: Domestic | L51: =_xlfn.XLOOKUP(A51,[1]Sheet1!AL:AL,[1]Sheet1!AT:AT,0) -> United Kingdom | M51: =_xlfn.XLOOKUP(A51,[1]Sheet1!AL:AL,[1]Sheet1!AH:AH,0) -> Waiver | N51: =_xlfn.XLOOKUP(A51,[1]Sheet1!AL:AL,[1]Sheet1!AO:AO,0) -> Bnbeyond Vacations Bookings | O51: CLIENT | P51: 0 | Q51: =F51-R51 -> 30.63 | R51: 4.37
A52: 156653685 | B52: 2023-07-31 | C52: '74568963212330076648057 | D52: SALE | E52: GBP | F52: 35 | G52: -0.26 | H52: 34.74 | I52: Domestic | L52: =_xlfn.XLOOKUP(A52,[1]Sheet1!AL:AL,[1]Sheet1!AT:AT,0) -> United Kingdom | M52: =_xlfn.XLOOKUP(A52,[1]Sheet1!AL:AL,[1]Sheet1!AH:AH,0) -> Waiver | N52: =_xlfn.XLOOKUP(A52,[1]Sheet1!AL:AL,[1]Sheet1!AO:AO,0) -> Bnbeyond Vacations Bookings | O52: CLIENT | P52: 0 | Q52: 30.63 | R52: 4.37
A53: 157754575 | B53: 2023-08-03 | C53: '74568963215330108262031 | D53: SALE | E53: GBP | F53: 35 | G53: -0.26 | H53: 34.74 | I53: Domestic | L53: =_xlfn.XLOOKUP(A53,[1]Sheet1!F:F,[1]Sheet1!AB:AB,0) -> United Kingdom | M53: =_xlfn.XLOOKUP(A53,[1]Sheet1!F:F,[1]Sheet1!B:B,0) -> Waiver | N53: =_xlfn.XLOOKUP(A53,[1]Sheet1!F:F,[1]Sheet1!W:W,0) -> Bnbeyond Vacations Bookings | O53: CLIENT | P53: 0 | Q53: =F53-R53 -> 30.63 | R53: 4.37
A54: 158747651 | B54: 2023-08-09 | C54: '74568963221331163955370 | D54: SALE | E54: GBP | F54: 35 | G54: -0.84 | H54: 34.16 | I54: Inter | L54: =_xlfn.XLOOKUP(A54,[1]Sheet1!F:F,[1]Sheet1!AB:AB,0) -> Kuwait | M54: =_xlfn.XLOOKUP(A54,[1]Sheet1!F:F,[1]Sheet1!B:B,0) -> Waiver | N54: =_xlfn.XLOOKUP(A54,[1]Sheet1!F:F,[1]Sheet1!W:W,0) -> Brindy Bringhurst Angel Host | O54: CLIENT | P54: 0 | Q54: =F54-R54 -> 31.06 | R54: 3.94
A55: 156862541 | B55: 2023-07-31 | C55: '82717083212330076650889 | D55: SALE | E55: GBP | F55: 18 | G55: -0.43 | H55: 17.57 | I55: Inter | L55: =_xlfn.XLOOKUP(A55,[1]Sheet1!AL:AL,[1]Sheet1!AT:AT,0) -> New Zealand | M55: =_xlfn.XLOOKUP(A55,[1]Sheet1!AL:AL,[1]Sheet1!AH:AH,0) -> Waiver | N55: =_xlfn.XLOOKUP(A55,[1]Sheet1!AL:AL,[1]Sheet1!AO:AO,0) -> By the Beach Getaways | O55: CLIENT | P55: 0 | Q55: =F55-R55 -> 13.6 | R55: 4.4
A56: 156817921 | B56: 2023-07-31 | C56: '74568963212330076651580 | D56: SALE | E56: GBP | F56: 38 | G56: -0.91 | H56: 37.09 | I56: Inter | L56: =_xlfn.XLOOKUP(A56,[1]Sheet1!AL:AL,[1]Sheet1!AT:AT,0) -> China | M56: =_xlfn.XLOOKUP(A56,[1]Sheet1!AL:AL,[1]Sheet1!AH:AH,0) -> Waiver | N56: =_xlfn.XLOOKUP(A56,[1]Sheet1!AL:AL,[1]Sheet1!AO:AO,0) -> Cire Homes Booking | O56: SH | P56: 0
A57: 160972027 | B57: 2023-08-23 | C57: '82717083235333294545116 | D57: SALE | E57: GBP | F57: 25 | G57: -0.19 | H57: 24.81 | I57: Domestic | L57: =_xlfn.XLOOKUP(A57,[1]Sheet1!F:F,[1]Sheet1!AB:AB,0) -> United Kingdom | M57: =_xlfn.XLOOKUP(A57,[1]Sheet1!F:F,[1]Sheet1!B:B,0) -> Waiver | N57: =_xlfn.XLOOKUP(A57,[1]Sheet1!F:F,[1]Sheet1!W:W,0) -> Cross Rail Cottage Bookings | O57: CLIENT | P57: 20 | Q57: =F57-R57 -> 20 | R57: 5
A58: 157055519 | B58: 2023-08-01 | C58: '74568963213330090563026 | D58: SALE | E58: GBP | F58: 25 | G58: -0.19 | H58: 24.81 | I58: Domestic | L58: =_xlfn.XLOOKUP(A58,[1]Sheet1!F:F,[1]Sheet1!AB:AB,0) -> United Kingdom | M58: =_xlfn.XLOOKUP(A58,[1]Sheet1!F:F,[1]Sheet1!B:B,0) -> Waiver | N58: =_xlfn.XLOOKUP(A58,[1]Sheet1!F:F,[1]Sheet1!W:W,0) -> Curated Spaces IOW Ltd Booking | O58: CLIENT | P58: 20 | Q58: 20 | R58: 5
A59: 157504841 | B59: 2023-08-02 | C59: '74568963214330099534563 | D59: SALE | E59: GBP | F59: 35 | G59: -0.26 | H59: 34.74 | I59: Domestic | L59: =_xlfn.XLOOKUP(A59,[1]Sheet1!F:F,[1]Sheet1!AB:AB,0) -> United Kingdom | M59: =_xlfn.XLOOKUP(A59,[1]Sheet1!F:F,[1]Sheet1!B:B,0) -> Waiver | N59: =_xlfn.XLOOKUP(A59,[1]Sheet1!F:F,[1]Sheet1!W:W,0) -> Curated Spaces IOW Ltd Booking | O59: CLIENT | P59: 20 | Q59: 30 | R59: 5
A60: 160359931 | B60: 2023-08-19 | C60: '74568963231332260430125 | D60: SALE | E60: GBP | F60: 25 | G60: -0.19 | H60: 24.81 | I60: Domestic | L60: =_xlfn.XLOOKUP(A60,[1]Sheet1!F:F,[1]Sheet1!AB:AB,0) -> United Kingdom | M60: =_xlfn.XLOOKUP(A60,[1]Sheet1!F:F,[1]Sheet1!B:B,0) -> Waiver | N60: =_xlfn.XLOOKUP(A60,[1]Sheet1!F:F,[1]Sheet1!W:W,0) -> Curated Spaces IOW Ltd Booking | O60: CLIENT | P60: 20 | Q60: 20 | R60: 5
A61: 160375017 | B61: 2023-08-19 | C61: '74568963231332260430372 | D61: SALE | E61: GBP | F61: 25 | G61: -0.19 | H61: 24.81 | I61: Domestic | L61: =_xlfn.XLOOKUP(A61,[1]Sheet1!F:F,[1]Sheet1!AB:AB,0) -> United Kingdom | M61: =_xlfn.XLOOKUP(A61,[1]Sheet1!F:F,[1]Sheet1!B:B,0) -> Waiver | N61: =_xlfn.XLOOKUP(A61,[1]Sheet1!F:F,[1]Sheet1!W:W,0) -> Curated Spaces IOW Ltd Booking | O61: CLIENT | P61: 20 | Q61: 20 | R61: 5
A62: 160452187 | B62: 2023-08-20 | C62: '74568963232333269597780 | D62: SALE | E62: GBP | F62: 25 | G62: -0.19 | H62: 24.81 | I62: Domestic | L62: =_xlfn.XLOOKUP(A62,[1]Sheet1!F:F,[1]Sheet1!AB:AB,0) -> United Kingdom | M62: =_xlfn.XLOOKUP(A62,[1]Sheet1!F:F,[1]Sheet1!B:B,0) -> Waiver | N62: =_xlfn.XLOOKUP(A62,[1]Sheet1!F:F,[1]Sheet1!W:W,0) -> Curated Spaces IOW Ltd Booking | O62: CLIENT | P62: 20 | Q62: 20 | R62: 5
A63: 160623509 | B63: 2023-08-21 | C63: '82717083233333277336600 | D63: SALE | E63: GBP | F63: 25 | G63: -0.19 | H63: 24.81 | I63: Domestic | L63: =_xlfn.XLOOKUP(A63,[1]Sheet1!F:F,[1]Sheet1!AB:AB,0) -> United Kingdom | M63: =_xlfn.XLOOKUP(A63,[1]Sheet1!F:F,[1]Sheet1!B:B,0) -> Waiver | N63: =_xlfn.XLOOKUP(A63,[1]Sheet1!F:F,[1]Sheet1!W:W,0) -> Curated Spaces IOW Ltd Booking | O63: CLIENT | P63: 20 | Q63: 20 | R63: 5
A64: 157232379 | B64: 2023-08-01 | C64: '82717083213330088941655 | D64: REFUND | E64: GBP | F64: -250 | G64: -1 | H64: -251 | I64: Inter | M64: Deposit
A65: 157232381 | B65: 2023-08-01 | C65: '74568963213330088941036 | D65: REFUND | E65: GBP | F65: -250 | G65: -1 | H65: -251 | I65: Domestic | M65: Deposit
A66: 157232383 | B66: 2023-08-01 | C66: '82717083213330088942224 | D66: REFUND | E66: GBP | F66: -250 | G66: -1 | H66: -251 | I66: Domestic | M66: Deposit
A67: 157232387 | B67: 2023-08-01 | C67: '82717083213330088941663 | D67: REFUND | E67: GBP | F67: -250 | G67: -1 | H67: -251 | I67: Domestic | M67: Deposit
A68: 157232391 | B68: 2023-08-01 | C68: '74568963213330088942885 | D68: REFUND | E68: GBP | F68: -250 | G68: -1 | H68: -251 | I68: Domestic | M68: Deposit
A69: 157232393 | B69: 2023-08-01 | C69: '74568963213330088942893 | D69: REFUND | E69: GBP | F69: -250 | G69: -1 | H69: -251 | I69: Domestic | M69: Deposit
A70: 157232403 | B70: 2023-08-01 | C70: '82717083213330088941671 | D70: REFUND | E70: GBP | F70: -250 | G70: -1 | H70: -251 | I70: Domestic | M70: Deposit
A71: 157232407 | B71: 2023-08-01 | C71: '74568963213330088942901 | D71: REFUND | E71: GBP | F71: -250 | G71: -1 | H71: -251 | I71: Domestic | M71: Deposit
A72: 157232409 | B72: 2023-08-01 | C72: '82717083213330088941689 | D72: REFUND | E72: GBP | F72: -250 | G72: -1 | H72: -251 | I72: Domestic | M72: Deposit
A73: 157232411 | B73: 2023-08-01 | C73: '82717083213330088942232 | D73: REFUND | E73: GBP | F73: -100 | G73: -1 | H73: -101 | I73: Domestic | M73: Deposit
A74: 157232415 | B74: 2023-08-01 | C74: '74568963213330088942919 | D74: REFUND | E74: GBP | F74: -250 | G74: -1 | H74: -251 | I74: Domestic | M74: Deposit
A75: 157232417 | B75: 2023-08-01 | C75: '74568963213330088941044 | D75: REFUND | E75: GBP | F75: -250 | G75: -1 | H75: -251 | I75: Domestic | M75: Deposit
A76: 161063289 | B76: 2023-08-24 | C76: '74568963236333305358979 | D76: SALE | E76: GBP | F76: 25 | G76: -0.19 | H76: 24.81 | I76: Domestic | L76: =_xlfn.XLOOKUP(A76,[1]Sheet1!F:F,[1]Sheet1!AB:AB,0) -> United Kingdom | M76: =_xlfn.XLOOKUP(A76,[1]Sheet1!F:F,[1]Sheet1!B:B,0) -> Waiver | N76: =_xlfn.XLOOKUP(A76,[1]Sheet1!F:F,[1]Sheet1!W:W,0) -> Curated Spaces IOW Ltd Booking | O76: CLIENT | P76: 20 | Q76: =F76-R76 -> 20 | R76: 5
A77: 141303517 | B77: 2023-04-30 | C77: '82717083120317218724202 | D77: SALE | E77: GBP | F77: 35 | G77: -0.26 | H77: 34.74 | I77: Intra | L77: =_xlfn.XLOOKUP(A77,[1]Sheet1!AL:AL,[1]Sheet1!AT:AT,0) -> Israel | M77: =_xlfn.XLOOKUP(A77,[1]Sheet1!AL:AL,[1]Sheet1!AH:AH,0) -> Waiver | N77: =_xlfn.XLOOKUP(A77,[1]Sheet1!AL:AL,[1]Sheet1!AO:AO,0) -> DYZYN Living Bookings | O77: CLIENT | P77: 20 | Q77: =F77-R77 -> 30 | R77: 5
A78: 141295905 | B78: 2023-04-30 | C78: '82717083120317218724145 | D78: SALE | E78: GBP | F78: 35 | G78: -0.26 | H78: 34.74 | I78: Domestic | L78: =_xlfn.XLOOKUP(A78,[1]Sheet1!AL:AL,[1]Sheet1!AT:AT,0) -> United Kingdom | M78: =_xlfn.XLOOKUP(A78,[1]Sheet1!AL:AL,[1]Sheet1!AH:AH,0) -> Waiver | N78: =_xlfn.XLOOKUP(A78,[1]Sheet1!AL:AL,[1]Sheet1!AO:AO,0) -> DYZYN Living Bookings | O78: CLIENT | P78: 20 | Q78: 30 | R78: 5
A79: 156853505 | B79: 2023-07-31 | C79: '74568963212330076648941 | D79: SALE | E79: GBP | F79: 35 | G79: -0.26 | H79: 34.74 | I79: Domestic | L79: =_xlfn.XLOOKUP(A79,[1]Sheet1!AL:AL,[1]Sheet1!AT:AT,0) -> United Kingdom | M79: =_xlfn.XLOOKUP(A79,[1]Sheet1!AL:AL,[1]Sheet1!AH:AH,0) -> Waiver | N79: =_xlfn.XLOOKUP(A79,[1]Sheet1!AL:AL,[1]Sheet1!AO:AO,0) -> DYZYN Living Bookings | O79: CLIENT | P79: 20 | Q79: 30 | R79: 5
A80: 157317973 | B80: 2023-08-01 | C80: '82717083213330088942695 | D80: SALE | E80: GBP | F80: 35 | G80: -0.26 | H80: 34.74 | I80: Domestic | L80: =_xlfn.XLOOKUP(A80,[1]Sheet1!F:F,[1]Sheet1!AB:AB,0) -> United Kingdom | M80: =_xlfn.XLOOKUP(A80,[1]Sheet1!F:F,[1]Sheet1!B:B,0) -> Waiver | N80: =_xlfn.XLOOKUP(A80,[1]Sheet1!F:F,[1]Sheet1!W:W,0) -> DYZYN Living Bookings | O80: CLIENT | P80: 20 | Q80: =F80-R80 -> 30 | R80: 5
A81: 157734405 | B81: 2023-08-03 | C81: '82717083215330108263260 | D81: SALE | E81: GBP | F81: 35 | G81: -0.26 | H81: 34.74 | I81: Domestic | L81: =_xlfn.XLOOKUP(A81,[1]Sheet1!F:F,[1]Sheet1!AB:AB,0) -> United Kingdom | M81: =_xlfn.XLOOKUP(A81,[1]Sheet1!F:F,[1]Sheet1!B:B,0) -> Waiver | N81: =_xlfn.XLOOKUP(A81,[1]Sheet1!F:F,[1]Sheet1!W:W,0) -> DYZYN Living Bookings | O81: CLIENT | P81: 20 | Q81: 30 | R81: 5
A82: 158212905 | B82: 2023-08-05 | C82: '74568963217330131657122 | D82: SALE | E82: GBP | F82: 35 | G82: -0.26 | H82: 34.74 | I82: Domestic | L82: =_xlfn.XLOOKUP(A82,[1]Sheet1!F:F,[1]Sheet1!AB:AB,0) -> United Kingdom | M82: =_xlfn.XLOOKUP(A82,[1]Sheet1!F:F,[1]Sheet1!B:B,0) -> Waiver | N82: =_xlfn.XLOOKUP(A82,[1]Sheet1!F:F,[1]Sheet1!W:W,0) -> DYZYN Living Bookings | O82: CLIENT | P82: 20 | Q82: 30 | R82: 5
A83: 158217903 | B83: 2023-08-05 | C83: '82717083217330131658773 | D83: SALE | E83: GBP | F83: 35 | G83: -0.26 | H83: 34.74 | I83: Domestic | L83: =_xlfn.XLOOKUP(A83,[1]Sheet1!F:F,[1]Sheet1!AB:AB,0) -> United Kingdom | M83: =_xlfn.XLOOKUP(A83,[1]Sheet1!F:F,[1]Sheet1!B:B,0) -> Waiver | N83: =_xlfn.XLOOKUP(A83,[1]Sheet1!F:F,[1]Sheet1!W:W,0) -> DYZYN Living Bookings | O83: CLIENT | P83: 20 | Q83: 30 | R83: 5
A84: 158329387 | B84: 2023-08-07 | C84: '74568963219331145005488 | D84: SALE | E84: GBP | F84: 35 | G84: -0.26 | H84: 34.74 | I84: Domestic | L84: =_xlfn.XLOOKUP(A84,[1]Sheet1!F:F,[1]Sheet1!AB:AB,0) -> United Kingdom | M84: =_xlfn.XLOOKUP(A84,[1]Sheet1!F:F,[1]Sheet1!B:B,0) -> Waiver | N84: =_xlfn.XLOOKUP(A84,[1]Sheet1!F:F,[1]Sheet1!W:W,0) -> DYZYN Living Bookings | O84: CLIENT | P84: 20 | Q84: 30 | R84: 5
A85: 157301909 | B85: 2023-08-01 | C85: '82717083213330088942604 | D85: SALE | E85: GBP | F85: 35 | G85: -0.26 | H85: 34.74 | I85: Domestic | L85: =_xlfn.XLOOKUP(A85,[1]Sheet1!F:F,[1]Sheet1!AB:AB,0) -> United Kingdom | M85: =_xlfn.XLOOKUP(A85,[1]Sheet1!F:F,[1]Sheet1!B:B,0) -> Waiver | N85: =_xlfn.XLOOKUP(A85,[1]Sheet1!F:F,[1]Sheet1!W:W,0) -> Fairway Hosting Limited | O85: CLIENT | P85: 20 | Q85: 30 | R85: 5
A86: 158987627 | B86: 2023-08-11 | C86: '74568963223331187134208 | D86: SALE | E86: GBP | F86: 35 | G86: -0.84 | H86: 34.16 | I86: Inter | L86: =_xlfn.XLOOKUP(A86,[1]Sheet1!F:F,[1]Sheet1!AB:AB,0) -> Oman | M86: =_xlfn.XLOOKUP(A86,[1]Sheet1!F:F,[1]Sheet1!B:B,0) -> Waiver | N86: =_xlfn.XLOOKUP(A86,[1]Sheet1!F:F,[1]Sheet1!W:W,0) -> Fairway Hosting Limited | O86: CLIENT | P86: 20 | Q86: 30 | R86: 5
A87: 159216877 | B87: 2023-08-11 | C87: '82717083223331187133192 | D87: SALE | E87: GBP | F87: 35 | G87: -0.84 | H87: 34.16 | I87: Inter | L87: =_xlfn.XLOOKUP(A87,[1]Sheet1!F:F,[1]Sheet1!AB:AB,0) -> Saudi Arabia | M87: =_xlfn.XLOOKUP(A87,[1]Sheet1!F:F,[1]Sheet1!B:B,0) -> Waiver | N87: =_xlfn.XLOOKUP(A87,[1]Sheet1!F:F,[1]Sheet1!W:W,0) -> Fairway Hosting Limited | O87: CLIENT | P87: 20 | Q87: 30 | R87: 5
A88: 161047305 | B88: 2023-08-24 | C88: '74568963236333305361841 | D88: SALE | E88: GBP | F88: 35 | G88: -0.84 | H88: 34.16 | I88: Inter | L88: =_xlfn.XLOOKUP(A88,[1]Sheet1!F:F,[1]Sheet1!AB:AB,0) -> Saudi Arabia | M88: =_xlfn.XLOOKUP(A88,[1]Sheet1!F:F,[1]Sheet1!B:B,0) -> Waiver | N88: =_xlfn.XLOOKUP(A88,[1]Sheet1!F:F,[1]Sheet1!W:W,0) -> Fairway Hosting Limited | O88: CLIENT | P88: 20 | Q88: 30 | R88: 5
A89: 157747457 | B89: 2023-08-03 | C89: '82717083215330108263328 | D89: SALE | E89: GBP | F89: 25 | G89: -0.6 | H89: 24.4 | I89: Inter | L89: =_xlfn.XLOOKUP(A89,[1]Sheet1!F:F,[1]Sheet1!AB:AB,0) -> United Arab Emirates | M89: =_xlfn.XLOOKUP(A89,[1]Sheet1!F:F,[1]Sheet1!B:B,0) -> Waiver | N89: =_xlfn.XLOOKUP(A89,[1]Sheet1!F:F,[1]Sheet1!W:W,0) -> Firstserve-West Wimbledon Bookings | O89: CLIENT | P89: 20 | Q89: 20 | R89: 5
A90: 159534707 | B90: 2023-08-14 | C90: '82717083226332212151131 | D90: SALE | E90: GBP | F90: 25 | G90: -0.19 | H90: 24.81 | I90: Domestic | L90: =_xlfn.XLOOKUP(A90,[1]Sheet1!F:F,[1]Sheet1!AB:AB,0) -> United Kingdom | M90: =_xlfn.XLOOKUP(A90,[1]Sheet1!F:F,[1]Sheet1!B:B,0) -> Waiver | N90: =_xlfn.XLOOKUP(A90,[1]Sheet1!F:F,[1]Sheet1!W:W,0) -> Firstserve-West Wimbledon Bookings | O90: CLIENT | P90: 20 | Q90: 20 | R90: 5
A91: 160359405 | B91: 2023-08-19 | C91: '74568963231332260430091 | D91: SALE | E91: GBP | F91: 25 | G91: -0.6 | H91: 24.4 | I91: Inter | L91: =_xlfn.XLOOKUP(A91,[1]Sheet1!F:F,[1]Sheet1!AB:AB,0) -> Kazakhstan | M91: =_xlfn.XLOOKUP(A91,[1]Sheet1!F:F,[1]Sheet1!B:B,0) -> Waiver | N91: =_xlfn.XLOOKUP(A91,[1]Sheet1!F:F,[1]Sheet1!W:W,0) -> Firstserve-West Wimbledon Bookings | O91: CLIENT | P91: 20 | Q91: 20 | R91: 5
A92: 158026121 | B92: 2023-08-04 | C92: '82717083216330120495345 | D92: SALE | E92: GBP | F92: 35 | G92: -0.26 | H92: 34.74 | I92: Domestic | L92: =_xlfn.XLOOKUP(A92,[1]Sheet1!F:F,[1]Sheet1!AB:AB,0) -> United Kingdom | M92: =_xlfn.XLOOKUP(A92,[1]Sheet1!F:F,[1]Sheet1!B:B,0) -> Waiver | N92: =_xlfn.XLOOKUP(A92,[1]Sheet1!F:F,[1]Sheet1!W:W,0) -> GM Stays LTD | O92: CLIENT | P92: 20 | Q92: 30 | R92: 5
A93: 159205907 | B93: 2023-08-11 | C93: '82717083223331187134018 | D93: SALE | E93: GBP | F93: 35 | G93: -0.26 | H93: 34.74 | I93: Domestic | L93: =_xlfn.XLOOKUP(A93,[1]Sheet1!F:F,[1]Sheet1!AB:AB,0) -> United Kingdom | M93: =_xlfn.XLOOKUP(A93,[1]Sheet1!F:F,[1]Sheet1!B:B,0) -> Waiver | N93: =_xlfn.XLOOKUP(A93,[1]Sheet1!F:F,[1]Sheet1!W:W,0) -> GM Stays LTD | O93: CLIENT | P93: 20 | Q93: 30 | R93: 5
A94: 146452441 | B94: 2023-05-31 | C94: '82717083151321504264057 | D94: SALE | E94: GBP | F94: 35 | G94: -0.26 | H94: 34.74 | I94: Domestic | L94: =_xlfn.XLOOKUP(A94,[1]Sheet1!AL:AL,[1]Sheet1!AT:AT,0) -> United Kingdom | M94: =_xlfn.XLOOKUP(A94,[1]Sheet1!AL:AL,[1]Sheet1!AH:AH,0) -> Waiver | N94: =_xlfn.XLOOKUP(A94,[1]Sheet1!AL:AL,[1]Sheet1!AO:AO,0) -> Guest365 Limited | O94: SH | P94: 20
A95: 146366307 | B95: 2023-05-31 | C95: '74568963151321504264149 | D95: SALE | E95: GBP | F95: 35 | G95: -0.26 | H95: 34.74 | I95: Domestic | L95: =_xlfn.XLOOKUP(A95,[1]Sheet1!AL:AL,[1]Sheet1!AT:AT,0) -> United Kingdom | M95: =_xlfn.XLOOKUP(A95,[1]Sheet1!AL:AL,[1]Sheet1!AH:AH,0) -> Waiver | N95: =_xlfn.XLOOKUP(A95,[1]Sheet1!AL:AL,[1]Sheet1!AO:AO,0) -> Gwen Patrick Group | O95: CLIENT | P95: 20 | Q95: =F95-R95 -> 30 | R95: 5
A96: 157126969 | B96: 2023-08-01 | C96: '74568963213330090563042 | D96: SALE | E96: GBP | F96: 35 | G96: -0.26 | H96: 34.74 | I96: Domestic | L96: =_xlfn.XLOOKUP(A96,[1]Sheet1!F:F,[1]Sheet1!AB:AB,0) -> United Kingdom | M96: =_xlfn.XLOOKUP(A96,[1]Sheet1!F:F,[1]Sheet1!B:B,0) -> Waiver | N96: =_xlfn.XLOOKUP(A96,[1]Sheet1!F:F,[1]Sheet1!W:W,0) -> Gwen Patrick Group | O96: CLIENT | P96: 20 | Q96: 30 | R96: 5
A97: 157499409 | B97: 2023-08-02 | C97: '82717083214330099532591 | D97: SALE | E97: GBP | F97: 35 | G97: -0.26 | H97: 34.74 | I97: Domestic | L97: =_xlfn.XLOOKUP(A97,[1]Sheet1!F:F,[1]Sheet1!AB:AB,0) -> United Kingdom | M97: =_xlfn.XLOOKUP(A97,[1]Sheet1!F:F,[1]Sheet1!B:B,0) -> Waiver | N97: =_xlfn.XLOOKUP(A97,[1]Sheet1!F:F,[1]Sheet1!W:W,0) -> Gwen Patrick Group | O97: CLIENT | P97: 20 | Q97: 30 | R97: 5
A98: 158537521 | B98: 2023-08-08 | C98: '74568963220331154856372 | D98: SALE | E98: GBP | F98: 35 | G98: -0.26 | H98: 34.74 | I98: Domestic | L98: =_xlfn.XLOOKUP(A98,[1]Sheet1!F:F,[1]Sheet1!AB:AB,0) -> United Kingdom | M98: =_xlfn.XLOOKUP(A98,[1]Sheet1!F:F,[1]Sheet1!B:B,0) -> Waiver | N98: =_xlfn.XLOOKUP(A98,[1]Sheet1!F:F,[1]Sheet1!W:W,0) -> Gwen Patrick Group | O98: CLIENT | P98: 20 | Q98: 30 | R98: 5
A99: 159549357 | B99: 2023-08-14 | C99: '74568963226332212151941 | D99: SALE | E99: GBP | F99: 35 | G99: -0.26 | H99: 34.74 | I99: Domestic | L99: =_xlfn.XLOOKUP(A99,[1]Sheet1!F:F,[1]Sheet1!AB:AB,0) -> United Kingdom | M99: =_xlfn.XLOOKUP(A99,[1]Sheet1!F:F,[1]Sheet1!B:B,0) -> Waiver | N99: =_xlfn.XLOOKUP(A99,[1]Sheet1!F:F,[1]Sheet1!W:W,0) -> Gwen Patrick Group | O99: CLIENT | P99: 20 | Q99: 30 | R99: 5
A100: 162003449 | B100: 2023-08-29 | C100: '74568963241334351223284 | D100: SALE | E100: GBP | F100: 35 | G100: -0.26 | H100: 34.74 | I100: Domestic | L100: =_xlfn.XLOOKUP(A100,[1]Sheet1!F:F,[1]Sheet1!AB:AB,0) -> United Kingdom | M100: =_xlfn.XLOOKUP(A100,[1]Sheet1!F:F,[1]Sheet1!B:B,0) -> Waiver | N100: =_xlfn.XLOOKUP(A100,[1]Sheet1!F:F,[1]Sheet1!W:W,0) -> Gwen Patrick Group | O100: CLIENT | P100: 20 | Q100: 30 | R100: 5
A101: 159550947 | B101: 2023-08-14 | C101: '82717083226332212150562 | D101: SALE | E101: GBP | F101: 35 | G101: -0.26 | H101: 34.74 | I101: Domestic | L101: =_xlfn.XLOOKUP(A101,[1]Sheet1!F:F,[1]Sheet1!AB:AB,0) -> United Kingdom | M101: =_xlfn.XLOOKUP(A101,[1]Sheet1!F:F,[1]Sheet1!B:B,0) -> Waiver | N101: =_xlfn.XLOOKUP(A101,[1]Sheet1!F:F,[1]Sheet1!W:W,0) -> Hey Comfort Bookings | O101: CLIENT | P101: 20 | Q101: 31.06 | R101: 3.94
A102: 160825983 | B102: 2023-08-23 | C102: '82717083235333294545603 | D102: SALE | E102: GBP | F102: 35 | G102: -0.26 | H102: 34.74 | I102: Domestic | L102: =_xlfn.XLOOKUP(A102,[1]Sheet1!F:F,[1]Sheet1!AB:AB,0) -> United Kingdom | M102: =_xlfn.XLOOKUP(A102,[1]Sheet1!F:F,[1]Sheet1!B:B,0) -> Waiver | N102: =_xlfn.XLOOKUP(A102,[1]Sheet1!F:F,[1]Sheet1!W:W,0) -> Hey Comfort Bookings | O102: CLIENT | P102: 20 | Q102: 31.06 | R102: 3.94
A103: 157261845 | B103: 2023-08-01 | C103: '82717083213330088941762 | D103: REFUND | E103: GBP | F103: -500 | G103: -1 | H103: -501 | I103: Domestic | M103: Deposit
A104: 161644313 | B104: 2023-08-27 | C104: '74568963239334336267889 | D104: SALE | E104: GBP | F104: 35 | G104: -0.84 | H104: 34.16 | I104: Inter | L104: =_xlfn.XLOOKUP(A104,[1]Sheet1!F:F,[1]Sheet1!AB:AB,0) -> New Zealand | M104: =_xlfn.XLOOKUP(A104,[1]Sheet1!F:F,[1]Sheet1!B:B,0) -> Waiver | N104: =_xlfn.XLOOKUP(A104,[1]Sheet1!F:F,[1]Sheet1!W:W,0) -> Hey Comfort Bookings | O104: CLIENT | P104: 20 | Q104: =F104-R104 -> 31.06 | R104: 3.94
A105: 158651201 | B105: 2023-08-08 | C105: '74568963220331154856950 | D105: SALE | E105: GBP | F105: 35 | G105: -0.26 | H105: 34.74 | I105: Domestic | L105: =_xlfn.XLOOKUP(A105,[1]Sheet1!F:F,[1]Sheet1!AB:AB,0) -> United Kingdom | M105: =_xlfn.XLOOKUP(A105,[1]Sheet1!F:F,[1]Sheet1!B:B,0) -> Waiver | N105: =_xlfn.XLOOKUP(A105,[1]Sheet1!F:F,[1]Sheet1!W:W,0) -> High Demand Properties HandsOffSA | O105: CLIENT | P105: 20 | Q105: =F105-R105 -> 30 | R105: 5
A106: 156853147 | B106: 2023-07-31 | C106: '82717083212330076650814 | D106: SALE | E106: GBP | F106: 30 | G106: -0.22 | H106: 29.78 | I106: Domestic | L106: =_xlfn.XLOOKUP(A106,[1]Sheet1!AL:AL,[1]Sheet1!AT:AT,0) -> United Kingdom | M106: =_xlfn.XLOOKUP(A106,[1]Sheet1!AL:AL,[1]Sheet1!AH:AH,0) -> Waiver | N106: =_xlfn.XLOOKUP(A106,[1]Sheet1!AL:AL,[1]Sheet1!AO:AO,0) -> HNFC Stays Bookings | O106: CLIENT | P106: 20 | Q106: =F106-R106 -> 25 | R106: 5
A107: 157305631 | B107: 2023-08-01 | C107: '74568963213330088943206 | D107: SALE | E107: GBP | F107: 30 | G107: -0.22 | H107: 29.78 | I107: Domestic | L107: =_xlfn.XLOOKUP(A107,[1]Sheet1!F:F,[1]Sheet1!AB:AB,0) -> United Kingdom | M107: =_xlfn.XLOOKUP(A107,[1]Sheet1!F:F,[1]Sheet1!B:B,0) -> Waiver | N107: =_xlfn.XLOOKUP(A107,[1]Sheet1!F:F,[1]Sheet1!W:W,0) -> HNFC Stays Bookings | O107: CLIENT | P107: 20 | Q107: =F107-R107 -> 25 | R107: 5
A108: 157531517 | B108: 2023-08-02 | C108: '82717083214330099532971 | D108: SALE | E108: GBP | F108: 30 | G108: -0.22 | H108: 29.78 | I108: Domestic | L108: =_xlfn.XLOOKUP(A108,[1]Sheet1!F:F,[1]Sheet1!AB:AB,0) -> United Kingdom | M108: =_xlfn.XLOOKUP(A108,[1]Sheet1!F:F,[1]Sheet1!B:B,0) -> Waiver | N108: =_xlfn.XLOOKUP(A108,[1]Sheet1!F:F,[1]Sheet1!W:W,0) -> HNFC Stays Bookings | O108: CLIENT | P108: 20 | Q108: =F108-R108 -> 25 | R108: 5
A109: 157265841 | B109: 2023-08-01 | C109: '74568963213330088943008 | D109: REFUND | E109: GBP | F109: -25 | G109: -1 | H109: -26 | I109: Domestic | L109: United Kingdom | M109: Waiver | N109: Stay With Me Bookings | O109: SH | P109: 20
A110: 157537811 | B110: 2023-08-02 | C110: '74568963214330099532237 | D110: SALE | E110: GBP | F110: 30 | G110: -0.22 | H110: 29.78 | I110: Domestic | L110: =_xlfn.XLOOKUP(A110,[1]Sheet1!F:F,[1]Sheet1!AB:AB,0) -> United Kingdom | M110: =_xlfn.XLOOKUP(A110,[1]Sheet1!F:F,[1]Sheet1!B:B,0) -> Waiver | N110: =_xlfn.XLOOKUP(A110,[1]Sheet1!F:F,[1]Sheet1!W:W,0) -> HNFC Stays Bookings | O110: CLIENT | P110: 20 | Q110: =F110-R110 -> 25 | R110: 5
A111: 157553233 | B111: 2023-08-02 | C111: '82717083214330099534274 | D111: SALE | E111: GBP | F111: 30 | G111: -0.22 | H111: 29.78 | I111: Domestic | L111: =_xlfn.XLOOKUP(A111,[1]Sheet1!F:F,[1]Sheet1!AB:AB,0) -> United Kingdom | M111: =_xlfn.XLOOKUP(A111,[1]Sheet1!F:F,[1]Sheet1!B:B,0) -> Waiver | N111: =_xlfn.XLOOKUP(A111,[1]Sheet1!F:F,[1]Sheet1!W:W,0) -> HNFC Stays Bookings | O111: CLIENT | P111: 20 | Q111: 25 | R111: 5
A112: 157561655 | B112: 2023-08-02 | C112: '74568963214330099532435 | D112: SALE | E112: GBP | F112: 30 | G112: -0.22 | H112: 29.78 | I112: Domestic | L112: =_xlfn.XLOOKUP(A112,[1]Sheet1!F:F,[1]Sheet1!AB:AB,0) -> United Kingdom | M112: =_xlfn.XLOOKUP(A112,[1]Sheet1!F:F,[1]Sheet1!B:B,0) -> Waiver | N112: =_xlfn.XLOOKUP(A112,[1]Sheet1!F:F,[1]Sheet1!W:W,0) -> HNFC Stays Bookings | O112: CLIENT | P112: 20 | Q112: 25 | R112: 5
A113: 158904319 | B113: 2023-08-10 | C113: '74568963222331175401453 | D113: SALE | E113: GBP | F113: 30 | G113: -0.22 | H113: 29.78 | I113: Intra | L113: =_xlfn.XLOOKUP(A113,[1]Sheet1!F:F,[1]Sheet1!AB:AB,0) -> United Kingdom | M113: =_xlfn.XLOOKUP(A113,[1]Sheet1!F:F,[1]Sheet1!B:B,0) -> Waiver | N113: =_xlfn.XLOOKUP(A113,[1]Sheet1!F:F,[1]Sheet1!W:W,0) -> HNFC Stays Bookings | O113: CLIENT | P113: 20 | Q113: 25 | R113: 5
A114: 159301535 | B114: 2023-08-12 | C114: '82717083224331197909457 | D114: SALE | E114: GBP | F114: 30 | G114: -0.22 | H114: 29.78 | I114: Domestic | L114: =_xlfn.XLOOKUP(A114,[1]Sheet1!F:F,[1]Sheet1!AB:AB,0) -> United Kingdom | M114: =_xlfn.XLOOKUP(A114,[1]Sheet1!F:F,[1]Sheet1!B:B,0) -> Waiver | N114: =_xlfn.XLOOKUP(A114,[1]Sheet1!F:F,[1]Sheet1!W:W,0) -> HNFC Stays Bookings | O114: CLIENT | P114: 20 | Q114: 25 | R114: 5
A115: 159302669 | B115: 2023-08-12 | C115: '74568963224331197907220 | D115: SALE | E115: GBP | F115: 30 | G115: -0.22 | H115: 29.78 | I115: Domestic | L115: =_xlfn.XLOOKUP(A115,[1]Sheet1!F:F,[1]Sheet1!AB:AB,0) -> United Kingdom | M115: =_xlfn.XLOOKUP(A115,[1]Sheet1!F:F,[1]Sheet1!B:B,0) -> Waiver | N115: =_xlfn.XLOOKUP(A115,[1]Sheet1!F:F,[1]Sheet1!W:W,0) -> HNFC Stays Bookings | O115: CLIENT | P115: 20 | Q115: 25 | R115: 5
A116: 159558239 | B116: 2023-08-14 | C116: '74568963226332212149473 | D116: SALE | E116: GBP | F116: 30 | G116: -0.22 | H116: 29.78 | I116: Domestic | L116: =_xlfn.XLOOKUP(A116,[1]Sheet1!F:F,[1]Sheet1!AB:AB,0) -> United Kingdom | M116: =_xlfn.XLOOKUP(A116,[1]Sheet1!F:F,[1]Sheet1!B:B,0) -> Waiver | N116: =_xlfn.XLOOKUP(A116,[1]Sheet1!F:F,[1]Sheet1!W:W,0) -> HNFC Stays Bookings | O116: CLIENT | P116: 20 | Q116: 25 | R116: 5
A117: 159732427 | B117: 2023-08-15 | C117: '74568963227332221439856 | D117: SALE | E117: GBP | F117: 30 | G117: -0.22 | H117: 29.78 | I117: Domestic | L117: =_xlfn.XLOOKUP(A117,[1]Sheet1!F:F,[1]Sheet1!AB:AB,0) -> United Kingdom | M117: =_xlfn.XLOOKUP(A117,[1]Sheet1!F:F,[1]Sheet1!B:B,0) -> Waiver | N117: =_xlfn.XLOOKUP(A117,[1]Sheet1!F:F,[1]Sheet1!W:W,0) -> HNFC Stays Bookings | O117: CLIENT | P117: 20 | Q117: 25 | R117: 5
A118: 159911061 | B118: 2023-08-16 | C118: '74568963228332230348048 | D118: SALE | E118: GBP | F118: 30 | G118: -0.22 | H118: 29.78 | I118: Domestic | L118: =_xlfn.XLOOKUP(A118,[1]Sheet1!F:F,[1]Sheet1!AB:AB,0) -> United Kingdom | M118: =_xlfn.XLOOKUP(A118,[1]Sheet1!F:F,[1]Sheet1!B:B,0) -> Waiver | N118: =_xlfn.XLOOKUP(A118,[1]Sheet1!F:F,[1]Sheet1!W:W,0) -> HNFC Stays Bookings | O118: CLIENT | P118: 20 | Q118: 25 | R118: 5
A119: 141313779 | B119: 2023-04-30 | C119: '82717083120317218724772 | D119: SALE | E119: GBP | F119: 250 | G119: -1.88 | H119: 248.13 | I119: Domestic | L119: =_xlfn.XLOOKUP(A119,[1]Sheet1!AL:AL,[1]Sheet1!AT:AT,0) -> United Kingdom | M119: =_xlfn.XLOOKUP(A119,[1]Sheet1!AL:AL,[1]Sheet1!AH:AH,0) -> Deposit | N119: =_xlfn.XLOOKUP(A119,[1]Sheet1!AL:AL,[1]Sheet1!AO:AO,0) -> Host & Stay North Yorkshire
A120: 141325349 | B120: 2023-04-30 | C120: '74568963120317218725183 | D120: SALE | E120: GBP | F120: 250 | G120: -1.88 | H120: 248.13 | I120: Domestic | L120: =_xlfn.XLOOKUP(A120,[1]Sheet1!AL:AL,[1]Sheet1!AT:AT,0) -> United Kingdom | M120: =_xlfn.XLOOKUP(A120,[1]Sheet1!AL:AL,[1]Sheet1!AH:AH,0) -> Deposit | N120: =_xlfn.XLOOKUP(A120,[1]Sheet1!AL:AL,[1]Sheet1!AO:AO,0) -> Host & Stay North Yorkshire
A121: 141297081 | B121: 2023-04-30 | C121: '82717083120317218724608 | D121: SALE | E121: GBP | F121: 250 | G121: -1.88 | H121: 248.13 | I121: Domestic | L121: =_xlfn.XLOOKUP(A121,[1]Sheet1!AL:AL,[1]Sheet1!AT:AT,0) -> United Kingdom | M121: =_xlfn.XLOOKUP(A121,[1]Sheet1!AL:AL,[1]Sheet1!AH:AH,0) -> Deposit | N121: =_xlfn.XLOOKUP(A121,[1]Sheet1!AL:AL,[1]Sheet1!AO:AO,0) -> Host & Stay North Yorkshire
A122: 141318381 | B122: 2023-04-30 | C122: '82717083120317218724814 | D122: SALE | E122: GBP | F122: 250 | G122: -1.88 | H122: 248.13 | I122: Domestic | L122: =_xlfn.XLOOKUP(A122,[1]Sheet1!AL:AL,[1]Sheet1!AT:AT,0) -> United Kingdom | M122: =_xlfn.XLOOKUP(A122,[1]Sheet1!AL:AL,[1]Sheet1!AH:AH,0) -> Deposit | N122: =_xlfn.XLOOKUP(A122,[1]Sheet1!AL:AL,[1]Sheet1!AO:AO,0) -> Host & Stay North Yorkshire
A123: 141319071 | B123: 2023-04-30 | C123: '82717083120317218724384 | D123: SALE | E123: GBP | F123: 250 | G123: -1.88 | H123: 248.13 | I123: Domestic | L123: =_xlfn.XLOOKUP(A123,[1]Sheet1!AL:AL,[1]Sheet1!AT:AT,0) -> United Kingdom | M123: =_xlfn.XLOOKUP(A123,[1]Sheet1!AL:AL,[1]Sheet1!AH:AH,0) -> Deposit | N123: =_xlfn.XLOOKUP(A123,[1]Sheet1!AL:AL,[1]Sheet1!AO:AO,0) -> Host & Stay North Yorkshire
A124: 141297317 | B124: 2023-04-30 | C124: '82717083120317218724624 | D124: SALE | E124: GBP | F124: 250 | G124: -1.88 | H124: 248.13 | I124: Domestic | L124: =_xlfn.XLOOKUP(A124,[1]Sheet1!AL:AL,[1]Sheet1!AT:AT,0) -> United Kingdom | M124: =_xlfn.XLOOKUP(A124,[1]Sheet1!AL:AL,[1]Sheet1!AH:AH,0) -> Deposit | N124: =_xlfn.XLOOKUP(A124,[1]Sheet1!AL:AL,[1]Sheet1!AO:AO,0) -> Host & Stay North Yorkshire
A125: 141322975 | B125: 2023-04-30 | C125: '74568963120317218723857 | D125: SALE | E125: GBP | F125: 250 | G125: -1.88 | H125: 248.13 | I125: Domestic | L125: =_xlfn.XLOOKUP(A125,[1]Sheet1!AL:AL,[1]Sheet1!AT:AT,0) -> United Kingdom | M125: =_xlfn.XLOOKUP(A125,[1]Sheet1!AL:AL,[1]Sheet1!AH:AH,0) -> Deposit | N125: =_xlfn.XLOOKUP(A125,[1]Sheet1!AL:AL,[1]Sheet1!AO:AO,0) -> Host & Stay North Yorkshire
A126: 141237927 | B126: 2023-04-30 | C126: '82717083120317218724467 | D126: SALE | E126: GBP | F126: 250 | G126: -1.88 | H126: 248.13 | I126: Domestic | L126: =_xlfn.XLOOKUP(A126,[1]Sheet1!AL:AL,[1]Sheet1!AT:AT,0) -> United Kingdom | M126: =_xlfn.XLOOKUP(A126,[1]Sheet1!AL:AL,[1]Sheet1!AH:AH,0) -> Deposit | N126: =_xlfn.XLOOKUP(A126,[1]Sheet1!AL:AL,[1]Sheet1!AO:AO,0) -> Priority Villas Bookings
A127: 141293201 | B127: 2023-04-30 | C127: '74568963120317218723501 | D127: SALE | E127: GBP | F127: 250 | G127: -1.88 | H127: 248.13 | I127: Domestic | L127: =_xlfn.XLOOKUP(A127,[1]Sheet1!AL:AL,[1]Sheet1!AT:AT,0) -> United Kingdom | M127: =_xlfn.XLOOKUP(A127,[1]Sheet1!AL:AL,[1]Sheet1!AH:AH,0) -> Deposit | N127: =_xlfn.XLOOKUP(A127,[1]Sheet1!AL:AL,[1]Sheet1!AO:AO,0) -> Tempstay Bookings
A128: 141298775 | B128: 2023-04-30 | C128: '74568963120317218725092 | D128: SALE | E128: GBP | F128: 250 | G128: -1.88 | H128: 248.13 | I128: Domestic | L128: =_xlfn.XLOOKUP(A128,[1]Sheet1!AL:AL,[1]Sheet1!AT:AT,0) -> United Kingdom | M128: =_xlfn.XLOOKUP(A128,[1]Sheet1!AL:AL,[1]Sheet1!AH:AH,0) -> Deposit | N128: =_xlfn.XLOOKUP(A128,[1]Sheet1!AL:AL,[1]Sheet1!AO:AO,0) -> Tempstay Bookings
A129: 141319761 | B129: 2023-04-30 | C129: '82717083120317218724400 | D129: SALE | E129: GBP | F129: 250 | G129: -1.88 | H129: 248.13 | I129: Domestic | L129: =_xlfn.XLOOKUP(A129,[1]Sheet1!AL:AL,[1]Sheet1!AT:AT,0) -> United Kingdom | M129: =_xlfn.XLOOKUP(A129,[1]Sheet1!AL:AL,[1]Sheet1!AH:AH,0) -> Deposit | N129: =_xlfn.XLOOKUP(A129,[1]Sheet1!AL:AL,[1]Sheet1!AO:AO,0) -> Host & Stay North Yorkshire
A130: 141316587 | B130: 2023-04-30 | C130: '82717083120317218724335 | D130: SALE | E130: GBP | F130: 250 | G130: -1.88 | H130: 248.13 | I130: Domestic | L130: =_xlfn.XLOOKUP(A130,[1]Sheet1!AL:AL,[1]Sheet1!AT:AT,0) -> United Kingdom | M130: =_xlfn.XLOOKUP(A130,[1]Sheet1!AL:AL,[1]Sheet1!AH:AH,0) -> Deposit | N130: =_xlfn.XLOOKUP(A130,[1]Sheet1!AL:AL,[1]Sheet1!AO:AO,0) -> Host & Stay North Yorkshire
A131: 141329723 | B131: 2023-04-30 | C131: '82717083120317218724889 | D131: SALE | E131: GBP | F131: 250 | G131: -1.88 | H131: 248.13 | I131: Domestic | L131: =_xlfn.XLOOKUP(A131,[1]Sheet1!AL:AL,[1]Sheet1!AT:AT,0) -> United Kingdom | M131: =_xlfn.XLOOKUP(A131,[1]Sheet1!AL:AL,[1]Sheet1!AH:AH,0) -> Deposit | N131: =_xlfn.XLOOKUP(A131,[1]Sheet1!AL:AL,[1]Sheet1!AO:AO,0) -> Host & Stay North Yorkshire
A132: 157273719 | B132: 2023-08-01 | C132: '82717083213330088941879 | D132: REFUND | E132: GBP | F132: -487.11 | G132: -1 | H132: -488.11 | I132: Domestic | M132: Deposit
A133: 141310239 | B133: 2023-04-30 | C133: '82717083120317218724723 | D133: SALE | E133: GBP | F133: 250 | G133: -1.88 | H133: 248.13 | I133: Domestic | L133: =_xlfn.XLOOKUP(A133,[1]Sheet1!AL:AL,[1]Sheet1!AT:AT,0) -> United Kingdom | M133: =_xlfn.XLOOKUP(A133,[1]Sheet1!AL:AL,[1]Sheet1!AH:AH,0) -> Deposit | N133: =_xlfn.XLOOKUP(A133,[1]Sheet1!AL:AL,[1]Sheet1!AO:AO,0) -> Host & Stay North Yorkshire
A134: 141288775 | B134: 2023-04-30 | C134: '74568963120317218723469 | D134: SALE | E134: GBP | F134: 250 | G134: -1.88 | H134: 248.13 | I134: Domestic | L134: =_xlfn.XLOOKUP(A134,[1]Sheet1!AL:AL,[1]Sheet1!AT:AT,0) -> United Kingdom | M134: =_xlfn.XLOOKUP(A134,[1]Sheet1!AL:AL,[1]Sheet1!AH:AH,0) -> Deposit | N134: =_xlfn.XLOOKUP(A134,[1]Sheet1!AL:AL,[1]Sheet1!AO:AO,0) -> Host & Stay North Yorkshire
A135: 141243407 | B135: 2023-04-30 | C135: '82717083120317218724475 | D135: SALE | E135: GBP | F135: 250 | G135: -1.88 | H135: 248.13 | I135: Domestic | L135: =_xlfn.XLOOKUP(A135,[1]Sheet1!AL:AL,[1]Sheet1!AT:AT,0) -> United Kingdom | M135: =_xlfn.XLOOKUP(A135,[1]Sheet1!AL:AL,[1]Sheet1!AH:AH,0) -> Deposit | N135: =_xlfn.XLOOKUP(A135,[1]Sheet1!AL:AL,[1]Sheet1!AO:AO,0) -> Priority Villas Bookings
A136: 141248969 | B136: 2023-04-30 | C136: '74568963120317218724939 | D136: SALE | E136: GBP | F136: 250 | G136: -1.88 | H136: 248.13 | I136: Domestic | L136: =_xlfn.XLOOKUP(A136,[1]Sheet1!AL:AL,[1]Sheet1!AT:AT,0) -> United Kingdom | M136: =_xlfn.XLOOKUP(A136,[1]Sheet1!AL:AL,[1]Sheet1!AH:AH,0) -> Deposit | N136: =_xlfn.XLOOKUP(A136,[1]Sheet1!AL:AL,[1]Sheet1!AO:AO,0) -> Host & Stay North Yorkshire
A137: 141310237 | B137: 2023-04-30 | C137: '82717083120317218724244 | D137: SALE | E137: GBP | F137: 250 | G137: -1.88 | H137: 248.13 | I137: Domestic | L137: =_xlfn.XLOOKUP(A137,[1]Sheet1!AL:AL,[1]Sheet1!AT:AT,0) -> United Kingdom | M137: =_xlfn.XLOOKUP(A137,[1]Sheet1!AL:AL,[1]Sheet1!AH:AH,0) -> Deposit | N137: =_xlfn.XLOOKUP(A137,[1]Sheet1!AL:AL,[1]Sheet1!AO:AO,0) -> Host & Stay North Yorkshire
A138: 141320489 | B138: 2023-04-30 | C138: '74568963120317218723816 | D138: SALE | E138: GBP | F138: 250 | G138: -1.88 | H138: 248.13 | I138: Domestic | L138: =_xlfn.XLOOKUP(A138,[1]Sheet1!AL:AL,[1]Sheet1!AT:AT,0) -> United Kingdom | M138: =_xlfn.XLOOKUP(A138,[1]Sheet1!AL:AL,[1]Sheet1!AH:AH,0) -> Deposit | N138: =_xlfn.XLOOKUP(A138,[1]Sheet1!AL:AL,[1]Sheet1!AO:AO,0) -> Host & Stay North Yorkshire
A139: 141298773 | B139: 2023-04-30 | C139: '74568963120317218723659 | D139: SALE | E139: GBP | F139: 250 | G139: -1.88 | H139: 248.13 | I139: Domestic | L139: =_xlfn.XLOOKUP(A139,[1]Sheet1!AL:AL,[1]Sheet1!AT:AT,0) -> United Kingdom | M139: =_xlfn.XLOOKUP(A139,[1]Sheet1!AL:AL,[1]Sheet1!AH:AH,0) -> Deposit | N139: =_xlfn.XLOOKUP(A139,[1]Sheet1!AL:AL,[1]Sheet1!AO:AO,0) -> Host & Stay North Yorkshire
A140: 141325351 | B140: 2023-04-30 | C140: '74568963120317218723881 | D140: SALE | E140: GBP | F140: 250 | G140: -1.88 | H140: 248.13 | I140: Domestic | L140: =_xlfn.XLOOKUP(A140,[1]Sheet1!AL:AL,[1]Sheet1!AT:AT,0) -> United Kingdom | M140: =_xlfn.XLOOKUP(A140,[1]Sheet1!AL:AL,[1]Sheet1!AH:AH,0) -> Deposit | N140: =_xlfn.XLOOKUP(A140,[1]Sheet1!AL:AL,[1]Sheet1!AO:AO,0) -> Host & Stay North Yorkshire
A141: 141298143 | B141: 2023-04-30 | C141: '82717083120317218724160 | D141: SALE | E141: GBP | F141: 350 | G141: -2.63 | H141: 347.38 | I141: Domestic | L141: =_xlfn.XLOOKUP(A141,[1]Sheet1!AL:AL,[1]Sheet1!AT:AT,0) -> United Kingdom | M141: =_xlfn.XLOOKUP(A141,[1]Sheet1!AL:AL,[1]Sheet1!AH:AH,0) -> Deposit | N141: =_xlfn.XLOOKUP(A141,[1]Sheet1!AL:AL,[1]Sheet1!AO:AO,0) -> Sunshine Homes Booking
A142: 141318177 | B142: 2023-04-30 | C142: '82717083120317218724350 | D142: SALE | E142: GBP | F142: 500 | G142: -3.75 | H142: 496.25 | I142: Domestic | L142: =_xlfn.XLOOKUP(A142,[1]Sheet1!AL:AL,[1]Sheet1!AT:AT,0) -> United Kingdom | M142: =_xlfn.XLOOKUP(A142,[1]Sheet1!AL:AL,[1]Sheet1!AH:AH,0) -> Deposit | N142: =_xlfn.XLOOKUP(A142,[1]Sheet1!AL:AL,[1]Sheet1!AO:AO,0) -> Home to Host Ltd
A143: 141318181 | B143: 2023-04-30 | C143: '74568963120317218723790 | D143: SALE | E143: GBP | F143: 500 | G143: -3.75 | H143: 496.25 | I143: Domestic | L143: =_xlfn.XLOOKUP(A143,[1]Sheet1!AL:AL,[1]Sheet1!AT:AT,0) -> United Kingdom | M143: =_xlfn.XLOOKUP(A143,[1]Sheet1!AL:AL,[1]Sheet1!AH:AH,0) -> Deposit | N143: =_xlfn.XLOOKUP(A143,[1]Sheet1!AL:AL,[1]Sheet1!AO:AO,0) -> Your AirHost Limited
A144: 141297521 | B144: 2023-04-30 | C144: '82717083120317218724640 | D144: SALE | E144: GBP | F144: 500 | G144: -3.75 | H144: 496.25 | I144: Domestic | L144: =_xlfn.XLOOKUP(A144,[1]Sheet1!AL:AL,[1]Sheet1!AT:AT,0) -> United Kingdom | M144: =_xlfn.XLOOKUP(A144,[1]Sheet1!AL:AL,[1]Sheet1!AH:AH,0) -> Deposit | N144: =_xlfn.XLOOKUP(A144,[1]Sheet1!AL:AL,[1]Sheet1!AO:AO,0) -> Home to Host Ltd
A145: 141305361 | B145: 2023-04-30 | C145: '74568963120317218723675 | D145: SALE | E145: GBP | F145: 500 | G145: -3.75 | H145: 496.25 | I145: Domestic | L145: =_xlfn.XLOOKUP(A145,[1]Sheet1!AL:AL,[1]Sheet1!AT:AT,0) -> United Kingdom | M145: =_xlfn.XLOOKUP(A145,[1]Sheet1!AL:AL,[1]Sheet1!AH:AH,0) -> Deposit | N145: =_xlfn.XLOOKUP(A145,[1]Sheet1!AL:AL,[1]Sheet1!AO:AO,0) -> Home to Host Ltd
A146: 146455725 | B146: 2023-05-31 | C146: '82717083151321504264081 | D146: SALE | E146: GBP | F146: 1 | G146: -0.01 | H146: 0.99 | I146: Intra | L146: =_xlfn.XLOOKUP(A146,[1]Sheet1!AL:AL,[1]Sheet1!AT:AT,0) -> New Caledonia | M146: =_xlfn.XLOOKUP(A146,[1]Sheet1!AL:AL,[1]Sheet1!AH:AH,0) -> Fee | N146: =_xlfn.XLOOKUP(A146,[1]Sheet1!AL:AL,[1]Sheet1!AO:AO,0) -> Airtrip Bookings | P146: 0
A147: 146420765 | B147: 2023-05-31 | C147: '74568963151321504264230 | D147: SALE | E147: GBP | F147: 5 | G147: -0.04 | H147: 4.96 | I147: Domestic | L147: =_xlfn.XLOOKUP(A147,[1]Sheet1!AL:AL,[1]Sheet1!AT:AT,0) -> United Kingdom | M147: =_xlfn.XLOOKUP(A147,[1]Sheet1!AL:AL,[1]Sheet1!AH:AH,0) -> Fee | N147: =_xlfn.XLOOKUP(A147,[1]Sheet1!AL:AL,[1]Sheet1!AO:AO,0) -> Curated Spaces IOW Ltd Booking | P147: 20
A148: 146446073 | B148: 2023-05-31 | C148: '82717083151321504263984 | D148: SALE | E148: GBP | F148: 5 | G148: -0.04 | H148: 4.96 | I148: Domestic | L148: =_xlfn.XLOOKUP(A148,[1]Sheet1!AL:AL,[1]Sheet1!AT:AT,0) -> United Kingdom | M148: =_xlfn.XLOOKUP(A148,[1]Sheet1!AL:AL,[1]Sheet1!AH:AH,0) -> Fee | N148: =_xlfn.XLOOKUP(A148,[1]Sheet1!AL:AL,[1]Sheet1!AO:AO,0) -> Spires Accommodation Bookings | P148: 20
A149: 146410163 | B149: 2023-05-31 | C149: '82717083151321504263794 | D149: SALE | E149: GBP | F149: 5 | G149: -0.04 | H149: 4.96 | I149: Domestic | L149: =_xlfn.XLOOKUP(A149,[1]Sheet1!AL:AL,[1]Sheet1!AT:AT,0) -> United Kingdom | M149: =_xlfn.XLOOKUP(A149,[1]Sheet1!AL:AL,[1]Sheet1!AH:AH,0) -> Fee | N149: =_xlfn.XLOOKUP(A149,[1]Sheet1!AL:AL,[1]Sheet1!AO:AO,0) -> Tempstay Bookings | P149: 20
A150: 146379251 | B150: 2023-05-31 | C150: '82717083151321504262986 | D150: SALE | E150: GBP | F150: 5 | G150: -0.04 | H150: 4.96 | I150: Domestic | L150: =_xlfn.XLOOKUP(A150,[1]Sheet1!AL:AL,[1]Sheet1!AT:AT,0) -> United Kingdom | M150: =_xlfn.XLOOKUP(A150,[1]Sheet1!AL:AL,[1]Sheet1!AH:AH,0) -> Fee | N150: =_xlfn.XLOOKUP(A150,[1]Sheet1!AL:AL,[1]Sheet1!AO:AO,0) -> Shortstaysaway HandsOffSA | P150: 20
A151: 146410699 | B151: 2023-05-31 | C151: '82717083151321504263802 | D151: SALE | E151: GBP | F151: 5 | G151: -0.04 | H151: 4.96 | I151: Domestic | L151: =_xlfn.XLOOKUP(A151,[1]Sheet1!AL:AL,[1]Sheet1!AT:AT,0) -> United Kingdom | M151: =_xlfn.XLOOKUP(A151,[1]Sheet1!AL:AL,[1]Sheet1!AH:AH,0) -> Fee | N151: =_xlfn.XLOOKUP(A151,[1]Sheet1!AL:AL,[1]Sheet1!AO:AO,0) -> Mica Suca Ltd | P151: 20
A152: 146446363 | B152: 2023-05-31 | C152: '82717083151321504263992 | D152: SALE | E152: GBP | F152: 5 | G152: -0.04 | H152: 4.96 | I152: Domestic | L152: =_xlfn.XLOOKUP(A152,[1]Sheet1!AL:AL,[1]Sheet1!AT:AT,0) -> United Kingdom | M152: =_xlfn.XLOOKUP(A152,[1]Sheet1!AL:AL,[1]Sheet1!AH:AH,0) -> Fee | N152: =_xlfn.XLOOKUP(A152,[1]Sheet1!AL:AL,[1]Sheet1!AO:AO,0) -> Shortstaysaway HandsOffSA | P152: 20
A153: 146334469 | B153: 2023-05-31 | C153: '82717083151321504262952 | D153: SALE | E153: GBP | F153: 5 | G153: -0.04 | H153: 4.96 | I153: Domestic | L153: =_xlfn.XLOOKUP(A153,[1]Sheet1!AL:AL,[1]Sheet1!AT:AT,0) -> United Kingdom | M153: =_xlfn.XLOOKUP(A153,[1]Sheet1!AL:AL,[1]Sheet1!AH:AH,0) -> Fee | N153: =_xlfn.XLOOKUP(A153,[1]Sheet1!AL:AL,[1]Sheet1!AO:AO,0) -> Smartavillas Bookings | P153: 20
A154: 146420349 | B154: 2023-05-31 | C154: '82717083151321504263315 | D154: SALE | E154: GBP | F154: 5 | G154: -0.04 | H154: 4.96 | I154: Domestic | L154: =_xlfn.XLOOKUP(A154,[1]Sheet1!AL:AL,[1]Sheet1!AT:AT,0) -> United Kingdom | M154: =_xlfn.XLOOKUP(A154,[1]Sheet1!AL:AL,[1]Sheet1!AH:AH,0) -> Fee | N154: =_xlfn.XLOOKUP(A154,[1]Sheet1!AL:AL,[1]Sheet1!AO:AO,0) -> Smartavillas Bookings | P154: 20
A155: 146453587 | B155: 2023-05-31 | C155: '82717083151321504264073 | D155: SALE | E155: GBP | F155: 5 | G155: -0.04 | H155: 4.96 | I155: Domestic | L155: =_xlfn.XLOOKUP(A155,[1]Sheet1!AL:AL,[1]Sheet1!AT:AT,0) -> United Kingdom | M155: =_xlfn.XLOOKUP(A155,[1]Sheet1!AL:AL,[1]Sheet1!AH:AH,0) -> Fee | N155: =_xlfn.XLOOKUP(A155,[1]Sheet1!AL:AL,[1]Sheet1!AO:AO,0) -> Tempstay Bookings | P155: 20
A156: 146451421 | B156: 2023-05-31 | C156: '82717083151321504264032 | D156: SALE | E156: GBP | F156: 5 | G156: -0.04 | H156: 4.96 | I156: Domestic | L156: =_xlfn.XLOOKUP(A156,[1]Sheet1!AL:AL,[1]Sheet1!AT:AT,0) -> United Kingdom | M156: =_xlfn.XLOOKUP(A156,[1]Sheet1!AL:AL,[1]Sheet1!AH:AH,0) -> Fee | N156: =_xlfn.XLOOKUP(A156,[1]Sheet1!AL:AL,[1]Sheet1!AO:AO,0) -> Just Stay Wales Bookings | P156: 20
A157: 146451227 | B157: 2023-05-31 | C157: '82717083151321504263505 | D157: SALE | E157: GBP | F157: 10 | G157: -0.08 | H157: 9.93 | I157: Domestic | L157: =_xlfn.XLOOKUP(A157,[1]Sheet1!AL:AL,[1]Sheet1!AT:AT,0) -> United Kingdom | M157: =_xlfn.XLOOKUP(A157,[1]Sheet1!AL:AL,[1]Sheet1!AH:AH,0) -> Fee | N157: =_xlfn.XLOOKUP(A157,[1]Sheet1!AL:AL,[1]Sheet1!AO:AO,0) -> Home to Host Ltd | P157: 20
A158: 146365763 | B158: 2023-05-31 | C158: '74568963151321504262333 | D158: SALE | E158: GBP | F158: 10 | G158: -0.08 | H158: 9.93 | I158: Domestic | L158: =_xlfn.XLOOKUP(A158,[1]Sheet1!AL:AL,[1]Sheet1!AT:AT,0) -> United Kingdom | M158: =_xlfn.XLOOKUP(A158,[1]Sheet1!AL:AL,[1]Sheet1!AH:AH,0) -> Fee | N158: =_xlfn.XLOOKUP(A158,[1]Sheet1!AL:AL,[1]Sheet1!AO:AO,0) -> Host & Stay North Yorkshire | P158: 20
A159: 146423023 | B159: 2023-05-31 | C159: '82717083151321504263851 | D159: SALE | E159: GBP | F159: 10 | G159: -0.08 | H159: 9.93 | I159: Domestic | L159: =_xlfn.XLOOKUP(A159,[1]Sheet1!AL:AL,[1]Sheet1!AT:AT,0) -> United Kingdom | M159: =_xlfn.XLOOKUP(A159,[1]Sheet1!AL:AL,[1]Sheet1!AH:AH,0) -> Fee | N159: =_xlfn.XLOOKUP(A159,[1]Sheet1!AL:AL,[1]Sheet1!AO:AO,0) -> Host & Stay North Yorkshire | P159: 20
A160: 146420715 | B160: 2023-05-31 | C160: '82717083151321504263844 | D160: SALE | E160: GBP | F160: 10 | G160: -0.24 | H160: 9.76 | I160: Inter | L160: =_xlfn.XLOOKUP(A160,[1]Sheet1!AL:AL,[1]Sheet1!AT:AT,0) -> Hong Kong | M160: =_xlfn.XLOOKUP(A160,[1]Sheet1!AL:AL,[1]Sheet1!AH:AH,0) -> Fee | N160: =_xlfn.XLOOKUP(A160,[1]Sheet1!AL:AL,[1]Sheet1!AO:AO,0) -> Choose Colorado Bookings | P160: 0
A161: 146449753 | B161: 2023-05-31 | C161: '82717083151321504263489 | D161: SALE | E161: GBP | F161: 10 | G161: -0.08 | H161: 9.93 | I161: Domestic | L161: =_xlfn.XLOOKUP(A161,[1]Sheet1!AL:AL,[1]Sheet1!AT:AT,0) -> United Kingdom | M161: =_xlfn.XLOOKUP(A161,[1]Sheet1!AL:AL,[1]Sheet1!AH:AH,0) -> Fee | N161: =_xlfn.XLOOKUP(A161,[1]Sheet1!AL:AL,[1]Sheet1!AO:AO,0) -> Host & Stay North Yorkshire | P161: 20
A162: 146387591 | B162: 2023-05-31 | C162: '74568963151321504262481 | D162: SALE | E162: GBP | F162: 10 | G162: -0.08 | H162: 9.93 | I162: Domestic | L162: =_xlfn.XLOOKUP(A162,[1]Sheet1!AL:AL,[1]Sheet1!AT:AT,0) -> United Kingdom | M162: =_xlfn.XLOOKUP(A162,[1]Sheet1!AL:AL,[1]Sheet1!AH:AH,0) -> Fee | N162: =_xlfn.XLOOKUP(A162,[1]Sheet1!AL:AL,[1]Sheet1!AO:AO,0) -> Host & Stay North Yorkshire | P162: 20
A163: 146380137 | B163: 2023-05-31 | C163: '82717083151321504262994 | D163: SALE | E163: GBP | F163: 10 | G163: -0.08 | H163: 9.93 | I163: Domestic | L163: =_xlfn.XLOOKUP(A163,[1]Sheet1!AL:AL,[1]Sheet1!AT:AT,0) -> United Kingdom | M163: =_xlfn.XLOOKUP(A163,[1]Sheet1!AL:AL,[1]Sheet1!AH:AH,0) -> Fee | N163: =_xlfn.XLOOKUP(A163,[1]Sheet1!AL:AL,[1]Sheet1!AO:AO,0) -> Host & Stay North Yorkshire | P163: 20
A164: 157282169 | B164: 2023-08-01 | C164: '82717083213330088941978 | D164: REFUND | E164: GBP | F164: -200 | G164: -1 | H164: -201 | I164: Domestic | M164: Deposit
A165: 146402755 | B165: 2023-05-31 | C165: '74568963151321504262580 | D165: SALE | E165: GBP | F165: 10 | G165: -0.08 | H165: 9.93 | I165: Domestic | L165: =_xlfn.XLOOKUP(A165,[1]Sheet1!AL:AL,[1]Sheet1!AT:AT,0) -> United Kingdom | M165: =_xlfn.XLOOKUP(A165,[1]Sheet1!AL:AL,[1]Sheet1!AH:AH,0) -> Fee | N165: =_xlfn.XLOOKUP(A165,[1]Sheet1!AL:AL,[1]Sheet1!AO:AO,0) -> Gwen Patrick Group | P165: 20
A166: 157282231 | B166: 2023-08-01 | C166: '82717083213330088941986 | D166: REFUND | E166: GBP | F166: -200 | G166: -1 | H166: -201 | I166: Domestic | M166: Deposit
A167: 146399993 | B167: 2023-05-31 | C167: '74568963151321504262572 | D167: SALE | E167: GBP | F167: 10 | G167: -0.08 | H167: 9.93 | I167: Domestic | L167: =_xlfn.XLOOKUP(A167,[1]Sheet1!AL:AL,[1]Sheet1!AT:AT,0) -> United Kingdom | M167: =_xlfn.XLOOKUP(A167,[1]Sheet1!AL:AL,[1]Sheet1!AH:AH,0) -> Fee | N167: =_xlfn.XLOOKUP(A167,[1]Sheet1!AL:AL,[1]Sheet1!AO:AO,0) -> Home to Host Ltd | P167: 20
A168: 146436883 | B168: 2023-05-31 | C168: '74568963151321504264313 | D168: SALE | E168: GBP | F168: 10 | G168: -0.08 | H168: 9.93 | I168: Domestic | L168: =_xlfn.XLOOKUP(A168,[1]Sheet1!AL:AL,[1]Sheet1!AT:AT,0) -> United Kingdom | M168: =_xlfn.XLOOKUP(A168,[1]Sheet1!AL:AL,[1]Sheet1!AH:AH,0) -> Fee | N168: =_xlfn.XLOOKUP(A168,[1]Sheet1!AL:AL,[1]Sheet1!AO:AO,0) -> Host & Stay North Yorkshire | P168: 20
A169: 157282953 | B169: 2023-08-01 | C169: '74568963213330088943081 | D169: REFUND | E169: GBP | F169: -500 | G169: -1 | H169: -501 | I169: Inter | M169: Deposit
A170: 157282967 | B170: 2023-08-01 | C170: '74568963213330088943099 | D170: REFUND | E170: GBP | F170: -10 | G170: -1 | H170: -11 | I170: Inter | L170: United Arab Emirates | M170: Fee | N170: Nox Rentals Bookings | P170: 0
A171: 146449089 | B171: 2023-05-31 | C171: '82717083151321504263471 | D171: SALE | E171: GBP | F171: 10 | G171: -0.08 | H171: 9.93 | I171: Domestic | L171: =_xlfn.XLOOKUP(A171,[1]Sheet1!AL:AL,[1]Sheet1!AT:AT,0) -> United Kingdom | M171: =_xlfn.XLOOKUP(A171,[1]Sheet1!AL:AL,[1]Sheet1!AH:AH,0) -> Fee | N171: =_xlfn.XLOOKUP(A171,[1]Sheet1!AL:AL,[1]Sheet1!AO:AO,0) -> Host & Stay North Yorkshire | P171: 20
A172: 146452777 | B172: 2023-05-31 | C172: '74568963151321504262853 | D172: SALE | E172: GBP | F172: 10 | G172: -0.08 | H172: 9.93 | I172: Domestic | L172: =_xlfn.XLOOKUP(A172,[1]Sheet1!AL:AL,[1]Sheet1!AT:AT,0) -> United Kingdom | M172: =_xlfn.XLOOKUP(A172,[1]Sheet1!AL:AL,[1]Sheet1!AH:AH,0) -> Fee | N172: =_xlfn.XLOOKUP(A172,[1]Sheet1!AL:AL,[1]Sheet1!AO:AO,0) -> Host & Stay North Yorkshire | P172: 20
A173: 146424495 | B173: 2023-05-31 | C173: '82717083151321504263356 | D173: SALE | E173: GBP | F173: 10 | G173: -0.08 | H173: 9.93 | I173: Domestic | L173: =_xlfn.XLOOKUP(A173,[1]Sheet1!AL:AL,[1]Sheet1!AT:AT,0) -> United Kingdom | M173: =_xlfn.XLOOKUP(A173,[1]Sheet1!AL:AL,[1]Sheet1!AH:AH,0) -> Fee | N173: =_xlfn.XLOOKUP(A173,[1]Sheet1!AL:AL,[1]Sheet1!AO:AO,0) -> Host & Stay North Yorkshire | P173: 20
A174: 146364331 | B174: 2023-05-31 | C174: '74568963151321504262325 | D174: SALE | E174: GBP | F174: 10 | G174: -0.08 | H174: 9.93 | I174: Domestic | L174: =_xlfn.XLOOKUP(A174,[1]Sheet1!AL:AL,[1]Sheet1!AT:AT,0) -> United Kingdom | M174: =_xlfn.XLOOKUP(A174,[1]Sheet1!AL:AL,[1]Sheet1!AH:AH,0) -> Fee | N174: =_xlfn.XLOOKUP(A174,[1]Sheet1!AL:AL,[1]Sheet1!AO:AO,0) -> Host & Stay North Yorkshire | P174: 20
A175: 146393409 | B175: 2023-05-31 | C175: '82717083151321504263737 | D175: SALE | E175: GBP | F175: 10 | G175: -0.08 | H175: 9.93 | I175: Domestic | L175: =_xlfn.XLOOKUP(A175,[1]Sheet1!AL:AL,[1]Sheet1!AT:AT,0) -> United Kingdom | M175: =_xlfn.XLOOKUP(A175,[1]Sheet1!AL:AL,[1]Sheet1!AH:AH,0) -> Fee | N175: =_xlfn.XLOOKUP(A175,[1]Sheet1!AL:AL,[1]Sheet1!AO:AO,0) -> Home to Host Ltd | P175: 20
A176: 146426295 | B176: 2023-05-31 | C176: '82717083151321504263885 | D176: SALE | E176: GBP | F176: 10 | G176: -0.08 | H176: 9.93 | I176: Domestic | L176: =_xlfn.XLOOKUP(A176,[1]Sheet1!AL:AL,[1]Sheet1!AT:AT,0) -> United Kingdom | M176: =_xlfn.XLOOKUP(A176,[1]Sheet1!AL:AL,[1]Sheet1!AH:AH,0) -> Fee | N176: =_xlfn.XLOOKUP(A176,[1]Sheet1!AL:AL,[1]Sheet1!AO:AO,0) -> Host & Stay North Yorkshire | P176: 20
A177: 146377841 | B177: 2023-05-31 | C177: '82717083151321504262978 | D177: SALE | E177: GBP | F177: 10 | G177: -0.08 | H177: 9.93 | I177: Domestic | L177: =_xlfn.XLOOKUP(A177,[1]Sheet1!AL:AL,[1]Sheet1!AT:AT,0) -> United Kingdom | M177: =_xlfn.XLOOKUP(A177,[1]Sheet1!AL:AL,[1]Sheet1!AH:AH,0) -> Fee | N177: =_xlfn.XLOOKUP(A177,[1]Sheet1!AL:AL,[1]Sheet1!AO:AO,0) -> Host & Stay North Yorkshire | P177: 20
A178: 146429179 | B178: 2023-05-31 | C178: '74568963151321504264263 | D178: SALE | E178: GBP | F178: 10 | G178: -0.08 | H178: 9.93 | I178: Domestic | L178: =_xlfn.XLOOKUP(A178,[1]Sheet1!AL:AL,[1]Sheet1!AT:AT,0) -> United Kingdom | M178: =_xlfn.XLOOKUP(A178,[1]Sheet1!AL:AL,[1]Sheet1!AH:AH,0) -> Fee | N178: =_xlfn.XLOOKUP(A178,[1]Sheet1!AL:AL,[1]Sheet1!AO:AO,0) -> DYZYN Living Bookings | P178: 20
A179: 146430079 | B179: 2023-05-31 | C179: '82717083151321504263935 | D179: SALE | E179: GBP | F179: 10 | G179: -0.08 | H179: 9.93 | I179: Domestic | L179: =_xlfn.XLOOKUP(A179,[1]Sheet1!AL:AL,[1]Sheet1!AT:AT,0) -> United Kingdom | M179: =_xlfn.XLOOKUP(A179,[1]Sheet1!AL:AL,[1]Sheet1!AH:AH,0) -> Fee | N179: =_xlfn.XLOOKUP(A179,[1]Sheet1!AL:AL,[1]Sheet1!AO:AO,0) -> Host & Stay North Yorkshire | P179: 20
A180: 146431417 | B180: 2023-05-31 | C180: '74568963151321504264271 | D180: SALE | E180: GBP | F180: 10 | G180: -0.08 | H180: 9.93 | I180: Domestic | L180: =_xlfn.XLOOKUP(A180,[1]Sheet1!AL:AL,[1]Sheet1!AT:AT,0) -> United Kingdom | M180: =_xlfn.XLOOKUP(A180,[1]Sheet1!AL:AL,[1]Sheet1!AH:AH,0) -> Fee | N180: =_xlfn.XLOOKUP(A180,[1]Sheet1!AL:AL,[1]Sheet1!AO:AO,0) -> Host & Stay North Yorkshire | P180: 20
A181: 146367395 | B181: 2023-05-31 | C181: '74568963151321504262358 | D181: SALE | E181: GBP | F181: 10 | G181: -0.08 | H181: 9.93 | I181: Domestic | L181: =_xlfn.XLOOKUP(A181,[1]Sheet1!AL:AL,[1]Sheet1!AT:AT,0) -> United Kingdom | M181: =_xlfn.XLOOKUP(A181,[1]Sheet1!AL:AL,[1]Sheet1!AH:AH,0) -> Fee | N181: =_xlfn.XLOOKUP(A181,[1]Sheet1!AL:AL,[1]Sheet1!AO:AO,0) -> Host & Stay North Yorkshire | P181: 20
A182: 146422631 | B182: 2023-05-31 | C182: '82717083151321504263349 | D182: SALE | E182: GBP | F182: 10 | G182: -0.24 | H182: 9.76 | I182: Inter | L182: =_xlfn.XLOOKUP(A182,[1]Sheet1!AL:AL,[1]Sheet1!AT:AT,0) -> Bahrain | M182: =_xlfn.XLOOKUP(A182,[1]Sheet1!AL:AL,[1]Sheet1!AH:AH,0) -> Fee | N182: =_xlfn.XLOOKUP(A182,[1]Sheet1!AL:AL,[1]Sheet1!AO:AO,0) -> Smarthost Bookings | P182: 0
A183: 146451255 | B183: 2023-05-31 | C183: '74568963151321504262838 | D183: SALE | E183: GBP | F183: 10 | G183: -0.08 | H183: 9.93 | I183: Domestic | L183: =_xlfn.XLOOKUP(A183,[1]Sheet1!AL:AL,[1]Sheet1!AT:AT,0) -> United Kingdom | M183: =_xlfn.XLOOKUP(A183,[1]Sheet1!AL:AL,[1]Sheet1!AH:AH,0) -> Fee | N183: =_xlfn.XLOOKUP(A183,[1]Sheet1!AL:AL,[1]Sheet1!AO:AO,0) -> Host & Stay North Yorkshire | P183: 20
A184: 146437239 | B184: 2023-05-31 | C184: '82717083151321504263430 | D184: SALE | E184: GBP | F184: 10 | G184: -0.08 | H184: 9.93 | I184: Domestic | L184: =_xlfn.XLOOKUP(A184,[1]Sheet1!AL:AL,[1]Sheet1!AT:AT,0) -> United Kingdom | M184: =_xlfn.XLOOKUP(A184,[1]Sheet1!AL:AL,[1]Sheet1!AH:AH,0) -> Fee | N184: =_xlfn.XLOOKUP(A184,[1]Sheet1!AL:AL,[1]Sheet1!AO:AO,0) -> Host & Stay North Yorkshire | P184: 20
A185: 146423827 | B185: 2023-05-31 | C185: '82717083151321504263877 | D185: SALE | E185: GBP | F185: 10 | G185: -0.08 | H185: 9.93 | I185: Domestic | L185: =_xlfn.XLOOKUP(A185,[1]Sheet1!AL:AL,[1]Sheet1!AT:AT,0) -> United Kingdom | M185: =_xlfn.XLOOKUP(A185,[1]Sheet1!AL:AL,[1]Sheet1!AH:AH,0) -> Fee | N185: =_xlfn.XLOOKUP(A185,[1]Sheet1!AL:AL,[1]Sheet1!AO:AO,0) -> Host & Stay North Yorkshire | P185: 20
A186: 146419295 | B186: 2023-05-31 | C186: '82717083151321504263836 | D186: SALE | E186: GBP | F186: 10 | G186: -0.08 | H186: 9.93 | I186: Domestic | L186: =_xlfn.XLOOKUP(A186,[1]Sheet1!AL:AL,[1]Sheet1!AT:AT,0) -> United Kingdom | M186: =_xlfn.XLOOKUP(A186,[1]Sheet1!AL:AL,[1]Sheet1!AH:AH,0) -> Fee | N186: =_xlfn.XLOOKUP(A186,[1]Sheet1!AL:AL,[1]Sheet1!AO:AO,0) -> Home to Host Ltd | P186: 20
A187: 146391021 | B187: 2023-05-31 | C187: '82717083151321504263711 | D187: SALE | E187: GBP | F187: 10 | G187: -0.08 | H187: 9.93 | I187: Domestic | L187: =_xlfn.XLOOKUP(A187,[1]Sheet1!AL:AL,[1]Sheet1!AT:AT,0) -> United Kingdom | M187: =_xlfn.XLOOKUP(A187,[1]Sheet1!AL:AL,[1]Sheet1!AH:AH,0) -> Fee | N187: =_xlfn.XLOOKUP(A187,[1]Sheet1!AL:AL,[1]Sheet1!AO:AO,0) -> Host & Stay North Yorkshire | P187: 20
A188: 146446571 | B188: 2023-05-31 | C188: '74568963151321504262812 | D188: SALE | E188: GBP | F188: 10 | G188: -0.08 | H188: 9.93 | I188: Domestic | L188: =_xlfn.XLOOKUP(A188,[1]Sheet1!AL:AL,[1]Sheet1!AT:AT,0) -> United Kingdom | M188: =_xlfn.XLOOKUP(A188,[1]Sheet1!AL:AL,[1]Sheet1!AH:AH,0) -> Fee | N188: =_xlfn.XLOOKUP(A188,[1]Sheet1!AL:AL,[1]Sheet1!AO:AO,0) -> Home to Host Ltd | P188: 20
A189: 146376215 | B189: 2023-05-31 | C189: '82717083151321504263604 | D189: SALE | E189: GBP | F189: 10 | G189: -0.08 | H189: 9.93 | I189: Domestic | L189: =_xlfn.XLOOKUP(A189,[1]Sheet1!AL:AL,[1]Sheet1!AT:AT,0) -> United Kingdom | M189: =_xlfn.XLOOKUP(A189,[1]Sheet1!AL:AL,[1]Sheet1!AH:AH,0) -> Fee | N189: =_xlfn.XLOOKUP(A189,[1]Sheet1!AL:AL,[1]Sheet1!AO:AO,0) -> Host & Stay North Yorkshire | P189: 20
A190: 146406769 | B190: 2023-05-31 | C190: '74568963151321504262598 | D190: SALE | E190: GBP | F190: 10 | G190: -0.08 | H190: 9.93 | I190: Domestic | L190: =_xlfn.XLOOKUP(A190,[1]Sheet1!AL:AL,[1]Sheet1!AT:AT,0) -> United Kingdom | M190: =_xlfn.XLOOKUP(A190,[1]Sheet1!AL:AL,[1]Sheet1!AH:AH,0) -> Fee | N190: =_xlfn.XLOOKUP(A190,[1]Sheet1!AL:AL,[1]Sheet1!AO:AO,0) -> Host & Stay North Yorkshire | P190: 20
A191: 146428517 | B191: 2023-05-31 | C191: '82717083151321504263901 | D191: SALE | E191: GBP | F191: 10 | G191: -0.08 | H191: 9.93 | I191: Domestic | L191: =_xlfn.XLOOKUP(A191,[1]Sheet1!AL:AL,[1]Sheet1!AT:AT,0) -> United Kingdom | M191: =_xlfn.XLOOKUP(A191,[1]Sheet1!AL:AL,[1]Sheet1!AH:AH,0) -> Fee | N191: =_xlfn.XLOOKUP(A191,[1]Sheet1!AL:AL,[1]Sheet1!AO:AO,0) -> Out of Office Solutions Limited | P191: 20
A192: 146434761 | B192: 2023-05-31 | C192: '74568963151321504264297 | D192: SALE | E192: GBP | F192: 10 | G192: -0.08 | H192: 9.93 | I192: Domestic | L192: =_xlfn.XLOOKUP(A192,[1]Sheet1!AL:AL,[1]Sheet1!AT:AT,0) -> United Kingdom | M192: =_xlfn.XLOOKUP(A192,[1]Sheet1!AL:AL,[1]Sheet1!AH:AH,0) -> Fee | N192: =_xlfn.XLOOKUP(A192,[1]Sheet1!AL:AL,[1]Sheet1!AO:AO,0) -> Home to Host Ltd | P192: 20
A193: 146447571 | B193: 2023-05-31 | C193: '82717083151321504264008 | D193: SALE | E193: GBP | F193: 10 | G193: -0.08 | H193: 9.93 | I193: Domestic | L193: =_xlfn.XLOOKUP(A193,[1]Sheet1!AL:AL,[1]Sheet1!AT:AT,0) -> United Kingdom | M193: =_xlfn.XLOOKUP(A193,[1]Sheet1!AL:AL,[1]Sheet1!AH:AH,0) -> Fee | N193: =_xlfn.XLOOKUP(A193,[1]Sheet1!AL:AL,[1]Sheet1!AO:AO,0) -> Host & Stay North Yorkshire | P193: 20
A194: 146388749 | B194: 2023-05-31 | C194: '82717083151321504263141 | D194: SALE | E194: GBP | F194: 10 | G194: -0.08 | H194: 9.93 | I194: Domestic | L194: =_xlfn.XLOOKUP(A194,[1]Sheet1!AL:AL,[1]Sheet1!AT:AT,0) -> United Kingdom | M194: =_xlfn.XLOOKUP(A194,[1]Sheet1!AL:AL,[1]Sheet1!AH:AH,0) -> Fee | N194: =_xlfn.XLOOKUP(A194,[1]Sheet1!AL:AL,[1]Sheet1!AO:AO,0) -> Host & Stay North Yorkshire | P194: 20
A195: 146457441 | B195: 2023-05-31 | C195: '74568963151321504262903 | D195: SALE | E195: GBP | F195: 10 | G195: -0.08 | H195: 9.93 | I195: Domestic | L195: =_xlfn.XLOOKUP(A195,[1]Sheet1!AL:AL,[1]Sheet1!AT:AT,0) -> United Kingdom | M195: =_xlfn.XLOOKUP(A195,[1]Sheet1!AL:AL,[1]Sheet1!AH:AH,0) -> Fee | N195: =_xlfn.XLOOKUP(A195,[1]Sheet1!AL:AL,[1]Sheet1!AO:AO,0) -> Host & Stay North Yorkshire | P195: 20
A196: 146384969 | B196: 2023-05-31 | C196: '74568963151321504262408 | D196: SALE | E196: GBP | F196: 10 | G196: -0.08 | H196: 9.93 | I196: Domestic | L196: =_xlfn.XLOOKUP(A196,[1]Sheet1!AL:AL,[1]Sheet1!AT:AT,0) -> United Kingdom | M196: =_xlfn.XLOOKUP(A196,[1]Sheet1!AL:AL,[1]Sheet1!AH:AH,0) -> Fee | N196: =_xlfn.XLOOKUP(A196,[1]Sheet1!AL:AL,[1]Sheet1!AO:AO,0) -> Host & Stay North Yorkshire | P196: 20
A197: 146429787 | B197: 2023-05-31 | C197: '82717083151321504263927 | D197: SALE | E197: GBP | F197: 10 | G197: -0.08 | H197: 9.93 | I197: Domestic | L197: =_xlfn.XLOOKUP(A197,[1]Sheet1!AL:AL,[1]Sheet1!AT:AT,0) -> United Kingdom | M197: =_xlfn.XLOOKUP(A197,[1]Sheet1!AL:AL,[1]Sheet1!AH:AH,0) -> Fee | N197: =_xlfn.XLOOKUP(A197,[1]Sheet1!AL:AL,[1]Sheet1!AO:AO,0) -> Host & Stay North Yorkshire | P197: 20
A198: 146440767 | B198: 2023-05-31 | C198: '74568963151321504264347 | D198: SALE | E198: GBP | F198: 10 | G198: -0.08 | H198: 9.93 | I198: Domestic | L198: =_xlfn.XLOOKUP(A198,[1]Sheet1!AL:AL,[1]Sheet1!AT:AT,0) -> United Kingdom | M198: =_xlfn.XLOOKUP(A198,[1]Sheet1!AL:AL,[1]Sheet1!AH:AH,0) -> Fee | N198: =_xlfn.XLOOKUP(A198,[1]Sheet1!AL:AL,[1]Sheet1!AO:AO,0) -> Host & Stay North Yorkshire | P198: 20
A199: 160010067 | B199: 2023-08-17 | C199: '74568963229332238700561 | D199: SALE | E199: GBP | F199: 30 | G199: -0.22 | H199: 29.78 | I199: Domestic | L199: =_xlfn.XLOOKUP(A199,[1]Sheet1!F:F,[1]Sheet1!AB:AB,0) -> United Kingdom | M199: =_xlfn.XLOOKUP(A199,[1]Sheet1!F:F,[1]Sheet1!B:B,0) -> Waiver | N199: =_xlfn.XLOOKUP(A199,[1]Sheet1!F:F,[1]Sheet1!W:W,0) -> HNFC Stays Bookings | O199: CLIENT | P199: 20 | Q199: =F199-R199 -> 25 | R199: 5
A200: 160033233 | B200: 2023-08-17 | C200: '74568963229332238700785 | D200: SALE | E200: GBP | F200: 30 | G200: -0.72 | H200: 29.28 | I200: Inter | L200: =_xlfn.XLOOKUP(A200,[1]Sheet1!F:F,[1]Sheet1!AB:AB,0) -> Bahrain | M200: =_xlfn.XLOOKUP(A200,[1]Sheet1!F:F,[1]Sheet1!B:B,0) -> Waiver | N200: =_xlfn.XLOOKUP(A200,[1]Sheet1!F:F,[1]Sheet1!W:W,0) -> HNFC Stays Bookings | O200: CLIENT | P200: 20 | Q200: 25 | R200: 5
... 4299 more rows

Sheet Summary
B1: Gross | C1: Fees | D1: Settled Amount
A2: Transaction Fees UK | B2: =SUMIFS(in!F:F,in!D:D,"SALE",in!L:L,"United kingdom",in!M:M,"fee",in!P:P,"20") -> 15151 | C2: =SUMIFS(in!G:G,in!D:D,"sale",in!P:P,"20",in!M:M,"fee") -> -110.83 | D2: =SUM(B2:C2) -> 15040.17
A3: Transaction Fees NO VAT | B3: =SUMIFS(in!F:F,in!D:D,"SALE",in!M:M,"fee",in!P:P,"0") -> 951.5 | C3: =SUMIFS(in!G:G,in!D:D,"sale",in!P:P,"0",in!M:M,"fee") -> -20.1 | D3: 931.4
A4: Transaction Fees France | B4: =SUMIFS(in!F:F,in!D:D,"sale",in!L:L,"France",in!M:M,"fee") -> 77 | C4: =SUMIFS(in!G:G,in!D:D,"sale",in!L:L,"france",in!M:M,"fee") -> -0.57 | D4: 76.43
A5: Transaction Fees Lithuania | B5: =SUMIFS(in!F:F,in!D:D,"sale",in!L:L,"Lithuania",in!M:M,"fee") -> 0 | C5: =SUMIFS(in!G:G,in!D:D,"sale",in!L:L,"Lithuania",in!M:M,"fee") -> 0 | D5: 0
A6: Transaction Fees Croatia | B6: =SUMIFS(in!F:F,in!D:D,"sale",in!L:L,"Croatia",in!M:M,"fee") -> 0 | C6: =SUMIFS(in!G:G,in!D:D,"sale",in!L:L,"Croatia",in!M:M,"fee") -> 0 | D6: 0
A7: Transaction Fees Estonia | B7: =SUMIFS(in!F:F,in!D:D,"sale",in!L:L,"Estonia",in!M:M,"fee") -> 0 | C7: =SUMIFS(in!G:G,in!D:D,"sale",in!L:L,"Estonia",in!M:M,"fee") -> 0 | D7: 0
A8: Transaction Fees Latvia | B8: =SUMIFS(in!F:F,in!D:D,"sale",in!L:L,"Latvia",in!M:M,"fee") -> 0 | C8: =SUMIFS(in!G:G,in!D:D,"sale",in!L:L,"Latvia",in!M:M,"fee") -> 0 | D8: 0
A9: Transaction Fees Cyprus | B9: =SUMIFS(in!F:F,in!D:D,"sale",in!L:L,"Cyprus",in!M:M,"fee") -> 0 | C9: =SUMIFS(in!G:G,in!D:D,"sale",in!L:L,"cyprus",in!M:M,"fee") -> 0 | D9: 0
A10: TransactionFees Hungary | B10: =SUMIFS(in!F:F,in!D:D,"sale",in!L:L,"Hungary",in!M:M,"fee") -> 0 | C10: =SUMIFS(in!G:G,in!D:D,"sale",in!L:L,"Hungary",in!M:M,"fee") -> 0 | D10: 0
A11: Transaction Fees Belgium | B11: =SUMIFS(in!F:F,in!D:D,"sale",in!L:L,"Belgium",in!M:M,"fee") -> 0 | C11: =SUMIFS(in!G:G,in!D:D,"sale",in!L:L,"Belgium",in!M:M,"fee") -> 0 | D11: 0
A12: Transaction Fees Spain | B12: =SUMIFS(in!F:F,in!D:D,"sale",in!L:L,"Spain",in!M:M,"fee") -> 0 | C12: =SUMIFS(in!G:G,in!D:D,"sale",in!L:L,"Spain",in!M:M,"fee") -> 0 | D12: 0
A13: Transaction Fees Netherlands | B13: =SUMIFS(in!F:F,in!D:D,"sale",in!L:L,"Netherlands",in!M:M,"fee") -> 10 | C13: =SUMIFS(in!G:G,in!D:D,"sale",in!L:L,"Netherlands",in!M:M,"fee") -> -0.07 | D13: 9.93
A14: Transaction Fees Denmark | B14: =SUMIFS(in!F:F,in!D:D,"sale",in!L:L,"Denmark",in!M:M,"fee") -> 0 | C14: =SUMIFS(in!G:G,in!D:D,"sale",in!L:L,"Denmark",in!M:M,"fee") -> 0 | D14: 0
A15: Transaction Fees Ireland | B15: =SUMIFS(in!F:F,in!D:D,"sale",in!L:L,"Ireland",in!M:M,"fee") -> 0 | C15: =SUMIFS(in!G:G,in!D:D,"sale",in!L:L,"Ireland",in!M:M,"fee") -> 0 | D15: 0
A16: Transaction Fees Greece | B16: =SUMIFS(in!F:F,in!D:D,"sale",in!L:L,"Greece",in!M:M,"fee") -> 10 | C16: =SUMIFS(in!G:G,in!D:D,"sale",in!L:L,"Greece",in!M:M,"fee") -> -0.07 | D16: 9.93
A17: Transaction fees Austria | B17: =SUMIFS(in!F:F,in!D:D,"sale",in!L:L,"Austria",in!M:M,"fee") -> 0 | C17: =SUMIFS(in!G:G,in!D:D,"sale",in!L:L,"Austria",in!M:M,"fee") -> 0 | D17: 0
A18: Transaction Fee Finland | B18: =SUMIFS(in!F:F,in!D:D,"sale",in!L:L,"Finland",in!M:M,"fee") -> 0 | C18: =SUMIFS(in!G:G,in!D:D,"sale",in!L:L,"Finland",in!M:M,"fee") -> 0 | D18: 0
A19: Transaction Fees Poland | B19: =SUMIFS(in!F:F,in!D:D,"sale",in!L:L,"Poland",in!M:M,"fee") -> 0 | C19: =SUMIFS(in!G:G,in!D:D,"sale",in!L:L,"Poland",in!M:M,"fee") -> 0 | D19: 0
A20: Transaction fee Slovakia | B20: =SUMIFS(in!F:F,in!D:D,"sale",in!L:L,"Slovakia",in!M:M,"fee") -> 0 | C20: =SUMIFS(in!G:G,in!D:D,"sale",in!L:L,"Slovakia",in!M:M,"fee") -> 0 | D20: 0
A21: Transaction Fee Slovenia | B21: =SUMIFS(in!F:F,in!D:D,"sale",in!L:L,"Slovenia",in!M:M,"fee") -> 0 | C21: =SUMIFS(in!G:G,in!D:D,"sale",in!L:L,"Slovenia",in!M:M,"fee") -> 0 | D21: 0
A22: Transaction fee Bulgaria | B22: =SUMIFS(in!F:F,in!D:D,"sale",in!L:L,"Bulgaria",in!M:M,"fee") -> 0 | C22: =SUMIFS(in!G:G,in!D:D,"sale",in!L:L,"Bulgaria",in!M:M,"fee") -> 0 | D22: 0
A23: Transaction fees Luxembourg | B23: =SUMIFS(in!F:F,in!D:D,"sale",in!L:L,"Luxembourg",in!M:M,"fee") -> 0 | C23: =SUMIFS(in!G:G,in!D:D,"sale",in!L:L,"Luxembourg",in!M:M,"fee") -> 0 | D23: 0
A24: Transaction fees Portugal | B24: =SUMIFS(in!F:F,in!D:D,"sale",in!L:L,"Portugal",in!M:M,"fee") -> 0 | C24: =SUMIFS(in!G:G,in!D:D,"sale",in!L:L,"Portugal",in!M:M,"fee") -> 0 | D24: 0
A25: Transaction fees Malta | B25: =SUMIFS(in!F:F,in!D:D,"sale",in!L:L,"Malta",in!M:M,"fee") -> 0 | C25: =SUMIFS(in!G:G,in!D:D,"sale",in!L:L,"Malta",in!M:M,"fee") -> 0 | D25: 0
A26: Transaction Fees Italy | B26: =SUMIFS(in!F:F,in!D:D,"sale",in!L:L,"Italy",in!M:M,"fee") -> 0 | C26: =SUMIFS(in!G:G,in!D:D,"sale",in!L:L,"Italy",in!M:M,"fee") -> 0 | D26: 0
A27: Transaction Fees Sweden | B27: =SUMIFS(in!F:F,in!D:D,"sale",in!L:L,"Sweden",in!M:M,"fee") -> 0 | C27: =SUMIFS(in!G:G,in!D:D,"sale",in!L:L,"Sweden",in!M:M,"fee") -> 0 | D27: 0
A28: Transaction Fees Czech Republic | B28: =SUMIFS(in!F:F,in!D:D,"sale",in!L:L,"Czech Republic",in!M:M,"fee") -> 0 | C28: =SUMIFS(in!G:G,in!D:D,"sale",in!L:L,"Czech Republic",in!M:M,"fee") -> 0 | D28: 0
A29: Transactions fee Romania | B29: =SUMIFS(in!F:F,in!D:D,"sale",in!L:L,"Romania",in!M:M,"fee") -> 0 | C29: =SUMIFS(in!G:G,in!D:D,"sale",in!L:L,"Romania",in!M:M,"fee") -> 0 | D29: 0
A30: Transaction Fees Germany | B30: =SUMIFS(in!F:F,in!D:D,"sale",in!L:L,"Germany",in!M:M,"fee") -> 0 | C30: =SUMIFS(in!G:G,in!D:D,"sale",in!L:L,"Germany",in!M:M,"fee") -> 0 | D30: 0
A31: Waiver Fees UK | B31: =SUMIFS(in!F:F,in!D:D,"SALE",in!L:L,"United Kingdom",in!O:O,"SH") -> 7160 | C31: =SUMIFS(in!G:G,in!D:D,"sale",in!P:P,"20",in!M:M,"WAIVER",in!O:O,"sh") -> -56.6 | D31: 7103.4
A32: Waiver Fees NO VAT | B32: =SUMIFS(in!F:F,in!D:D,"SALE",in!M:M,"Waiver",in!O:O,"SH",in!P:P,"0") -> 1528 | C32: =SUMIFS(in!G:G,in!D:D,"sale",in!P:P,"0",in!M:M,"WAIVER",in!O:O,"sh") -> -33.36 | D32: 1494.64
A33: Waiver Fees to PMC'S UK | B33: =SUMIFS(in!Q:Q,in!D:D,"SALE",in!M:M,"Waiver",in!O:O,"CLIENT",in!P:P,"20") -> 109299.87 | C33: =SUMIFS(in!G:G,in!D:D,"sale",in!M:M,"waiver",in!O:O,"client",in!P:P,"20") -> -1022.52 | D33: 108277.35
A34: SH Commision waiver to PMC | B34: =SUMIFS(in!R:R,in!D:D,"sale",in!M:M,"waiver") -> 14871.52 | C34: 0 | D34: 14871.52
A35: Waiver Fees to PMC'S NON UK | B35: =SUMIFS(in!Q:Q,in!D:D,"Sale",in!O:O,"Client",in!P:P,"0") -> 6415.61 | C35: =SUMIFS(in!G:G,in!D:D,"sale",in!M:M,"waiver",in!O:O,"client",in!P:P,"0") -> -120.2 | D35: 6295.41
A36: Waiver Fee Czech Republic | B36: =SUMIFS(in!F:F,in!D:D,"sale",in!L:L,"Czech Republic",in!M:M,"WAIVER",in!O:O,"SH") -> 0 | C36: =SUMIFS(in!G:G,in!D:D,"sale",in!L:L,"Czech Republic",in!M:M,"WAIVER",in!O:O,"SH") -> 0 | D36: 0
A37: Waiver Fee France | B37: =SUMIFS(in!F:F,in!D:D,"sale",in!L:L,"France",in!M:M,"WAIVER",in!O:O,"SH") -> 0 | C37: =SUMIFS(in!G:G,in!D:D,"sale",in!L:L,"France",in!M:M,"WAIVER",in!O:O,"SH") -> 0 | D37: 0 | G37: =SUM(B33+B35) -> 115715.48
A38: Waiver Fee Hungary | B38: =SUMIFS(in!F:F,in!D:D,"sale",in!L:L,"Hungary",in!M:M,"WAIVER",in!O:O,"SH") -> 0 | C38: =SUMIFS(in!G:G,in!D:D,"sale",in!L:L,"Hungary",in!M:M,"WAIVER",in!O:O,"SH") -> 0 | D38: 0
A39: Waiver Fees Spain | B39: =SUMIFS(in!F:F,in!D:D,"sale",in!L:L,"Spain",in!M:M,"WAIVER",in!O:O,"SH") -> 0 | C39: =SUMIFS(in!G:G,in!D:D,"sale",in!L:L,"Spain",in!M:M,"WAIVER",in!O:O,"SH") -> 0 | D39: 0
A40: Waiver Fees Netherlands | B40: =SUMIFS(in!F:F,in!D:D,"sale",in!L:L,"Netherlands",in!M:M,"WAIVER",in!O:O,"SH") -> 0 | C40: =SUMIFS(in!G:G,in!D:D,"sale",in!L:L,"Netherlands",in!M:M,"WAIVER",in!O:O,"SH") -> 0 | D40: 0
A41: Waiver Fees Croatia | B41: =SUMIFS(in!F:F,in!D:D,"sale",in!L:L,"Croatia",in!M:M,"WAIVER",in!O:O,"SH") -> 0 | C41: =SUMIFS(in!G:G,in!D:D,"sale",in!L:L,"Croatia",in!M:M,"WAIVER",in!O:O,"SH") -> 0 | D41: 0
A42: Waiver Fees Bulgaria | B42: =SUMIFS(in!F:F,in!D:D,"sale",in!L:L,"Bulgaria",in!M:M,"WAIVER",in!O:O,"SH") -> 0 | C42: =SUMIFS(in!G:G,in!D:D,"sale",in!L:L,"Bulgaria",in!M:M,"WAIVER",in!O:O,"SH") -> 0 | D42: 0
A43: Waiver Fees Ireland | B43: =SUMIFS(in!F:F,in!D:D,"sale",in!L:L,"Ireland",in!M:M,"WAIVER",in!O:O,"SH") -> 0 | C43: =SUMIFS(in!G:G,in!D:D,"sale",in!L:L,"Ireland",in!M:M,"WAIVER",in!O:O,"SH") -> 0 | D43: 0
A44: Waiver Fees Denmark | B44: =SUMIFS(in!F:F,in!D:D,"sale",in!L:L,"Denmark",in!M:M,"WAIVER",in!O:O,"SH") -> 0 | C44: =SUMIFS(in!G:G,in!D:D,"sale",in!L:L,"Denmark",in!M:M,"WAIVER",in!O:O,"SH") -> 0 | D44: 0
A45: Waiver fees Austria | B45: =SUMIFS(in!F:F,in!D:D,"sale",in!L:L,"Austria",in!M:M,"WAIVER",in!O:O,"SH") -> 0 | C45: =SUMIFS(in!G:G,in!D:D,"sale",in!L:L,"Austria",in!M:M,"WAIVER",in!O:O,"SH") -> 0 | D45: 0
A46: Waiver Fee Finland | B46: =SUMIFS(in!F:F,in!D:D,"sale",in!L:L,"Finland",in!M:M,"WAIVER",in!O:O,"SH") -> 0 | C46: =SUMIFS(in!G:G,in!D:D,"sale",in!L:L,"Finland",in!M:M,"WAIVER",in!O:O,"SH") -> 0 | D46: 0
A47: Waiver Fee Greece | B47: =SUMIFS(in!F:F,in!D:D,"sale",in!L:L,"Greece",in!M:M,"WAIVER",in!O:O,"SH") -> 0 | C47: =SUMIFS(in!G:G,in!D:D,"sale",in!L:L,"Greece",in!M:M,"WAIVER",in!O:O,"SH") -> 0 | D47: 0
A48: Waiver Fee Estonia | B48: =SUMIFS(in!F:F,in!D:D,"sale",in!L:L,"Estonia",in!M:M,"WAIVER",in!O:O,"SH") -> 0 | C48: =SUMIFS(in!G:G,in!D:D,"sale",in!L:L,"Estonia",in!M:M,"WAIVER",in!O:O,"SH") -> 0 | D48: 0
A49: Waiver Fees Luxembourg | B49: =SUMIFS(in!F:F,in!D:D,"sale",in!L:L,"Luxembourg",in!M:M,"WAIVER",in!O:O,"SH") -> 0 | C49: =SUMIFS(in!G:G,in!D:D,"sale",in!L:L,"Luxembourg",in!M:M,"WAIVER",in!O:O,"SH") -> 0 | D49: 0
A50: Waiver Fees Italy | B50: =SUMIFS(in!F:F,in!D:D,"sale",in!L:L,"Italy",in!M:M,"WAIVER",in!O:O,"SH") -> 0 | C50: =SUMIFS(in!G:G,in!D:D,"sale",in!L:L,"Italy",in!M:M,"WAIVER",in!O:O,"SH") -> 0 | D50: 0
A51: Waiver Fees Malta | B51: =SUMIFS(in!F:F,in!D:D,"sale",in!L:L,"Malta",in!M:M,"WAIVER",in!O:O,"SH") -> 0 | C51: =SUMIFS(in!G:G,in!D:D,"sale",in!L:L,"Malta",in!M:M,"WAIVER",in!O:O,"SH") -> 0 | D51: 0
A52: Waiver Fees Portugal | B52: =SUMIFS(in!F:F,in!D:D,"sale",in!L:L,"Portugal",in!M:M,"WAIVER",in!O:O,"SH") -> 0 | C52: =SUMIFS(in!G:G,in!D:D,"sale",in!L:L,"Portugal",in!M:M,"WAIVER",in!O:O,"SH") -> 0 | D52: 0
A53: Waiver Fees Germany | B53: =SUMIFS(in!F:F,in!D:D,"sale",in!L:L,"Germany",in!M:M,"WAIVER",in!O:O,"SH") -> 0 | C53: =SUMIFS(in!G:G,in!D:D,"sale",in!L:L,"Germany",in!M:M,"WAIVER",in!O:O,"SH") -> 0 | D53: 0
A54: Waiver Fees Poland | B54: =SUMIFS(in!F:F,in!D:D,"sale",in!L:L,"Poland",in!M:M,"WAIVER",in!O:O,"SH") -> 0 | C54: =SUMIFS(in!G:G,in!D:D,"sale",in!L:L,"Poland",in!M:M,"WAIVER",in!O:O,"SH") -> 0 | D54: 0
A55: Waiver Fees Cyprus | B55: =SUMIFS(in!F:F,in!D:D,"sale",in!L:L,"Cyprus",in!M:M,"WAIVER",in!O:O,"SH") -> 0 | C55: =SUMIFS(in!G:G,in!D:D,"sale",in!L:L,"Cyprus",in!M:M,"WAIVER",in!O:O,"SH") -> 0 | D55: 0
A56: Waiver Fees Romania | B56: =SUMIFS(in!F:F,in!D:D,"sale",in!L:L,"Romania",in!M:M,"WAIVER",in!O:O,"SH") -> 0 | C56: =SUMIFS(in!G:G,in!D:D,"sale",in!L:L,"Romania",in!M:M,"WAIVER",in!O:O,"SH") -> 0 | D56: 0
A57: Waiver Fees Lithuania | B57: =SUMIFS(in!F:F,in!D:D,"sale",in!L:L,"Lithuania",in!M:M,"WAIVER",in!O:O,"SH") -> 0 | C57: =SUMIFS(in!G:G,in!D:D,"sale",in!L:L,"Lithuania",in!M:M,"WAIVER",in!O:O,"SH") -> 0 | D57: 0
A58: Waiver Fees Sweden | B58: =SUMIFS(in!F:F,in!D:D,"sale",in!L:L,"Sweden",in!M:M,"WAIVER",in!O:O,"SH") -> 0 | C58: =SUMIFS(in!G:G,in!D:D,"sale",in!L:L,"Sweden",in!M:M,"WAIVER",in!O:O,"SH") -> 0 | D58: 0
A59: Waiver Fees Slovakia | B59: =SUMIFS(in!F:F,in!D:D,"sale",in!L:L,"Slovakia",in!M:M,"WAIVER",in!O:O,"SH") -> 0 | C59: =SUMIFS(in!G:G,in!D:D,"sale",in!L:L,"Slovakia",in!M:M,"WAIVER",in!O:O,"SH") -> 0 | D59: 0
A60: Waiver Fees Slovenia | B60: =SUMIFS(in!F:F,in!D:D,"sale",in!L:L,"Slovenia",in!M:M,"WAIVER",in!O:O,"SH") -> 0 | C60: =SUMIFS(in!G:G,in!D:D,"sale",in!L:L,"Slovenia",in!M:M,"WAIVER",in!O:O,"SH") -> 0 | D60: 0
A61: Waiver Fees Latvia | B61: =SUMIFS(in!F:F,in!D:D,"sale",in!L:L,"Latvia",in!M:M,"WAIVER",in!O:O,"SH") -> 0 | C61: =SUMIFS(in!G:G,in!D:D,"sale",in!L:L,"Latvia",in!M:M,"WAIVER",in!O:O,"SH") -> 0 | D61: 0
A62: Waiver Fees Belguim | B62: =SUMIFS(in!F:F,in!D:D,"sale",in!L:L,"Belgium",in!M:M,"WAIVER",in!O:O,"SH") -> 0 | C62: =SUMIFS(in!G:G,in!D:D,"sale",in!L:L,"Belgium",in!M:M,"WAIVER",in!O:O,"SH") -> 0 | D62: 0
A63: Deposits received | B63: =SUMIFS(in!F:F,in!D:D,"Sale",in!M:M,"deposit") -> 473100 | C63: =SUMIFS(in!G:G,in!D:D,"Sale",in!M:M,"deposit") -> -4106.72 | D63: 468993.28
A64: Deposits refunded | B64: =SUMIFS(in!F:F,in!D:D,"refund",in!M:M,"deposit") -> -462978.98 | C64: =SUMIFS(in!G:G,in!D:D,"refund",in!M:M,"deposit") -> -1601 | D64: -464579.98
A65: Refund Fees uk | B65: =SUMIFS(in!F:F,in!D:D,"refund",in!L:L,"UNITED KINGDOM",in!M:M,"fee") -> -25 | C65: =SUMIFS(in!G:G,in!D:D,"refund",in!L:L,"UNITED KINGDOM",in!M:M,"fee") -> -3 | D65: -28
A66: Refund Fees non UK | B66: =SUMIFS(in!F:F,in!D:D,"refund",in!M:M,"fee",in!P:P,"0") -> -10 | C66: =SUMIFS(in!G:G,in!D:D,"refund",in!M:M,"fee",in!P:P,"0") -> -1 | D66: =SUM(B66:C66) -> -11
A67: Refund Fees France | B67: =SUMIFS(in!F:F,in!D:D,"refund",in!L:L,"France",in!M:M,"fee") -> 0 | C67: =SUMIFS(in!G:G,in!D:D,"refund",in!L:L,"France",in!M:M,"fee") -> 0 | D67: 0
A68: Refund Waiver Germany | B68: =SUMIFS(in!F:F,in!D:D,"refund",in!L:L,"Germany",in!M:M,"Waiver") -> 0 | C68: =SUMIFS(in!G:G,in!D:D,"refund",in!L:L,"Germany",in!M:M,"Waiver") -> 0 | D68: 0
A69: Refund Waiver UK | B69: =SUMIFS(in!F:F,in!D:D,"refund",in!L:L,"United Kingdom",in!M:M,"WAIVER",in!P:P,"20") -> -25 | C69: =SUMIFS(in!G:G,in!D:D,"refund",in!L:L,"United Kingdom",in!M:M,"Waiver") -> -2 | D69: -27
A70: Refund Waiver non UK | B70: =SUMIFS(in!F:F,in!D:D,"refund",in!M:M,"Waiver",in!P:P,"0") -> -30 | C70: =SUMIFS(in!G:G,in!D:D,"refund",in!M:M,"Waiver",in!P:P,"0") -> -1 | D70: -31
A71: Consolidated Auth Fee | B71: =SUMIFS(in!F:F,in!D:D,"Consolidated Auth Fee") -> 0 | D71: 0
A72: Dispute Reversal | B72: =SUMIFS(in!F:F,in!D:D,"Dispute Reversal") -> 0 | D72: 0
A73: DISPUTES | B73: =SUMIFS(in!F:F,in!D:D,"Dispute") -> -1324.7 | D73: -1324.7
A74: Dispute Fee | B74: =SUMIFS(in!F:F,in!D:D,"Dispute Fee") -> -100 | D74: =SUM(B74:C74) -> -100
A75: Manual ADJ | B75: =SUMIFS(in!F:F,in!D:D,"Manual Adjustment") -> -4.31 | D75: -4.31
A76: VISA 3DS Fees | B76: =SUMIFS(in!F:F,in!D:D,"VISA 3DS fees") -> -103.68 | D76: -103.68
A77: WIRE Fees | B77: =SUMIFS(in!F:F,in!D:D,"Wire fee") -> -5 | C77: 0 | D77: =SUM(B77:C77) -> -5
A78: Dispute Response | B78: =SUMIFS(in!F:F,in!D:D,"Dispute Response") -> 1839.45 | D78: =SUM(B78) -> 1839.45
A79: Dispute Lost | B79: =SUMIFS(in!F:F,in!D:D,"Dispute Lost") -> 0 | D79: =B79 -> 0
A80: PRE-ARBITRATION | B80: =SUMIFS(in!F:F,in!D:D,"PRE-ARBITRATION") -> 0 | D80: =SUM(B80:C80) -> 0
A81: =SUBTOTAL(9,F1:F3) -> 0 | B81: =SUM(B2:B80) -> 165,807.28 | C81: =SUM(C2:C78) -> -7,079.04 | D81: =B81+C81 -> 158,728.24

Sheet PowerBI
A1: OrderId | B1: Type | C1: Status | D1: PaymentDueDate | E1: Payment Date | F1: Payment Ref | G1: Payee Currency | H1: Payment Amount (Gross) | I1: Host Name | J1: Host Email | K1: Host Country | L1: Payee Name | M1: Payee Email | N1: Payee Country | O1: ListingFriendlyName | P1: ListingAddressLine1 | Q1: BookingCheckin | R1: BookingCheckout
A2: VP-52093 | B2: Fee | C2: Paid | D2: 2023-04-03 | E2: 2023-04-03 | F2: 137150573.00 | G2: USD | H2: 15 | I2: Absolute Luxury Management Bookings | J2: info@absoluteluxurymgmt.com | K2: United States | L2: Tania Heap | M2: tpheap@gmail.com | N2: United States | O2: Adobe Village 1 Bedroom Suite- Sedona | P2: 150 Canyon Circle Dr | Q2: 2023-05-25 | R2: 2023-05-28
A3: VP-52113 | B3: Waiver | C3: Paid | D3: 2023-04-03 | E3: 2023-04-03 | F3: 137253481.00 | G3: USD | H3: 39.99 | I3: Absolute Luxury Management Bookings | J3: info@absoluteluxurymgmt.com | K3: United States | L3: Jamie Menuck | M3: jamiemenuck125@gmail.com | N3: United States | O3: Adobe Village Villa with Private Patio- Wilderness | P3: 140 Canyon Circle Dr | Q3: 2023-04-03 | R3: 2023-04-04
A4: VP-52100 | B4: Waiver | C4: Paid | D4: 2023-04-03 | E4: 2023-04-03 | F4: 137184459.00 | G4: USD | H4: 39.99 | I4: Absolute Luxury Management Bookings 2 | J4: reservations@absoluteluxurymgmt.com | K4: United States | L4: Shelby Johnson | M4: shelby@trellahomes.com | N4: United States | O4: Creekside Retreat 16 | P4: 55 Newcastle Ln | Q4: 2023-04-03 | R4: 2023-04-05
A5: VP-44866 | B5: Deposit | C5: Paid | D5: 2023-04-03 | E5: 2023-04-03 | F5: 137141889.00 | G5: CAD | H5: 400 | I5: Airbrindy Bookings | J5: brindyjean@gmail.com | K5: United States | L5: Jo-Ann Nassey | M5: nassey@hotmail.com | N5: Canada | O5: Coconino | P5: 1307 East Coconino Street | Q5: 2023-04-17 | R5: 2023-04-23
A6: VP-52108 | B6: Waiver | C6: Paid | D6: 2023-04-03 | E6: 2023-04-03 | F6: 137245193.00 | G6: USD | H6: 35 | I6: AirHoster Bookings | J6: stayairhoster@gmail.com | K6: United States | L6: Alyssa Kallman | M6: akallman@sbcglobal.net | N6: United States | O6: Outrigger EntireHome | P6: Outrigger Court 2303 | Q6: 2023-04-21 | R6: 2023-04-23
A7: VP-52098 | B7: Fee | C7: Paid | D7: 2023-04-03 | E7: 2023-04-03 | F7: 137176991.00 | G7: AUD | H7: 15 | I7: Airtrip Bookings | J7: travel@airtrip.com.au | K7: Australia | L7: Mufaro Nyamandi | M7: mufaro@advancedtherapymackay.com.au | N7: Australia | O7: Oaks 202B | P7: River Street 55 | Q7: 2023-04-04T04:00:00 | R7: 2023-04-06
A8: VP-52099 | B8: Deposit | C8: Paid | D8: 2023-04-03 | E8: 2023-04-03 | F8: 137182477.00 | G8: AUD | H8: 200 | I8: Airtrip Bookings | J8: travel@airtrip.com.au | K8: Australia | L8: Mufaro Nyamandi | M8: mufaro@advancedtherapymackay.com.au | N8: Australia | O8: Oaks 202B | P8: River Street 55 | Q8: 2023-04-04T04:00:00 | R8: 2023-04-06
A9: VP-52105 | B9: Fee | C9: Paid | D9: 2023-04-03 | E9: 2023-04-03 | F9: 137223427.00 | G9: AUD | H9: 15 | I9: Airtrip Bookings | J9: travel@airtrip.com.au | K9: Australia | L9: Georgia Wilson | M9: cwsheavymaintenance@hotmail.com | N9: Australia | O9: Oaks 312B | P9: River Street 55 | Q9: 2023-04-03T04:00:00 | R9: 2023-04-06
A10: VP-52106 | B10: Deposit | C10: Paid | D10: 2023-04-03 | E10: 2023-04-03 | F10: 137231837.00 | G10: AUD | H10: 200 | I10: Airtrip Bookings | J10: travel@airtrip.com.au | K10: Australia | L10: Georgia Wilson | M10: cwsheavymaintenance@hotmail.com | N10: Australia | O10: Oaks 312B | P10: River Street 55 | Q10: 2023-04-03T04:00:00 | R10: 2023-04-06
A11: VP-52117 | B11: Fee | C11: Paid | D11: 2023-04-03 | E11: 2023-04-03 | F11: 137254649.00 | G11: AUD | H11: 15 | I11: Airtrip Bookings | J11: travel@airtrip.com.au | K11: Australia | L11: Kathryn McUtchen | M11: jambilipastco@gmail.com | N11: Australia | O11: Belise 610 | P11: Saint Pauls Terrace 510 | Q11: 2023-08-05T04:00:00 | R11: 2023-08-13
A12: VP-52121 | B12: Fee | C12: Paid | D12: 2023-04-03 | E12: 2023-04-03 | F12: 137254871.00 | G12: GBP | H12: 6 | I12: Airtrip Bookings | J12: travel@airtrip.com.au | K12: Australia | L12: Kim Banks | M12: kimbanks90@gmail.com | N12: New Zealand | O12: NST 11107 | P12: Doggett Street 88 | Q12: 2023-04-15T04:00:00 | R12: 2023-04-17
A13: VP-52122 | B13: Deposit | C13: Paid | D13: 2023-04-03 | E13: 2023-04-03 | F13: 137254961.00 | G13: GBP | H13: 300 | I13: Airtrip Bookings | J13: travel@airtrip.com.au | K13: Australia | L13: Kim Banks | M13: kimbanks90@gmail.com | N13: New Zealand | O13: NST 11107 | P13: Doggett Street 88 | Q13: 2023-04-15T04:00:00 | R13: 2023-04-17
A14: VP-52126 | B14: Waiver | C14: Paid | D14: 2023-04-03 | E14: 2023-04-03 | F14: 137255905.00 | G14: USD | H14: 35 | I14: Amanda Lampright Bookings | J14: mandee2116@aol.com | K14: United States | L14: Kishauna Price | M14: kishaunaprice@gmail.com | N14: United States | O14: Peaceful Spa Escape minutes to Mohegan Sun Casino | P14: Old Pond Lane, Villa 311 | Q14: 2023-05-05T16:00:00 | R14: 2023-05-07T11:00:00
A15: VP-52090 | B15: Waiver | C15: Paid | D15: 2023-04-03 | E15: 2023-04-03 | F15: 137144711.00 | G15: CAD | H15: 25 | I15: Bnbeyond Vacations Bookings | J15: ryland@beyondbnb.ca | K15: Canada | L15: Corey Rossi | M15: coreyrossi@hotmail.com | N15: Canada | O15: 1 Bed Condo | Within InnWest | Ski Hill Location - IW 814 | P15: 880 North Star Drive | Q15: 2023-04-05 | R15: 2023-04-10
A16: VP-52110 | B16: Fee | C16: Paid | D16: 2023-04-03 | E16: 2023-04-03 | F16: 137252527.00 | G16: CAD | H16: 7.5 | I16: Bnbeyond Vacations Bookings | J16: ryland@beyondbnb.ca | K16: Canada | L16: Nicole Lasante | M16: lasanten@outlook.com | N16: Canada | O16: Legendary Griz Inn condo - Griz 213 | P16: 5369 Fernie Ski Hill Road | Q16: 2023-04-06 | R16: 2023-04-10
A17: VP-52111 | B17: Deposit | C17: Paid | D17: 2023-04-03 | E17: 2023-04-03 | F17: 137252559.00 | G17: CAD | H17: 250 | I17: Bnbeyond Vacations Bookings | J17: ryland@beyondbnb.ca | K17: Canada | L17: Nicole Lasante | M17: lasanten@outlook.com | N17: Canada | O17: Legendary Griz Inn condo - Griz 213 | P17: 5369 Fernie Ski Hill Road | Q17: 2023-04-06 | R17: 2023-04-10
A18: VP-52112 | B18: Waiver | C18: Paid | D18: 2023-04-03 | E18: 2023-04-03 | F18: 137252743.00 | G18: CAD | H18: 35 | I18: Bnbeyond Vacations Bookings | J18: ryland@beyondbnb.ca | K18: Canada | L18: Christine Lucas | M18: christine.lucas@live.ca | N18: Canada | O18: Pet Friendly | Heritage House | 2 Bedrooms - 1381 1st Ave | P18: 1381 1st Avenue | Q18: 2023-04-06 | R18: 2023-04-09
A19: VP-52116 | B19: Waiver | C19: Paid | D19: 2023-04-03 | E19: 2023-04-03 | F19: 137254145.00 | G19: CAD | H19: 25 | I19: Bnbeyond Vacations Bookings | J19: ryland@beyondbnb.ca | K19: Canada | L19: Danielle Grimshaw | M19: danielle.johnson@me.com | N19: Canada | O19: Ski In-Out Location | 1 Bed | Hot Tubs, Pool & Gym - Snow 206 | P19: 5258 Highline Drive | Q19: 2023-04-06 | R19: 2023-04-09
A20: VP-52107 | B20: Waiver | C20: Paid | D20: 2023-04-03 | E20: 2023-04-03 | F20: 137244917.00 | G20: USD | H20: 35 | I20: Cozy in KC Bookings | J20: admin@cozyinkc.com | K20: United States | L20: Dino Bermudo | M20: abermudo@gmail.com | N20: United States | O20: Cherry on Top | P20: 4003 N Cherry St | Q20: 2023-04-04 | R20: 2023-04-06
A21: VP-52119 | B21: Waiver | C21: Paid | D21: 2023-04-03 | E21: 2023-04-03 | F21: 137254655.00 | G21: GBP | H21: 35 | I21: DYZYN Living Bookings | J21: STAYS@dyzyn.co.uk | K21: United Kingdom | L21: Adam Jenkins | M21: adam.jenkins@live.com | N21: United Kingdom | O21: 14.2 North Road Cardiff, CF103DY | P21: 14.2 North Road | Q21: 2023-04-03 | R21: 2023-04-06
A22: VP-52089 | B22: Waiver | C22: Paid | D22: 2023-04-03 | E22: 2023-04-03 | F22: 137143525.00 | G22: CAD | H22: 55 | I22: Home to Host Ltd | J22: guest@hometohost.co.uk | K22: United Kingdom | L22: Mary Anastasia Karambatos | M22: marykarambatos@gmail.com | N22: Canada | O22: Cozy Dainty Studio Apartment | P22: 32-34 Swinton Street | Q22: 2023-04-10 | R22: 2023-04-15
A23: VP-52095 | B23: Waiver | C23: Paid | D23: 2023-04-03 | E23: 2023-04-03 | F23: 137153177.00 | G23: USD | H23: 35 | I23: Home to Host Ltd | J23: guest@hometohost.co.uk | K23: United Kingdom | L23: Kristin Bakhda | M23: nursie1967@aol.com | N23: United States | O23: Stunning Family Home - Sleeps 11 | P23: 123 Cassland Road | Q23: 2023-07-16 | R23: 2023-07-27
A24: VP-52101 | B24: Fee | C24: Paid | D24: 2023-04-03 | E24: 2023-04-03 | F24: 137200417.00 | G24: CAD | H24: 16 | I24: Home to Host Ltd | J24: guest@hometohost.co.uk | K24: United Kingdom | L24: Samuel Herzog | M24: samada6667@gmail.com | N24: Canada | O24: Stylish and Cosy Studio - Top Location | P24: 25 High Road | Q24: 2023-04-04 | R24: 2023-04-17
A25: VP-52127 | B25: Waiver | C25: Paid | D25: 2023-04-03 | E25: 2023-04-03 | F25: 137255931.00 | G25: EUR | H25: 35 | I25: Home to Host Ltd | J25: guest@hometohost.co.uk | K25: United Kingdom | L25: Patricija Bīlande | M25: patricija.bilande@gmail.com | N25: Latvia | O25: Cozy and Charming Flat: Minutes from Everything! | P25: Iverson Road 2 | Q25: 2023-04-10 | R25: 2023-04-17
A26: VP-52131 | B26: Waiver | C26: Paid | D26: 2023-04-03 | E26: 2023-04-03 | F26: 137256889.00 | G26: GBP | H26: 35 | I26: Home to Host Ltd | J26: guest@hometohost.co.uk | K26: United Kingdom | L26: Chris Coles | M26: 01coleschris@gmail.com | N26: United Kingdom | O26: Awesome Loft Flat - Seconds to London’s Best Park! | P26: 35 Agincourt Road | Q26: 2023-04-03 | R26: 2023-04-06
A27: VP-52123 | B27: Waiver | C27: Paid | D27: 2023-04-03 | E27: 2023-04-03 | F27: 137255233.00 | G27: GBP | H27: 25 | I27: Host & Stay North Yorkshire | J27: info@hostandstay.co.uk | K27: United Kingdom | L27: Thomas Camier | M27: tcamier23@gmail.com | N27: United Kingdom | O27: Mander Retreat | P27: Queen Square 22 | Q27: 2023-04-08T15:00:00 | R27: 2023-04-09T09:00:00
A28: VP-52128 | B28: Waiver | C28: Paid | D28: 2023-04-03 | E28: 2023-04-03 | F28: 137255991.00 | G28: GBP | H28: 25 | I28: Host & Stay North Yorkshire | J28: info@hostandstay.co.uk | K28: United Kingdom | L28: Ruth Butterworth | M28: r.butterworth@live.co.uk | N28: United Kingdom | O28: Foggyshaw Lodge | P28: In Moor Lane | Q28: 2023-05-26T15:00:00 | R28: 2023-05-29T09:00:00
A29: VP-52129 | B29: Fee | C29: Paid | D29: 2023-04-03 | E29: 2023-04-03 | F29: 137256281.00 | G29: GBP | H29: 10 | I29: Host & Stay North Yorkshire | J29: info@hostandstay.co.uk | K29: United Kingdom | L29: Kirsty Redhead | M29: reddas34@hotmail.co.uk | N29: United Kingdom | O29: Pearl House | P29: Pearl Street 20 | Q29: 2023-04-09T15:00:00 | R29: 2023-04-12T09:00:00
A30: VP-52130 | B30: Deposit | C30: Paid | D30: 2023-04-03 | E30: 2023-04-03 | F30: 137256373.00 | G30: GBP | H30: 250 | I30: Host & Stay North Yorkshire | J30: info@hostandstay.co.uk | K30: United Kingdom | L30: Kirsty Redhead | M30: reddas34@hotmail.co.uk | N30: United Kingdom | O30: Pearl House | P30: Pearl Street 20 | Q30: 2023-04-09T15:00:00 | R30: 2023-04-12T09:00:00
A31: VP-52132 | B31: Fee | C31: Paid | D31: 2023-04-03 | E31: 2023-04-03 | F31: 137257057.00 | G31: GBP | H31: 10 | I31: Host & Stay North Yorkshire | J31: info@hostandstay.co.uk | K31: United Kingdom | L31: Fraser Todd | M31: frasertodd@hotmail.com | N31: United Kingdom | O31: Sand Dancers Stay | P31: Baring Street 69 | Q31: 2023-04-04T15:00:00 | R31: 2023-04-07T09:00:00
A32: VP-52133 | B32: Deposit | C32: Paid | D32: 2023-04-03 | E32: 2023-04-03 | F32: 137257279.00 | G32: GBP | H32: 250 | I32: Host & Stay North Yorkshire | J32: info@hostandstay.co.uk | K32: United Kingdom | L32: Fraser Todd | M32: frasertodd@hotmail.com | N32: United Kingdom | O32: Sand Dancers Stay | P32: Baring Street 69 | Q32: 2023-04-04T15:00:00 | R32: 2023-04-07T09:00:00
A33: VP-52137 | B33: Waiver | C33: Paid | D33: 2023-04-03 | E33: 2023-04-03 | F33: 137260613.00 | G33: GBP | H33: 25 | I33: Host & Stay North Yorkshire | J33: info@hostandstay.co.uk | K33: United Kingdom | L33: Yong Zhang | M33: yongz@hotmail.co.uk | N33: United Kingdom | O33: Heron Cottage | P33: Dalby Forest Drive | Q33: 2023-04-07T15:00:00 | R33: 2023-04-09T09:00:00
A34: VP-52134 | B34: Waiver | C34: Paid | D34: 2023-04-03 | E34: 2023-04-03 | F34: 137257213.00 | G34: GBP | H34: 25 | I34: Let's Host For You Bookings | J34: management@letshostforyou.co.uk | K34: United Kingdom | L34: Emma Nash | M34: emma1harp@btinternet.com | N34: United Kingdom | O34: The Old Chemist - Viking Bay Getaway | P34: 44 York Street | Q34: 2023-04-10 | R34: 2023-04-13
A35: VP-52096 | B35: Fee | C35: Paid | D35: 2023-04-03 | E35: 2023-04-03 | F35: 137160963.00 | G35: USD | H35: 15 | I35: Mystic Vacation Rentals LLC | J35: debbie@mysticvacationrentals.com | K35: United States | L35: Ellen JoAnne Lynch | M35: elynch7@yahoo.com | N35: United States | O35: 1. BURROWS HOME · | P35: 275 Noank Road | Q35: 2023-07-05T16:00:00 | R35: 2023-07-07T11:00:00
A36: VP-52109 | B36: Waiver | C36: Paid | D36: 2023-04-03 | E36: 2023-04-03 | F36: 137240317.00 | G36: ZAR | H36: 750 | I36: Nox Rentals Bookings | J36: support@noxrentals.com | K36: United Kingdom | L36: Vergan Kumar | M36: vergankumar@yahoo.com | N36: South Africa | O36: Juliette 606 | P36: 1 Dock Road | Q36: 2023-04-03T12:00:00 | R36: 2023-04-09T08:00:00
A37: VP-52115 | B37: Waiver | C37: Paid | D37: 2023-04-03 | E37: 2023-04-03 | F37: 137253951.00 | G37: EUR | H37: 35 | I37: Nox Rentals Bookings | J37: support@noxrentals.com | K37: United Kingdom | L37: Sabine Klein | M37: klein.sabine@bluewin.ch | N37: Switzerland | O37: Warwick | P37: Main Road 21 | Q37: 2023-04-06T12:00:00 | R37: 2023-04-20T08:00:00
A38: VP-52120 | B38: Waiver | C38: Paid | D38: 2023-04-03 | E38: 2023-04-03 | F38: 137254669.00 | G38: GBP | H38: 35 | I38: Nox Rentals Bookings | J38: support@noxrentals.com | K38: United Kingdom | L38: Sarah Ryan | M38: sarah-ryan1@hotmail.com | N38: United Kingdom | O38: 17 Geneva Drive | P38: Geneva Drive 17 | Q38: 2023-04-06T12:00:00 | R38: 2023-04-11T08:00:00
A39: VP-52091 | B39: Fee | C39: Paid | D39: 2023-04-03 | E39: 2023-04-03 | F39: 137148937.00 | G39: USD | H39: 15 | I39: PH Luxury stays Bookings | J39: phfurnishedrentals@gmail.com | K39: United States | L39: Diamond Jones | M39: ddjonesd29@yahoo.com | N39: United States | O39: 833 Corinthian Ave | P39: 833 Corinthian Avenue | Q39: 2023-04-07T19:00:00 | R39: 2023-04-09T15:00:00
A40: VP-52092 | B40: Deposit | C40: Paid | D40: 2023-04-03 | E40: 2023-04-03 | F40: 137149393.00 | G40: USD | H40: 500 | I40: PH Luxury stays Bookings | J40: phfurnishedrentals@gmail.com | K40: United States | L40: Diamond Jones | M40: ddjonesd29@yahoo.com | N40: United States | O40: 833 Corinthian Ave | P40: 833 Corinthian Avenue | Q40: 2023-04-07T19:00:00 | R40: 2023-04-09T15:00:00
A41: VP-35674 | B41: Deposit | C41: Paid | D41: 2023-04-03 | E41: 2023-04-03 | F41: 137141871.00 | G41: EUR | H41: 250 | I41: Priority Villas Bookings | J41: info@priorityvillas.com | K41: Spain | L41: REMI CHARTIER | M41: remi.chartier@free.fr | N41: France | O41: VINTAGE PALMA PALACE (SUPERIOR 5) TI/200 | P41: 7 Carrer de la Campana | Q41: 2023-04-17 | R41: 2023-04-24
A42: VP-52103 | B42: Waiver | C42: Paid | D42: 2023-04-03 | E42: 2023-04-03 | F42: 137204987.00 | G42: USD | H42: 35 | I42: Sedona Luxury Vacation Rentals Bookings | J42: sedonaluxuryvacationrentals@gmail.com | K42: United States | L42: Natasha Samanich | M42: natashasamanich@gmail.com | N42: United States | O42: Sky Dancer | P42: 70 Eagle Dancer Road | Q42: 2023-08-24 | R42: 2023-08-27
A43: VP-46494 | B43: Deposit | C43: Paid | D43: 2023-04-03 | E43: 2023-04-03 | F43: 137245285.00 | G43: AUD | H43: 500 | I43: Stay in Hobart Booking | J43: property@holidayrentalhosting.com.au | K43: Australia | L43: Ben Wilden | M43: petraben@yahoo.com.au | N43: Australia | O43: Eiza Cottage-2Art | P43: 2 Arthur Street | Q43: 2023-04-17T04:00:00 | R43: 2023-04-19
A44: VP-52049 | B44: Deposit | C44: Paid | D44: 2023-04-03 | E44: 2023-04-03 | F44: 137141965.00 | G44: EUR | H44: 250 | I44: Sunshine Homes Booking | J44: info@sunshinehomes.es | K44: Spain | L44: Saulius Kerpe | M44: saulius.kerpe@gmail.com | N44: Lithuania | O44: Alemania H | P44: 1 Calle De Alemania 1 | Q44: 2023-04-17 | R44: 2023-04-27
A45: VP-52135 | B45: Fee | C45: Paid | D45: 2023-04-03 | E45: 2023-04-03 | F45: 137260509.00 | G45: GBP | H45: 10 | I45: SwissHut Holiday Chalets & Apartments Bookings | J45: nardi@swisshut.ch | K45: Switzerland | L45: JAE SEUNG LEE | M45: qld4030@gmail.com | N45: South Korea | O45: Blume 1 · Modern Near Train/Bus/Parking | P45: Blumenstrasse 2 1st floor | Q45: 2023-07-07 | R45: 2023-07-12
A46: VP-40184 | B46: Deposit | C46: Paid | D46: 2023-04-03 | E46: 2023-04-03 | F46: 137141881.00 | G46: GBP | H46: 500 | I46: The Right Property Accommodation Bookings | J46: superhog@therightpropertygroup.co.uk | K46: United Kingdom | L46: Owain Davies | M46: owainowain@hotmail.co.uk | N46: United Kingdom | O46: 5 Columbia Place | P46: 5 Columbia Place | Q46: 2023-04-17 | R46: 2023-04-23
A47: VP-52124 | B47: Fee | C47: Paid | D47: 2023-04-03 | E47: 2023-04-03 | F47: 137255645.00 | G47: GBP | H47: 10 | I47: The Right Property Accommodation Bookings | J47: superhog@therightpropertygroup.co.uk | K47: United Kingdom | L47: Elliott Francis | M47: elliott@theredcompany.co.uk | N47: United Kingdom | O47: 29 Victoria Street | P47: 29 Victoria Street | Q47: 2023-04-03 | R47: 2023-04-07
A48: VP-52125 | B48: Deposit | C48: Paid | D48: 2023-04-03 | E48: 2023-04-03 | F48: 137255693.00 | G48: GBP | H48: 500 | I48: The Right Property Accommodation Bookings | J48: superhog@therightpropertygroup.co.uk | K48: United Kingdom | L48: Elliott Francis | M48: elliott@theredcompany.co.uk | N48: United Kingdom | O48: 29 Victoria Street | P48: 29 Victoria Street | Q48: 2023-04-03 | R48: 2023-04-07
A49: VP-52104 | B49: Waiver | C49: Paid | D49: 2023-04-03 | E49: 2023-04-03 | F49: 137205123.00 | G49: USD | H49: 70 | I49: TKCA Vacation Rentals Bookings | J49: info@tkcavacationrentals.com | K49: United States | L49: Justin Maloney | M49: maloney_inc@yahoo.com | N49: United States | O49: Aqua Del Rose 1 BR Beachfront Cottage | P49: 109 Long Bay Beach Drive | Q49: 2023-04-03 | R49: 2023-04-07
A50: VP-52114 | B50: Waiver | C50: Paid | D50: 2023-04-03 | E50: 2023-04-03 | F50: 137253541.00 | G50: ZAR | H50: 750 | I50: Turnkey365 Bookings | J50: superhog@turnkey365.co.za | K50: South Africa | L50: James Phiri | M50: james.phiri16@icloud.com | N50: South Africa | O50: 43 Central Drive, Camps Bay | P50: 43 Central Drive, Camps Bay | Q50: 2023-06-19 | R50: 2023-06-23
A51: VP-50462 | B51: Deposit | C51: Paid | D51: 2023-04-03 | E51: 2023-04-03 | F51: 137141945.00 | G51: GBP | H51: 500 | I51: Your AirHost Limited | J51: roni@yourairhost.co.uk | L51: Linda Tait | M51: lindadtait@btinternet.com | N51: United Kingdom | O51: 159 Highlever Road, London, GB | P51: 159 Highlever Road, London, GB | Q51: 2023-04-17 | R51: 2023-04-24
A52: VP-52036 | B52: Waiver | C52: Paid | D52: 2023-04-02 | E52: 2023-04-02 | F52: 137127033.00 | G52: USD | H52: 39.99 | I52: Absolute Luxury Management Bookings | J52: info@absoluteluxurymgmt.com | K52: United States | L52: Jean Tuller | M52: savita334@msn.com | N52: United States | O52: Adobe Hacienda - Vaquero Suite | P52: 10 Rojo Dr | Q52: 2023-04-04 | R52: 2023-04-06
A53: VP-52047 | B53: Waiver | C53: Paid | D53: 2023-04-02 | E53: 2023-04-02 | F53: 137128889.00 | G53: USD | H53: 39.99 | I53: Absolute Luxury Management Bookings | J53: info@absoluteluxurymgmt.com | K53: United States | L53: Manuel Alonzo | M53: koolocho@hotmail.com | N53: United States | O53: Destination Oak Creek 5 | P53: 6401 N State Route 89A | Q53: 2023-04-07 | R53: 2023-04-08
A54: VP-51975 | B54: Waiver | C54: Paid | D54: 2023-04-02 | E54: 2023-04-02 | F54: 137118693.00 | G54: GBP | H54: 35 | I54: Absolute Stays Ltd | J54: info@absolutestays.co.uk | K54: United Kingdom | L54: Abass Kamara | M54: abassmankakamara@icloud.com | N54: United Kingdom | O54: Absolute Stays on Grosvenor | P54: 25 Grosvenor Road | Q54: 2023-04-02 | R54: 2023-04-06
A55: VP-52078 | B55: Waiver | C55: Paid | D55: 2023-04-02 | E55: 2023-04-02 | F55: 137135717.00 | G55: USD | H55: 35 | I55: AirHoster Bookings | J55: stayairhoster@gmail.com | K55: United States | L55: Robert Levine | M55: robert.m.levine@gmail.com | N55: United States | O55: Craftsman Hotel Style Home In The Heart of Midtown | P55: 1328 19th St | Q55: 2023-04-21 | R55: 2023-04-23
A56: VP-51879 | B56: Fee | C56: Paid | D56: 2023-04-02 | E56: 2023-04-02 | F56: 137049315.00 | G56: GBP | H56: 5 | I56: Airtrip Bookings | J56: travel@airtrip.com.au | K56: Australia | L56: Dk Rabiatul Adawiyah Pg Emran | M56: fizz301@hotmail.com | N56: Brunei | O56: Harmony 307 | P56: Manning Street 7 | Q56: 2023-04-04T04:00:00 | R56: 2023-04-12
A57: VP-51880 | B57: Deposit | C57: Paid | D57: 2023-04-02 | E57: 2023-04-02 | F57: 137053471.00 | G57: GBP | H57: 200 | I57: Airtrip Bookings | J57: travel@airtrip.com.au | K57: Australia | L57: Dk Rabiatul Adawiyah Pg Emran | M57: fizz301@hotmail.com | N57: Brunei | O57: Harmony 307 | P57: Manning Street 7 | Q57: 2023-04-04T04:00:00 | R57: 2023-04-12
A58: VP-51889 | B58: Fee | C58: Paid | D58: 2023-04-02 | E58: 2023-04-02 | F58: 137100165.00 | G58: AUD | H58: 15 | I58: Airtrip Bookings | J58: travel@airtrip.com.au | K58: Australia | L58: Karen Barnes | M58: kjbarnes29@gmail.com | N58: Australia | O58: Mel 1409 | P58: Melbourne Street 111 | Q58: 2023-04-02 | R58: 2023-04-08
A59: VP-51890 | B59: Deposit | C59: Paid | D59: 2023-04-02 | E59: 2023-04-02 | F59: 137100181.00 | G59: AUD | H59: 500 | I59: Airtrip Bookings | J59: travel@airtrip.com.au | K59: Australia | L59: Karen Barnes | M59: kjbarnes29@gmail.com | N59: Australia | O59: Mel 1409 | P59: Melbourne Street 111 | Q59: 2023-04-02 | R59: 2023-04-08
A60: VP-51902 | B60: Fee | C60: Paid | D60: 2023-04-02 | E60: 2023-04-02 | F60: 137101269.00 | G60: AUD | H60: 15 | I60: Airtrip Bookings | J60: travel@airtrip.com.au | K60: Australia | L60: Joanne Benson | M60: joanne.benson.jb@gmail.com | N60: Australia | O60: NST 11107 | P60: Doggett Street 88 | Q60: 2023-04-12T04:00:00 | R60: 2023-04-15
A61: VP-51903 | B61: Deposit | C61: Paid | D61: 2023-04-02 | E61: 2023-04-02 | F61: 137101331.00 | G61: AUD | H61: 500 | I61: Airtrip Bookings | J61: travel@airtrip.com.au | K61: Australia | L61: Joanne Benson | M61: joanne.benson.jb@gmail.com | N61: Australia | O61: NST 11107 | P61: Doggett Street 88 | Q61: 2023-04-12T04:00:00 | R61: 2023-04-15
A62: VP-52076 | B62: Fee | C62: Paid | D62: 2023-04-02 | E62: 2023-04-02 | F62: 137135511.00 | G62: AUD | H62: 15 | I62: Airtrip Bookings | J62: travel@airtrip.com.au | K62: Australia | L62: Ben Mckay | M62: ben@mckaytraining.com | N62: Australia | O62: B1 11710 | P62: Cordelia Street 1 | Q62: 2023-04-12T04:00:00 | R62: 2023-04-17
A63: VP-52077 | B63: Deposit | C63: Paid | D63: 2023-04-02 | E63: 2023-04-02 | F63: 137135707.00 | G63: AUD | H63: 500 | I63: Airtrip Bookings | J63: travel@airtrip.com.au | K63: Australia | L63: Ben Mckay | M63: ben@mckaytraining.com | N63: Australia | O63: B1 11710 | P63: Cordelia Street 1 | Q63: 2023-04-12T04:00:00 | R63: 2023-04-17
A64: VP-52080 | B64: Fee | C64: Paid | D64: 2023-04-02 | E64: 2023-04-02 | F64: 137136087.00 | G64: USD | H64: 9 | I64: Airtrip Bookings | J64: travel@airtrip.com.au | K64: Australia | L64: Karl Seck | M64: seckfamily@gmail.com | N64: United States | O64: Oaks 512DK | P64: River Street 55 | Q64: 2023-04-03T05:00:00 | R64: 2023-04-14
A65: VP-52081 | B65: Deposit | C65: Paid | D65: 2023-04-02 | E65: 2023-04-02 | F65: 137136233.00 | G65: USD | H65: 300 | I65: Airtrip Bookings | J65: travel@airtrip.com.au | K65: Australia | L65: Karl Seck | M65: seckfamily@gmail.com | N65: United States | O65: Oaks 512DK | P65: River Street 55 | Q65: 2023-04-03T05:00:00 | R65: 2023-04-14
A66: VP-52001 | B66: Waiver | C66: Paid | D66: 2023-04-02 | E66: 2023-04-02 | F66: 137122373.00 | G66: USD | H66: 38 | I66: Atlanta Vacay Booking | J66: info@atlantavacay.com | K66: United States | L66: Franchester George | M66: franchestergeorge@yahoo.com | N66: United States | O66: 3- Bed home, w/ Cali King Bed - 12 mins. to DTWN | P66: 501 Tufton Tr | Q66: 2023-04-07 | R66: 2023-04-11
A67: VP-52026 | B67: Waiver | C67: Paid | D67: 2023-04-02 | E67: 2023-04-02 | F67: 137125025.00 | G67: USD | H67: 38 | I67: Atlanta Vacay Booking | J67: info@atlantavacay.com | K67: United States | L67: Miranda Hamilton | M67: h.mirandajernigan98@gmail.com | N67: United States | O67: Perfect Large 3 Bed Townhouse; < 10 miles to DTWN | P67: 887 Crestwell Cir | Q67: 2023-04-06 | R67: 2023-04-09
A68: VP-51877 | B68: Fee | C68: Paid | D68: 2023-04-02 | E68: 2023-04-02 | F68: 137037379.00 | G68: USD | H68: 7.5 | I68: AZ Getaway Rentals Bookings | J68: hello@azsuperhost.com | K68: United States | L68: Taylor Gerdus | M68: taylor.gerdus@gmail.com | N68: United States | O68: Barbie · BarBnB in Scottsdale w/ Hot Tub | Spring Training | P68: 10944 East Becker Lane | Q68: 2023-09-22 | R68: 2023-09-24
A69: VP-51881 | B69: Waiver | C69: Paid | D69: 2023-04-02 | E69: 2023-04-02 | F69: 137057525.00 | G69: USD | H69: 25 | I69: AZ Getaway Rentals Bookings | J69: hello@azsuperhost.com | K69: United States | L69: Yevgeniy Yurchenko | M69: eugene.yurchenko@yahoo.com | N69: United States | O69: PHX Elegancy| Oasis | HeatedPool| Spa | P69: 11303 North 34th Street | Q69: 2023-05-22 | R69: 2023-05-26
A70: VP-51887 | B70: Waiver | C70: Paid | D70: 2023-04-02 | E70: 2023-04-02 | F70: 137099457.00 | G70: USD | H70: 20 | I70: AZ Getaway Rentals Bookings | J70: hello@azsuperhost.com | K70: United States | L70: Karen Guardado Ponce | M70: karen.nera@hotmail.com | N70: Mexico | O70: 210w · Beachfront|SonoranSeaResort|2ndFloor|HeatedPool | P70: 210W Camino ala Choya KM 3.7 Fraccionamiento Blvd. Costa Diamante, Playa Arenos | Q70: 2023-04-02 | R70: 2023-04-05
A71: VP-51891 | B71: Fee | C71: Paid | D71: 2023-04-02 | E71: 2023-04-02 | F71: 137100237.00 | G71: USD | H71: 7.5 | I71: AZ Getaway Rentals Bookings | J71: hello@azsuperhost.com | K71: United States | L71: Hannah Bachman | M71: hannahbachman@aol.com | N71: United States | O71: Barbie · BarBnB in Scottsdale w/ Hot Tub | Spring Training | P71: 10944 East Becker Lane | Q71: 2023-04-06 | R71: 2023-04-10
A72: VP-51892 | B72: Deposit | C72: Paid | D72: 2023-04-02 | E72: 2023-04-03 | F72: 137254293.00 | G72: USD | H72: 200 | I72: AZ Getaway Rentals Bookings | J72: hello@azsuperhost.com | K72: United States | L72: Hannah Bachman | M72: hannahbachman@aol.com | N72: United States | O72: Barbie · BarBnB in Scottsdale w/ Hot Tub | Spring Training | P72: 10944 East Becker Lane | Q72: 2023-04-06 | R72: 2023-04-10
A73: VP-51893 | B73: Fee | C73: Paid | D73: 2023-04-02 | E73: 2023-04-02 | F73: 137100319.00 | G73: USD | H73: 7.5 | I73: AZ Getaway Rentals Bookings | J73: hello@azsuperhost.com | K73: United States | L73: Kaley Homola | M73: kaleyhomola@gmail.com | N73: United States | O73: Barbie · BarBnB in Scottsdale w/ Hot Tub | Spring Training | P73: 10944 East Becker Lane | Q73: 2023-04-14 | R73: 2023-04-18
A74: VP-51894 | B74: Deposit | C74: Paid | D74: 2023-04-02 | E74: 2023-04-03 | F74: 137254691.00 | G74: USD | H74: 200 | I74: AZ Getaway Rentals Bookings | J74: hello@azsuperhost.com | K74: United States | L74: Kaley Homola | M74: kaleyhomola@gmail.com | N74: United States | O74: Barbie · BarBnB in Scottsdale w/ Hot Tub | Spring Training | P74: 10944 East Becker Lane | Q74: 2023-04-14 | R74: 2023-04-18
A75: VP-51987 | B75: Fee | C75: Paid | D75: 2023-04-02 | E75: 2023-04-02 | F75: 137119847.00 | G75: USD | H75: 7.5 | I75: AZ Getaway Rentals Bookings | J75: hello@azsuperhost.com | K75: United States | L75: Patti Hirbodi | M75: phirbodi@outlook.com | N75: United States | O75: Sedona Airbnb · Sedona Golf, Pool & Hot tub by Bell Rock|Views | P75: 64 Padre Drive | Q75: 2023-04-13 | R75: 2023-04-16
A76: VP-51988 | B76: Deposit | C76: Paid | D76: 2023-04-02 | E76: 2023-04-02 | F76: 137120177.00 | G76: USD | H76: 200 | I76: AZ Getaway Rentals Bookings | J76: hello@azsuperhost.com | K76: United States | L76: Patti Hirbodi | M76: phirbodi@outlook.com | N76: United States | O76: Sedona Airbnb · Sedona Golf, Pool & Hot tub by Bell Rock|Views | P76: 64 Padre Drive | Q76: 2023-04-13 | R76: 2023-04-16
A77: VP-52041 | B77: Waiver | C77: Paid | D77: 2023-04-02 | E77: 2023-04-02 | F77: 137128115.00 | G77: USD | H77: 20 | I77: AZ Getaway Rentals Bookings | J77: hello@azsuperhost.com | K77: United States | L77: Angelica Cabrera | M77: gelly0003@gmail.com | N77: United States | O77: Knickerbocker (4/10) · Heart of Phoenix |Modern| Spring Training (4/10) | P77: 839 North 2nd Avenue | Q77: 2023-04-05 | R77: 2023-04-09
A78: VP-52074 | B78: Waiver | C78: Paid | D78: 2023-04-02 | E78: 2023-04-02 | F78: 137135119.00 | G78: USD | H78: 25 | I78: AZ Getaway Rentals Bookings | J78: hello@azsuperhost.com | K78: United States | L78: Alexandria Bertolino | M78: alexgeisz31@gmail.com | N78: United States | O78: Oak Scottsdale · BOHO Scottsdale Oasis|Spring Training|Pool|Hottub | P78: 8324 East Oak Street | Q78: 2023-04-06 | R78: 2023-04-09
A79: VP-52085 | B79: Fee | C79: Paid | D79: 2023-04-02 | E79: 2023-04-02 | F79: 137137423.00 | G79: USD | H79: 7.5 | I79: AZ Getaway Rentals Bookings | J79: hello@azsuperhost.com | K79: United States | L79: Steven Handy | M79: stevenchandy@gmail.com | N79: United States | O79: Hayward · Glendale Getaway | Pool | Spring Training | P79: 10819 Hayward Avenue | Q79: 2023-04-03 | R79: 2023-04-07
A80: VP-52086 | B80: Deposit | C80: Paid | D80: 2023-04-02 | E80: 2023-04-02 | F80: 137137561.00 | G80: USD | H80: 200 | I80: AZ Getaway Rentals Bookings | J80: hello@azsuperhost.com | K80: United States | L80: Steven Handy | M80: stevenchandy@gmail.com | N80: United States | O80: Hayward · Glendale Getaway | Pool | Spring Training | P80: 10819 Hayward Avenue | Q80: 2023-04-03 | R80: 2023-04-07
A81: VP-51978 | B81: Waiver | C81: Paid | D81: 2023-04-02 | E81: 2023-04-02 | F81: 137119371.00 | G81: USD | H81: 35 | I81: Banner Living Bookings | J81: contact@helloholt.com | L81: Briseida Rojas Huerta | M81: briseida31@hotmail.com | N81: Mexico | O81: NOR2 | P81: Tercera Privada de la Cañada | Q81: 2023-04-06T20:00:00 | R81: 2023-04-08T16:00:00
A82: VP-51888 | B82: Waiver | C82: Paid | D82: 2023-04-02 | E82: 2023-04-02 | F82: 137099855.00 | G82: CAD | H82: 25 | I82: Bnbeyond Vacations Bookings | J82: ryland@beyondbnb.ca | K82: Canada | L82: Cassidy Erickson | M82: cassidy.erickson98@gmail.com | N82: Canada | O82: The Tiny Hoz! | Quirky Space | Great Location - 9786 Stephenson Rd. | P82: 9786 Stephenson Road | Q82: 2023-04-08 | R82: 2023-04-10
A83: VP-51974 | B83: Waiver | C83: Paid | D83: 2023-04-02 | E83: 2023-04-02 | F83: 137118661.00 | G83: CAD | H83: 25 | I83: Bnbeyond Vacations Bookings | J83: ryland@beyondbnb.ca | K83: Canada | L83: Greg Tulloch | M83: gtulloch11@gmail.com | N83: Canada | O83: Ground Floor King Suite | Lake Windermere Pointe - LWP 2108 | P83: 205 3rd Avenue | Q83: 2023-04-03 | R83: 2023-04-04
A84: VP-52023 | B84: Waiver | C84: Paid | D84: 2023-04-02 | E84: 2023-04-02 | F84: 137124849.00 | G84: CAD | H84: 50 | I84: Bnbeyond Vacations Bookings | J84: ryland@beyondbnb.ca | K84: Canada | L84: Veronique Giry | M84: giry.veronique@gmail.com | N84: Canada | O84: Unbelievable 2 bedroom unit at Snow Creek Lodge - Snow 121 | P84: 5258 Highline Drive | Q84: 2023-04-06 | R84: 2023-04-09
A85: VP-52072 | B85: Fee | C85: Paid | D85: 2023-04-02 | E85: 2023-04-02 | F85: 137134939.00 | G85: CAD | H85: 15 | I85: Bnbeyond Vacations Bookings | J85: ryland@beyondbnb.ca | K85: Canada | L85: Dale Schwartz | M85: dale.schwartz@gmail.com | N85: Canada | O85: Springs Condo | Hot tub | Fireplace | Ski in-out - Springs 108 | P85: 121 Summit Drive | Q85: 2023-04-06 | R85: 2023-04-07
A86: VP-52073 | B86: Deposit | C86: Paid | D86: 2023-04-02 | E86: 2023-04-02 | F86: 137135023.00 | G86: CAD | H86: 500 | I86: Bnbeyond Vacations Bookings | J86: ryland@beyondbnb.ca | K86: Canada | L86: Dale Schwartz | M86: dale.schwartz@gmail.com | N86: Canada | O86: Springs Condo | Hot tub | Fireplace | Ski in-out - Springs 108 | P86: 121 Summit Drive | Q86: 2023-04-06 | R86: 2023-04-07
A87: VP-52082 | B87: Fee | C87: Paid | D87: 2023-04-02 | E87: 2023-04-02 | F87: 137136887.00 | G87: CAD | H87: 15 | I87: Bnbeyond Vacations Bookings | J87: ryland@beyondbnb.ca | K87: Canada | L87: Kevin Gilbert | M87: kevingil@telusplanet.net | N87: Canada | O87: Mtn Views | Fire-pit | Sled Parking | Pool Table - Pine Cone Cabin | P87: 7496 Pine Cone Lane | Q87: 2023-04-28 | R87: 2023-05-01
A88: VP-51875 | B88: Waiver | C88: Paid | D88: 2023-04-02 | E88: 2023-04-02 | F88: 137036795.00 | G88: USD | H88: 35 | I88: Cozy in KC Bookings | J88: admin@cozyinkc.com | K88: United States | L88: Jean Ndegwa | M88: ndegwajean@gmail.com | N88: United States | O88: Prohibition | P88: 117 W Armour Blvd | Q88: 2023-04-06 | R88: 2023-04-11
A89: VP-51882 | B89: Waiver | C89: Paid | D89: 2023-04-02 | E89: 2023-04-02 | F89: 137057645.00 | G89: USD | H89: 35 | I89: Cozy in KC Bookings | J89: admin@cozyinkc.com | K89: United States | L89: Emily Miller | M89: emilycolenemiller@gmail.com | N89: United States | O89: Coach House | P89: 200 E 51st St | Q89: 2023-04-13 | R89: 2023-04-16
A90: VP-51933 | B90: Waiver | C90: Paid | D90: 2023-04-02 | E90: 2023-04-02 | F90: 137109139.00 | G90: GBP | H90: 35 | I90: DYZYN Living Bookings | J90: STAYS@dyzyn.co.uk | K90: United Kingdom | L90: Tyler Ross | M90: tross8713@gmail.com | N90: United Kingdom | O90: 2 A Wedmore Road - CF11 6SH | P90: 2 Wedmore Road | Q90: 2023-04-05 | R90: 2023-04-09
A91: VP-52066 | B91: Waiver | C91: Paid | D91: 2023-04-02 | E91: 2023-04-02 | F91: 137132849.00 | G91: GBP | H91: 35 | I91: DYZYN Living Bookings | J91: STAYS@dyzyn.co.uk | K91: United Kingdom | L91: Akhila Underhill | M91: akhilamari51@gmail.com | N91: United Kingdom | O91: 17 Kings Building, 46 Princess Way, Swansea SA1 5H | P91: 46 Princess | Q91: 2023-04-07 | R91: 2023-04-09
A92: VP-51922 | B92: Waiver | C92: Paid | D92: 2023-04-02 | E92: 2023-04-02 | F92: 137106033.00 | G92: EUR | H92: 35 | I92: GM Stays LTD | J92: info@gmstays.co.uk | K92: United Kingdom | L92: Meike Crebolder | M92: crebolder@planet.nl | N92: Netherlands | O92: Pearl of Greenwich | P92: Flat 2, Coltman House, Welland Street | Q92: 2023-04-07 | R92: 2023-04-10
A93: VP-32214 | B93: Deposit | C93: Paid | D93: 2023-04-02 | E93: 2023-04-02 | F93: 137026641.00 | G93: USD | H93: 500 | I93: Home to Host Ltd | J93: guest@hometohost.co.uk | K93: United Kingdom | L93: Aryeh laib Greenspoon | M93: laibg@lspoon.com | N93: United States | O93: Mansion in the Mountains - Luxury, Peace & Family | P93: 62 Montebello Road | Q93: 2023-04-16 | R93: 2023-04-20
A94: VP-51872 | B94: Waiver | C94: Paid | D94: 2023-04-02 | E94: 2023-04-02 | F94: 137027833.00 | G94: GBP | H94: 35 | I94: Home to Host Ltd | J94: guest@hometohost.co.uk | K94: United Kingdom | L94: Kevin Tan | M94: kevintantingfeng@gmail.com | N94: Singapore | O94: Fresh Pad: Convenient Studio- Minutes from Shops | P94: 79 Thicket Road | Q94: 2023-04-05 | R94: 2023-04-08
A95: VP-51874 | B95: Waiver | C95: Paid | D95: 2023-04-02 | E95: 2023-04-02 | F95: 137034621.00 | G95: USD | H95: 35 | I95: Home to Host Ltd | J95: guest@hometohost.co.uk | K95: United Kingdom | L95: Dianelis Suarez | M95: sdianelis@gmail.com | N95: United States | O95: Modern Studio in Excellent Location | P95: 25 High Road | Q95: 2023-04-20 | R95: 2023-04-25
A96: VP-51934 | B96: Waiver | C96: Paid | D96: 2023-04-02 | E96: 2023-04-02 | F96: 137109157.00 | G96: EUR | H96: 35 | I96: Home to Host Ltd | J96: guest@hometohost.co.uk | K96: United Kingdom | L96: Małgorzata Kulczyńska | M96: malgorzatakulczynska@gmail.com | N96: Poland | O96: Modern | 2BR | 2 BATH | Near shop's & cafes | P96: 338 Kilburn High Road | Q96: 2023-04-20 | R96: 2023-04-25
A97: VP-51937 | B97: Waiver | C97: Paid | D97: 2023-04-02 | E97: 2023-04-02 | F97: 137109431.00 | G97: EUR | H97: 35 | I97: Home to Host Ltd | J97: guest@hometohost.co.uk | K97: United Kingdom | L97: Tommy Andersson | M97: tommyane65@gmail.com | N97: Sweden | O97: Earthy Elegance: Nature Inspired Flat in Prime Location | P97: 26 Hessel Street | Q97: 2023-04-05 | R97: 2023-04-09
A98: VP-51944 | B98: Waiver | C98: Paid | D98: 2023-04-02 | E98: 2023-04-02 | F98: 137112387.00 | G98: EUR | H98: 35 | I98: Home to Host Ltd | J98: guest@hometohost.co.uk | K98: United Kingdom | L98: Niamh Kelly | M98: niamh.m.kelly@gmail.com | N98: Ireland | O98: Fresh and Modern Flat - Sleeps 5 | P98: 104 Lion Road | Q98: 2023-04-04 | R98: 2023-04-08
A99: VP-51962 | B99: Waiver | C99: Paid | D99: 2023-04-02 | E99: 2023-04-02 | F99: 137116735.00 | G99: GBP | H99: 35 | I99: Home to Host Ltd | J99: guest@hometohost.co.uk | K99: United Kingdom | L99: Blessing Ekwesi | M99: chy4247@yahoo.com | N99: United Kingdom | O99: Lovely Two Bedroom with Ensuite Bathrooms | P99: 22 Elder Avenue | Q99: 2023-04-04 | R99: 2023-04-06
A100: VP-51999 | B100: Waiver | C100: Paid | D100: 2023-04-02 | E100: 2023-04-02 | F100: 137122273.00 | G100: USD | H100: 35 | I100: Home to Host Ltd | J100: guest@hometohost.co.uk | K100: United Kingdom | L100: Roy Maendel | M100: roymaendel@ccimail.com | N100: United States | O100: Spectacular House in the Woods Hot Tub & Pool! | P100: 50 Horton Road | Q100: 2023-04-05 | R100: 2023-04-08
A101: VP-52010 | B101: Waiver | C101: Paid | D101: 2023-04-02 | E101: 2023-04-02 | F101: 137122875.00 | G101: EUR | H101: 35 | I101: Home to Host Ltd | J101: guest@hometohost.co.uk | K101: United Kingdom | L101: Annemarie Meier | M101: meier_anne@yahoo.de | N101: Switzerland | O101: Bright & Cozy 4 BR House | P101: 118 Geldeston Road | Q101: 2023-04-06 | R101: 2023-04-11
A102: VP-52012 | B102: Waiver | C102: Paid | D102: 2023-04-02 | E102: 2023-04-02 | F102: 137123151.00 | G102: GBP | H102: 35 | I102: Home to Host Ltd | J102: guest@hometohost.co.uk | K102: United Kingdom | L102: Sudeep Palepu | M102: sudeeppalepu4@gmail.com | N102: United Kingdom | O102: Modern Apartment - Hassle Free - Easy Transport! | P102: 4 Park Lane | Q102: 2023-04-05 | R102: 2023-04-12
A103: VP-52013 | B103: Fee | C103: Paid | D103: 2023-04-02 | E103: 2023-04-02 | F103: 137123301.00 | G103: GBP | H103: 10 | I103: Home to Host Ltd | J103: guest@hometohost.co.uk | K103: United Kingdom | L103: Batsalelwang Tlasi | M103: batstalsi@gmail.com | N103: Botswana | O103: Gorgeous Home VERY Close to the Fast Tube! | P103: 517 Seven Sisters Road | Q103: 2023-04-04 | R103: 2023-04-08
A104: VP-52014 | B104: Deposit | C104: Paid | D104: 2023-04-02 | E104: 2023-04-02 | F104: 137123339.00 | G104: GBP | H104: 500 | I104: Home to Host Ltd | J104: guest@hometohost.co.uk | K104: United Kingdom | L104: Batsalelwang Tlasi | M104: batstalsi@gmail.com | N104: Botswana | O104: Gorgeous Home VERY Close to the Fast Tube! | P104: 517 Seven Sisters Road | Q104: 2023-04-04 | R104: 2023-04-08
A105: VP-52016 | B105: Waiver | C105: Paid | D105: 2023-04-02 | E105: 2023-04-02 | F105: 137124165.00 | G105: EUR | H105: 35 | I105: Home to Host Ltd | J105: guest@hometohost.co.uk | K105: United Kingdom | L105: Anabelle Bourdeilh | M105: belana@neuf.fr | N105: France | O105: Welcoming 2 Bedroom Apartment in Greater London | P105: 37 Shrubbery Road | Q105: 2023-04-25 | R105: 2023-04-30
A106: VP-52020 | B106: Fee | C106: Paid | D106: 2023-04-02 | E106: 2023-04-02 | F106: 137124529.00 | G106: USD | H106: 15 | I106: Home to Host Ltd | J106: guest@hometohost.co.uk | K106: United Kingdom | L106: Huong Nguyen | M106: huongminhnguyen@gmail.com | N106: United States | O106: Huge Home by Station / Gym & Garden | P106: 87 Gunton Road | Q106: 2023-07-01 | R106: 2023-07-08
A107: VP-52030 | B107: Waiver | C107: Paid | D107: 2023-04-02 | E107: 2023-04-02 | F107: 137125247.00 | G107: GBP | H107: 35 | I107: Home to Host Ltd | J107: guest@hometohost.co.uk | K107: United Kingdom | L107: Michelle Grieve | M107: shelgrieve89@gmail.com | N107: United Kingdom | O107: Comtemporary 2 Bedroom Flat in Excellent Location! | P107: 122 Wembley Park Drive | Q107: 2023-04-04 | R107: 2023-04-07
A108: VP-52031 | B108: Waiver | C108: Paid | D108: 2023-04-02 | E108: 2023-04-02 | F108: 137125387.00 | G108: USD | H108: 35 | I108: Home to Host Ltd | J108: guest@hometohost.co.uk | K108: United Kingdom | L108: Shannon McCubbin | M108: smccubby@gmail.com | N108: United States | O108: Gorgeous, Cosy Flat | Unbeatable Transport Links! | P108: 29 Queenstown Road | Q108: 2023-05-01 | R108: 2023-05-07
A109: VP-52037 | B109: Waiver | C109: Paid | D109: 2023-04-02 | E109: 2023-04-02 | F109: 137127449.00 | G109: EUR | H109: 35 | I109: Home to Host Ltd | J109: guest@hometohost.co.uk | K109: United Kingdom | L109: Maximilian Proll | M109: m.proll@icloud.com | N109: Austria | O109: Tiny Studio in Very Central Location | P109: 32-34 Swinton Street | Q109: 2023-04-10 | R109: 2023-04-13
A110: VP-52044 | B110: Waiver | C110: Paid | D110: 2023-04-02 | E110: 2023-04-02 | F110: 137128413.00 | G110: EUR | H110: 35 | I110: Home to Host Ltd | J110: guest@hometohost.co.uk | K110: United Kingdom | L110: Eric Stopperka | M110: e.stopperka@hotmail.com | N110: Germany | O110: Fresh, Lovely, Modern Flat in Excellent Location | P110: 50 Elmcroft Crescent | Q110: 2023-04-07 | R110: 2023-04-11
A111: VP-52057 | B111: Waiver | C111: Paid | D111: 2023-04-02 | E111: 2023-04-02 | F111: 137131701.00 | G111: GBP | H111: 35 | I111: Home to Host Ltd | J111: guest@hometohost.co.uk | K111: United Kingdom | L111: Jonathon Lyon | M111: jonnylyon27@gmail.com | N111: United Kingdom | O111: Fabulous One Bedroom Flat with Private Garden | P111: 22 Elder Avenue | Q111: 2023-04-03 | R111: 2023-04-06
A112: VP-36598 | B112: Deposit | C112: Paid | D112: 2023-04-02 | E112: 2023-04-02 | F112: 137119083.00 | G112: EUR | H112: 250 | I112: Host & Stay North Yorkshire | J112: info@hostandstay.co.uk | K112: United Kingdom | L112: Madlen Gross | M112: madlen74@gmx.de | N112: Germany | O112: The Signal House | P112: Waterstead Lane 5 | Q112: 2023-04-16T15:00:00 | R112: 2023-04-22T09:00:00
A113: VP-51725 | B113: Deposit | C113: Paid | D113: 2023-04-02 | E113: 2023-04-02 | F113: 137119087.00 | G113: GBP | H113: 250 | I113: Host & Stay North Yorkshire | J113: info@hostandstay.co.uk | K113: United Kingdom | L113: Carol Blackman | M113: casblackman@yahoo.com | N113: United Kingdom | O113: Razorbill Cottage | P113: Bempton Lane | Q113: 2023-04-16T15:00:00 | R113: 2023-04-20T09:00:00
A114: VP-51824 | B114: Deposit | C114: Paid | D114: 2023-04-02 | E114: 2023-04-02 | F114: 137119089.00 | G114: GBP | H114: 250 | I114: Host & Stay North Yorkshire | J114: info@hostandstay.co.uk | K114: United Kingdom | L114: Catherine Mclean | M114: mcleancatherine2@gmail.com | N114: United Kingdom | O114: The Byre | P114: Grinkle Lane | Q114: 2023-04-16T15:00:00 | R114: 2023-04-18T09:00:00
A115: VP-51895 | B115: Waiver | C115: Paid | D115: 2023-04-02 | E115: 2023-04-02 | F115: 137100509.00 | G115: GBP | H115: 25 | I115: Host & Stay North Yorkshire | J115: info@hostandstay.co.uk | K115: United Kingdom | L115: Katherine Jakubowski | M115: ktswrrll@gmail.com | N115: United Kingdom | O115: Retreat By The Sea | P115: 191 High Street | Q115: 2023-04-11T15:00:00 | R115: 2023-04-13T09:00:00
A116: VP-51896 | B116: Fee | C116: Paid | D116: 2023-04-02 | E116: 2023-04-02 | F116: 137100789.00 | G116: GBP | H116: 10 | I116: Host & Stay North Yorkshire | J116: info@hostandstay.co.uk | K116: United Kingdom | L116: Amy Peral | M116: mrsamyperal@gmail.com | N116: United Kingdom | O116: Chapel Row | P116: Ruby Street 1 | Q116: 2023-04-11T15:00:00 | R116: 2023-04-13T09:00:00
A117: VP-51897 | B117: Deposit | C117: Paid | D117: 2023-04-02 | E117: 2023-04-02 | F117: 137100819.00 | G117: GBP | H117: 250 | I117: Host & Stay North Yorkshire | J117: info@hostandstay.co.uk | K117: United Kingdom | L117: Amy Peral | M117: mrsamyperal@gmail.com | N117: United Kingdom | O117: Chapel Row | P117: Ruby Street 1 | Q117: 2023-04-11T15:00:00 | R117: 2023-04-13T09:00:00
A118: VP-51898 | B118: Waiver | C118: Paid | D118: 2023-04-02 | E118: 2023-04-02 | F118: 137100961.00 | G118: GBP | H118: 25 | I118: Host & Stay North Yorkshire | J118: info@hostandstay.co.uk | K118: United Kingdom | L118: Stuart Atkinson | M118: stuartatkinson39@yahoo.com | N118: United Kingdom | O118: Modern Industrial | P118: Golden Lion Bank 2 | Q118: 2023-04-03T15:00:00 | R118: 2023-04-07T09:00:00
A119: VP-51900 | B119: Waiver | C119: Paid | D119: 2023-04-02 | E119: 2023-04-02 | F119: 137101085.00 | G119: USD | H119: 30 | I119: Host & Stay North Yorkshire | J119: info@hostandstay.co.uk | K119: United Kingdom | L119: Bente Ulvestad | M119: bentebali@gmail.com | N119: United States | O119: Apartment 1, Loftus | P119: 29 Zetland Road | Q119: 2023-04-21T15:00:00 | R119: 2023-04-30T09:00:00
A120: VP-51901 | B120: Waiver | C120: Paid | D120: 2023-04-02 | E120: 2023-04-02 | F120: 137101265.00 | G120: GBP | H120: 25 | I120: Host & Stay North Yorkshire | J120: info@hostandstay.co.uk | K120: United Kingdom | L120: Andrew Moore | M120: moores@live.co.uk | N120: United Kingdom | O120: The Old Workhouse | P120: Wagon Way Road | Q120: 2023-04-25T15:00:00 | R120: 2023-04-28T09:00:00
A121: VP-51905 | B121: Waiver | C121: Paid | D121: 2023-04-02 | E121: 2023-04-02 | F121: 137101925.00 | G121: GBP | H121: 25 | I121: Host & Stay North Yorkshire | J121: info@hostandstay.co.uk | K121: United Kingdom | L121: Martin Eden | M121: martineden69@hotmail.com | N121: United Kingdom | O121: Anya's Lookout | P121: Alma Square 10 | Q121: 2023-04-11T15:00:00 | R121: 2023-04-14T09:00:00
A122: VP-51906 | B122: Waiver | C122: Paid | D122: 2023-04-02 | E122: 2023-04-02 | F122: 137102295.00 | G122: GBP | H122: 25 | I122: Host & Stay North Yorkshire | J122: info@hostandstay.co.uk | K122: United Kingdom | L122: Allyson Wallberg | M122: allynscotty@gmail.com | N122: United Kingdom | O122: Doray House | P122: High Newton | Q122: 2023-04-09T15:00:00 | R122: 2023-04-11T09:00:00
A123: VP-51907 | B123: Fee | C123: Paid | D123: 2023-04-02 | E123: 2023-04-02 | F123: 137102531.00 | G123: GBP | H123: 10 | I123: Host & Stay North Yorkshire | J123: info@hostandstay.co.uk | K123: United Kingdom | L123: Elaine Rey | M123: erey_18@hotmail.com | N123: United Kingdom | O123: Harbour View House | P123: The Ropery | Q123: 2023-04-03T15:00:00 | R123: 2023-04-07T09:00:00
A124: VP-51908 | B124: Deposit | C124: Paid | D124: 2023-04-02 | E124: 2023-04-02 | F124: 137102633.00 | G124: GBP | H124: 250 | I124: Host & Stay North Yorkshire | J124: info@hostandstay.co.uk | K124: United Kingdom | L124: Elaine Rey | M124: erey_18@hotmail.com | N124: United Kingdom | O124: Harbour View House | P124: The Ropery | Q124: 2023-04-03T15:00:00 | R124: 2023-04-07T09:00:00
A125: VP-51909 | B125: Waiver | C125: Paid | D125: 2023-04-02 | E125: 2023-04-02 | F125: 137102823.00 | G125: GBP | H125: 25 | I125: Host & Stay North Yorkshire | J125: info@hostandstay.co.uk | K125: United Kingdom | L125: David Mcminn | M125: davidmcminn@me.com | N125: United Kingdom | O125: Driftwood | P125: Bridge House Court | Q125: 2023-04-02T15:00:00 | R125: 2023-04-07T09:00:00
A126: VP-51910 | B126: Waiver | C126: Paid | D126: 2023-04-02 | E126: 2023-04-02 | F126: 137102829.00 | G126: GBP | H126: 25 | I126: Host & Stay North Yorkshire | J126: info@hostandstay.co.uk | K126: United Kingdom | L126: Tracey Slee | M126: traceyslee12@gmail.com | N126: United Kingdom | O126: The Waves | P126: Crescent Terrace 2 | Q126: 2023-04-21T15:00:00 | R126: 2023-04-23T09:00:00
A127: VP-51911 | B127: Waiver | C127: Paid | D127: 2023-04-02 | E127: 2023-04-02 | F127: 137103073.00 | G127: EUR | H127: 30 | I127: Host & Stay North Yorkshire | J127: info@hostandstay.co.uk | K127: United Kingdom | L127: Virginie Ranaivoson | M127: vranaivoson@icloud.com | N127: Luxembourg | O127: Sand Dancers Stay | P127: Baring Street 69 | Q127: 2023-04-07T15:00:00 | R127: 2023-04-09T09:00:00
A128: VP-51914 | B128: Waiver | C128: Paid | D128: 2023-04-02 | E128: 2023-04-02 | F128: 137103507.00 | G128: GBP | H128: 25 | I128: Host & Stay North Yorkshire | J128: info@hostandstay.co.uk | K128: United Kingdom | L128: Rebecca Blissett | M128: rebecca.blissett@hotmail.co.uk | N128: United Kingdom | O128: Robins Den | P128: High Stakesby Road | Q128: 2023-04-07T15:00:00 | R128: 2023-04-10T09:00:00
A129: VP-51917 | B129: Waiver | C129: Paid | D129: 2023-04-02 | E129: 2023-04-02 | F129: 137105313.00 | G129: GBP | H129: 25 | I129: Host & Stay North Yorkshire | J129: info@hostandstay.co.uk | K129: United Kingdom | L129: Kevin Gallagher | M129: ktgallagher11@gmail.com | N129: United Kingdom | O129: Great Habton Cottage | P129: Blacksmiths Row 5 | Q129: 2023-04-03T15:00:00 | R129: 2023-04-06T09:00:00
A130: VP-51918 | B130: Fee | C130: Paid | D130: 2023-04-02 | E130: 2023-04-02 | F130: 137105473.00 | G130: GBP | H130: 10 | I130: Host & Stay North Yorkshire | J130: info@hostandstay.co.uk | K130: United Kingdom | L130: Christopher Edwards | M130: chrisgtx999@yahoo.co.uk | N130: United Kingdom | O130: Pier View | P130: Amber Street 32 | Q130: 2023-04-05T15:00:00 | R130: 2023-04-07T09:00:00
A131: VP-51919 | B131: Deposit | C131: Paid | D131: 2023-04-02 | E131: 2023-04-02 | F131: 137105491.00 | G131: GBP | H131: 250 | I131: Host & Stay North Yorkshire | J131: info@hostandstay.co.uk | K131: United Kingdom | L131: Christopher Edwards | M131: chrisgtx999@yahoo.co.uk | N131: United Kingdom | O131: Pier View | P131: Amber Street 32 | Q131: 2023-04-05T15:00:00 | R131: 2023-04-07T09:00:00
A132: VP-51923 | B132: Waiver | C132: Paid | D132: 2023-04-02 | E132: 2023-04-02 | F132: 137106087.00 | G132: GBP | H132: 25 | I132: Host & Stay North Yorkshire | J132: info@hostandstay.co.uk | K132: United Kingdom | L132: Steven Clough | M132: steveclough3354@gmail.com | N132: United Kingdom | O132: Salt & Seaweed | P132: 14 The Pines, Hinderwell Ln | Q132: 2023-04-11T15:00:00 | R132: 2023-04-18T09:00:00
A133: VP-51928 | B133: Waiver | C133: Paid | D133: 2023-04-02 | E133: 2023-04-02 | F133: 137107801.00 | G133: GBP | H133: 25 | I133: Host & Stay North Yorkshire | J133: info@hostandstay.co.uk | K133: United Kingdom | L133: Victoria Whincup | M133: v.whincup@googlemail.com | N133: United Kingdom | O133: Cosy Coastal | P133: Golden Lion Bank 2 | Q133: 2023-04-11T15:00:00 | R133: 2023-04-13T09:00:00
A134: VP-51929 | B134: Waiver | C134: Paid | D134: 2023-04-02 | E134: 2023-04-02 | F134: 137107925.00 | G134: GBP | H134: 25 | I134: Host & Stay North Yorkshire | J134: info@hostandstay.co.uk | K134: United Kingdom | L134: Michael Elliott | M134: michael_858@hotmail.co.uk | N134: United Kingdom | O134: Lobster Pot | P134: Baxtergate 8 | Q134: 2023-04-28T15:00:00 | R134: 2023-04-30T09:00:00
A135: VP-51932 | B135: Waiver | C135: Paid | D135: 2023-04-02 | E135: 2023-04-02 | F135: 137109091.00 | G135: GBP | H135: 25 | I135: Host & Stay North Yorkshire | J135: info@hostandstay.co.uk | K135: United Kingdom | L135: Laura Morris | M135: laurabentham.design@gmail.com | N135: United Kingdom | O135: Cropton Cottage | P135: 23B High Street | Q135: 2023-04-09T15:00:00 | R135: 2023-04-10T09:00:00
A136: VP-51935 | B136: Waiver | C136: Paid | D136: 2023-04-02 | E136: 2023-04-02 | F136: 137109279.00 | G136: GBP | H136: 25 | I136: Host & Stay North Yorkshire | J136: info@hostandstay.co.uk | K136: United Kingdom | L136: Janette Dickson | M136: n5jgd@hotmail.com | N136: United Kingdom | O136: St Johns Mews | P136: Garden Street | Q136: 2023-04-29T15:00:00 | R136: 2023-05-01T09:00:00
A137: VP-51936 | B137: Waiver | C137: Paid | D137: 2023-04-02 | E137: 2023-04-02 | F137: 137109349.00 | G137: GBP | H137: 25 | I137: Host & Stay North Yorkshire | J137: info@hostandstay.co.uk | K137: United Kingdom | L137: Charlotte Slater | M137: c.janebarratt@hotmail.co.uk | N137: United Kingdom | O137: The Salt Nook | P137: 17 Abbey Terrace | Q137: 2023-04-05T15:00:00 | R137: 2023-04-07T09:00:00
A138: VP-51938 | B138: Waiver | C138: Paid | D138: 2023-04-02 | E138: 2023-04-02 | F138: 137109783.00 | G138: GBP | H138: 25 | I138: Host & Stay North Yorkshire | J138: info@hostandstay.co.uk | K138: United Kingdom | L138: Hayley Begner | M138: hay_beg@hotmail.com | N138: United Kingdom | O138: Zetland Apt | P138: The Zetland Buildings, Marine Parade | Q138: 2023-04-04T15:00:00 | R138: 2023-04-06T09:00:00
A139: VP-51940 | B139: Waiver | C139: Paid | D139: 2023-04-02 | E139: 2023-04-02 | F139: 137110265.00 | G139: GBP | H139: 25 | I139: Host & Stay North Yorkshire | J139: info@hostandstay.co.uk | K139: United Kingdom | L139: Kelli Carpenter | M139: milliepeed-kate@hotmail.com | N139: United Kingdom | O139: Threadneedle Cottage | P139: New Quay Road | Q139: 2023-04-11T15:00:00 | R139: 2023-04-13T09:00:00
A140: VP-51941 | B140: Waiver | C140: Paid | D140: 2023-04-02 | E140: 2023-04-02 | F140: 137110589.00 | G140: GBP | H140: 25 | I140: Host & Stay North Yorkshire | J140: info@hostandstay.co.uk | K140: United Kingdom | L140: Jane Holmes | M140: janerebh@gmail.com | N140: United Kingdom | O140: Buckingham Square | P140: 1 Buckingham Square | Q140: 2023-04-11T15:00:00 | R140: 2023-04-14T09:00:00
A141: VP-51947 | B141: Waiver | C141: Paid | D141: 2023-04-02 | E141: 2023-04-02 | F141: 137113643.00 | G141: GBP | H141: 25 | I141: Host & Stay North Yorkshire | J141: info@hostandstay.co.uk | K141: United Kingdom | L141: Laura McLarty | M141: researchisme@gmail.com | N141: United Kingdom | O141: Beach View | P141: Crescent Terrace 2 | Q141: 2023-04-05T15:00:00 | R141: 2023-04-07T09:00:00
A142: VP-51949 | B142: Waiver | C142: Paid | D142: 2023-04-02 | E142: 2023-04-02 | F142: 137113799.00 | G142: GBP | H142: 25 | I142: Host & Stay North Yorkshire | J142: info@hostandstay.co.uk | K142: United Kingdom | L142: Caroline Russon | M142: carolinerusson@hotmail.co.uk | N142: United Kingdom | O142: Soda Cottage | P142: Spital Bridge | Q142: 2023-04-10T15:00:00 | R142: 2023-04-14T09:00:00
A143: VP-51950 | B143: Waiver | C143: Paid | D143: 2023-04-02 | E143: 2023-04-02 | F143: 137113863.00 | G143: GBP | H143: 25 | I143: Host & Stay North Yorkshire | J143: info@hostandstay.co.uk | K143: United Kingdom | L143: Italy Sistine Hodgson | M143: italysistinee@gmail.com | N143: United Kingdom | O143: Tally House | P143: 17 Church Row | Q143: 2023-04-02T15:00:00 | R143: 2023-04-04T09:00:00
A144: VP-51951 | B144: Waiver | C144: Paid | D144: 2023-04-02 | E144: 2023-04-02 | F144: 137114277.00 | G144: GBP | H144: 25 | I144: Host & Stay North Yorkshire | J144: info@hostandstay.co.uk | K144: United Kingdom | L144: Kieran Coyle | M144: kieran.coyle@gmail.com | N144: United Kingdom | O144: The Captain's Loft | P144: Broomfield Terrace | Q144: 2023-04-03T15:00:00 | R144: 2023-04-05T09:00:00
A145: VP-51957 | B145: Waiver | C145: Paid | D145: 2023-04-02 | E145: 2023-04-02 | F145: 137115789.00 | G145: GBP | H145: 25 | I145: Host & Stay North Yorkshire | J145: info@hostandstay.co.uk | K145: United Kingdom | L145: David Young | M145: gnasher65@btinternet.com | N145: United Kingdom | O145: No 7 Regent House | P145: Albert Street 13-15 | Q145: 2023-04-06T15:00:00 | R145: 2023-04-08T09:00:00
A146: VP-51958 | B146: Waiver | C146: Paid | D146: 2023-04-02 | E146: 2023-04-02 | F146: 137116461.00 | G146: GBP | H146: 25 | I146: Host & Stay North Yorkshire | J146: info@hostandstay.co.uk | K146: United Kingdom | L146: Veruschka Roodt | M146: veruschkab@hotmail.com | N146: United Kingdom | O146: Apt 6, Royal Sands | P146: North Marine Road 151 | Q146: 2023-04-09T15:00:00 | R146: 2023-04-12T09:00:00
A147: VP-51959 | B147: Waiver | C147: Paid | D147: 2023-04-02 | E147: 2023-04-02 | F147: 137116483.00 | G147: GBP | H147: 25 | I147: Host & Stay North Yorkshire | J147: info@hostandstay.co.uk | K147: United Kingdom | L147: Andrew Masterman | M147: amasty@hotmail.com | N147: United Kingdom | O147: Waterlily Cottage | P147: 19 Bridge Street | Q147: 2023-04-09T15:00:00 | R147: 2023-04-12T09:00:00
A148: VP-51960 | B148: Fee | C148: Paid | D148: 2023-04-02 | E148: 2023-04-02 | F148: 137116547.00 | G148: GBP | H148: 10 | I148: Host & Stay North Yorkshire | J148: info@hostandstay.co.uk | K148: United Kingdom | L148: Aikaterini Arvaniti | M148: katerinarvaniti@gmail.com | N148: United Kingdom | O148: Randolph House | P148: Randolph Street 2 | Q148: 2023-04-10T15:00:00 | R148: 2023-04-12T09:00:00
A149: VP-51961 | B149: Deposit | C149: Paid | D149: 2023-04-02 | E149: 2023-04-02 | F149: 137116701.00 | G149: GBP | H149: 250 | I149: Host & Stay North Yorkshire | J149: info@hostandstay.co.uk | K149: United Kingdom | L149: Aikaterini Arvaniti | M149: katerinarvaniti@gmail.com | N149: United Kingdom | O149: Randolph House | P149: Randolph Street 2 | Q149: 2023-04-10T15:00:00 | R149: 2023-04-12T09:00:00
A150: VP-51964 | B150: Waiver | C150: Paid | D150: 2023-04-02 | E150: 2023-04-02 | F150: 137116883.00 | G150: GBP | H150: 25 | I150: Host & Stay North Yorkshire | J150: info@hostandstay.co.uk | K150: United Kingdom | L150: Lucy Brierley | M150: lucybrierley33@gmail.com | N150: United Kingdom | O150: The Funky Robin | P150: Hudson Street 19 | Q150: 2023-04-10T15:00:00 | R150: 2023-04-13T09:00:00
A151: VP-51966 | B151: Fee | C151: Paid | D151: 2023-04-02 | E151: 2023-04-02 | F151: 137117623.00 | G151: GBP | H151: 10 | I151: Host & Stay North Yorkshire | J151: info@hostandstay.co.uk | K151: United Kingdom | L151: Rachael Parker | M151: rachaelparker20@yahoo.co.uk | N151: United Kingdom | O151: Driftwood | P151: Bridge House Court | Q151: 2023-04-07T15:00:00 | R151: 2023-04-10T09:00:00
A152: VP-51967 | B152: Deposit | C152: Paid | D152: 2023-04-02 | E152: 2023-04-02 | F152: 137117841.00 | G152: GBP | H152: 250 | I152: Host & Stay North Yorkshire | J152: info@hostandstay.co.uk | K152: United Kingdom | L152: Rachael Parker | M152: rachaelparker20@yahoo.co.uk | N152: United Kingdom | O152: Driftwood | P152: Bridge House Court | Q152: 2023-04-07T15:00:00 | R152: 2023-04-10T09:00:00
A153: VP-51968 | B153: Waiver | C153: Paid | D153: 2023-04-02 | E153: 2023-04-02 | F153: 137118083.00 | G153: GBP | H153: 25 | I153: Host & Stay North Yorkshire | J153: info@hostandstay.co.uk | K153: United Kingdom | L153: Kenneth Hutchinson | M153: idmon99@yahoo.com | N153: United Kingdom | O153: Bamburgh 38 | P153: Bamburgh Parade 38 | Q153: 2023-04-16T15:00:00 | R153: 2023-05-13T09:00:00
A154: VP-51970 | B154: Waiver | C154: Paid | D154: 2023-04-02 | E154: 2023-04-02 | F154: 137118195.00 | G154: GBP | H154: 25 | I154: Host & Stay North Yorkshire | J154: info@hostandstay.co.uk | K154: United Kingdom | L154: Paul Briggs | M154: paulbriggs@hotmail.co.uk | N154: United Kingdom | O154: The Cottage, Marske | P154: Cliff Terrace 7 | Q154: 2023-04-05T15:00:00 | R154: 2023-04-09T09:00:00
A155: VP-51971 | B155: Waiver | C155: Paid | D155: 2023-04-02 | E155: 2023-04-02 | F155: 137118189.00 | G155: GBP | H155: 25 | I155: Host & Stay North Yorkshire | J155: info@hostandstay.co.uk | K155: United Kingdom | L155: Hubert Zdebel | M155: hubert.zdebel@gmail.com | N155: United Kingdom | O155: Beach Pad | P155: Argyle Road 1 | Q155: 2023-04-07T15:00:00 | R155: 2023-04-10T09:00:00
A156: VP-51979 | B156: Fee | C156: Paid | D156: 2023-04-02 | E156: 2023-04-02 | F156: 137119639.00 | G156: GBP | H156: 10 | I156: Host & Stay North Yorkshire | J156: info@hostandstay.co.uk | K156: United Kingdom | L156: John Cafferky | M156: caffers1@hotmail.com | N156: United Kingdom | O156: Soda Cottage | P156: Spital Bridge | Q156: 2023-04-04T15:00:00 | R156: 2023-04-07T09:00:00
A157: VP-51980 | B157: Deposit | C157: Paid | D157: 2023-04-02 | E157: 2023-04-02 | F157: 137119701.00 | G157: GBP | H157: 250 | I157: Host & Stay North Yorkshire | J157: info@hostandstay.co.uk | K157: United Kingdom | L157: John Cafferky | M157: caffers1@hotmail.com | N157: United Kingdom | O157: Soda Cottage | P157: Spital Bridge | Q157: 2023-04-04T15:00:00 | R157: 2023-04-07T09:00:00
A158: VP-51983 | B158: Waiver | C158: Paid | D158: 2023-04-02 | E158: 2023-04-02 | F158: 137119903.00 | G158: GBP | H158: 25 | I158: Host & Stay North Yorkshire | J158: info@hostandstay.co.uk | K158: United Kingdom | L158: Robert Heaps | M158: bobheaps@icloud.com | N158: United Kingdom | O158: Maritime | P158: Rutland Terrace 1 | Q158: 2023-04-04T15:00:00 | R158: 2023-04-06T09:00:00
A159: VP-51984 | B159: Fee | C159: Paid | D159: 2023-04-02 | E159: 2023-04-02 | F159: 137120005.00 | G159: GBP | H159: 10 | I159: Host & Stay North Yorkshire | J159: info@hostandstay.co.uk | K159: United Kingdom | L159: James Chatfield | M159: james.chatfield@live.co.uk | N159: United Kingdom | O159: Arches Country House | P159: Low Farm, Ings Lane | Q159: 2023-04-14T15:00:00 | R159: 2023-04-17T09:00:00
A160: VP-51985 | B160: Deposit | C160: Paid | D160: 2023-04-02 | E160: 2023-04-02 | F160: 137120175.00 | G160: GBP | H160: 250 | I160: Host & Stay North Yorkshire | J160: info@hostandstay.co.uk | K160: United Kingdom | L160: James Chatfield | M160: james.chatfield@live.co.uk | N160: United Kingdom | O160: Arches Country House | P160: Low Farm, Ings Lane | Q160: 2023-04-14T15:00:00 | R160: 2023-04-17T09:00:00
A161: VP-51986 | B161: Waiver | C161: Paid | D161: 2023-04-02 | E161: 2023-04-02 | F161: 137120081.00 | G161: GBP | H161: 25 | I161: Host & Stay North Yorkshire | J161: info@hostandstay.co.uk | K161: United Kingdom | L161: Victoria Hutchings | M161: vickyjubb@hotmail.com | N161: United Kingdom | O161: Simba House | P161: Cleveland Street 12 | Q161: 2023-04-10T15:00:00 | R161: 2023-04-14T09:00:00
A162: VP-51990 | B162: Fee | C162: Paid | D162: 2023-04-02 | E162: 2023-04-02 | F162: 137120797.00 | G162: GBP | H162: 10 | I162: Host & Stay North Yorkshire | J162: info@hostandstay.co.uk | K162: United Kingdom | L162: Helen Watson | M162: helengough20@hotmail.com | N162: United Kingdom | O162: Hutton House | P162: Well Close Terrace 15 | Q162: 2023-04-14T15:00:00 | R162: 2023-04-16T09:00:00
A163: VP-51991 | B163: Deposit | C163: Paid | D163: 2023-04-02 | E163: 2023-04-02 | F163: 137121023.00 | G163: GBP | H163: 250 | I163: Host & Stay North Yorkshire | J163: info@hostandstay.co.uk | K163: United Kingdom | L163: Helen Watson | M163: helengough20@hotmail.com | N163: United Kingdom | O163: Hutton House | P163: Well Close Terrace 15 | Q163: 2023-04-14T15:00:00 | R163: 2023-04-16T09:00:00
A164: VP-51992 | B164: Waiver | C164: Paid | D164: 2023-04-02 | E164: 2023-04-02 | F164: 137120871.00 | G164: GBP | H164: 25 | I164: Host & Stay North Yorkshire | J164: info@hostandstay.co.uk | K164: United Kingdom | L164: David Malpass | M164: davidmalpass64@hotmail.com | N164: United Kingdom | O164: The Stable | P164: Filey Road | Q164: 2023-04-10T15:00:00 | R164: 2023-04-16T09:00:00
A165: VP-51996 | B165: Waiver | C165: Paid | D165: 2023-04-02 | E165: 2023-04-02 | F165: 137121859.00 | G165: GBP | H165: 25 | I165: Host & Stay North Yorkshire | J165: info@hostandstay.co.uk | K165: United Kingdom | L165: Franchesca Williamson-Jones | M165: 03whir_code@icloud.com | N165: United Kingdom | O165: West Cliff View | P165: Esplanade 9 | Q165: 2023-04-08T15:00:00 | R165: 2023-04-12T09:00:00
A166: VP-52000 | B166: Waiver | C166: Paid | D166: 2023-04-02 | E166: 2023-04-02 | F166: 137122275.00 | G166: GBP | H166: 25 | I166: Host & Stay North Yorkshire | J166: info@hostandstay.co.uk | K166: United Kingdom | L166: Gillian Green | M166: greengsm@talktalk.net | N166: United Kingdom | O166: Sanders House | P166: Church Street | Q166: 2023-05-07T15:00:00 | R166: 2023-05-09T09:00:00
A167: VP-52003 | B167: Waiver | C167: Paid | D167: 2023-04-02 | E167: 2023-04-02 | F167: 137122411.00 | G167: GBP | H167: 25 | I167: Host & Stay North Yorkshire | J167: info@hostandstay.co.uk | K167: United Kingdom | L167: Rachael Holt | M167: rachaelholt16@hotmail.co.uk | N167: United Kingdom | O167: Iris Cottage | P167: Hungate 25 | Q167: 2023-04-10T15:00:00 | R167: 2023-04-12T09:00:00
A168: VP-52004 | B168: Waiver | C168: Paid | D168: 2023-04-02 | E168: 2023-04-02 | F168: 137122431.00 | G168: GBP | H168: 25 | I168: Host & Stay North Yorkshire | J168: info@hostandstay.co.uk | K168: United Kingdom | L168: Luke Rees | M168: lukeorees@hotmail.com | N168: United Kingdom | O168: North Seaton Road | P168: North Seaton Road 12 | Q168: 2023-04-08T15:00:00 | R168: 2023-04-10T09:00:00
A169: VP-52005 | B169: Waiver | C169: Paid | D169: 2023-04-02 | E169: 2023-04-02 | F169: 137122419.00 | G169: GBP | H169: 25 | I169: Host & Stay North Yorkshire | J169: info@hostandstay.co.uk | K169: United Kingdom | L169: James Fair | M169: russell.fair@yahoo.com | N169: United Kingdom | O169: Rock Pipit | P169: Wellington Terrace 9 | Q169: 2023-04-04T15:00:00 | R169: 2023-04-06T09:00:00
A170: VP-52006 | B170: Waiver | C170: Paid | D170: 2023-04-02 | E170: 2023-04-02 | F170: 137122531.00 | G170: GBP | H170: 25 | I170: Host & Stay North Yorkshire | J170: info@hostandstay.co.uk | K170: United Kingdom | L170: Debi Wilkie | M170: debiwilkie@hotmail.co.uk | N170: United Kingdom | O170: Captain's Deck | P170: Marine Parade 47 | Q170: 2023-04-09T15:00:00 | R170: 2023-04-10T09:00:00
A171: VP-52015 | B171: Waiver | C171: Paid | D171: 2023-04-02 | E171: 2023-04-02 | F171: 137123723.00 | G171: GBP | H171: 25 | I171: Host & Stay North Yorkshire | J171: info@hostandstay.co.uk | K171: United Kingdom | L171: Janet Fielden-Poat | M171: kirklet60@gmail.com | N171: United Kingdom | O171: Craster Waves | P171: Dunstanburgh Road 41 | Q171: 2023-04-14T15:00:00 | R171: 2023-04-17T09:00:00
A172: VP-52018 | B172: Fee | C172: Paid | D172: 2023-04-02 | E172: 2023-04-02 | F172: 137124447.00 | G172: GBP | H172: 10 | I172: Host & Stay North Yorkshire | J172: info@hostandstay.co.uk | K172: United Kingdom | L172: Lucy Kay | M172: lucyvkay@gmail.com | N172: United Kingdom | O172: Apartment B | P172: Cleveland Street 2 | Q172: 2023-04-10T15:00:00 | R172: 2023-04-12T09:00:00
A173: VP-52019 | B173: Deposit | C173: Paid | D173: 2023-04-02 | E173: 2023-04-02 | F173: 137124627.00 | G173: GBP | H173: 250 | I173: Host & Stay North Yorkshire | J173: info@hostandstay.co.uk | K173: United Kingdom | L173: Lucy Kay | M173: lucyvkay@gmail.com | N173: United Kingdom | O173: Apartment B | P173: Cleveland Street 2 | Q173: 2023-04-10T15:00:00 | R173: 2023-04-12T09:00:00
A174: VP-52022 | B174: Waiver | C174: Paid | D174: 2023-04-02 | E174: 2023-04-02 | F174: 137124811.00 | G174: GBP | H174: 25 | I174: Host & Stay North Yorkshire | J174: info@hostandstay.co.uk | K174: United Kingdom | L174: Kirsty Allan-stubbs | M174: kirstyastubbs@hotmail.com | N174: United Kingdom | O174: The Crab | P174: Paradise 6 | Q174: 2023-04-10T15:00:00 | R174: 2023-04-14T09:00:00
A175: VP-52024 | B175: Waiver | C175: Paid | D175: 2023-04-02 | E175: 2023-04-02 | F175: 137124927.00 | G175: GBP | H175: 25 | I175: Host & Stay North Yorkshire | J175: info@hostandstay.co.uk | K175: United Kingdom | L175: Robert Bryson | M175: brysonra70@gmail.com | N175: United Kingdom | O175: Bluebell Cottage | P175: Bradford House Cottages 6 | Q175: 2023-04-12T15:00:00 | R175: 2023-04-16T09:00:00
A176: VP-52028 | B176: Fee | C176: Paid | D176: 2023-04-02 | E176: 2023-04-02 | F176: 137125215.00 | G176: GBP | H176: 10 | I176: Host & Stay North Yorkshire | J176: info@hostandstay.co.uk | K176: United Kingdom | L176: Alastair Richmond | M176: alastair_richmond@me.com | N176: United Kingdom | O176: Pearl Apartment | P176: Pearl Street 23 | Q176: 2023-04-10T15:00:00 | R176: 2023-04-12T09:00:00
A177: VP-52029 | B177: Deposit | C177: Paid | D177: 2023-04-02 | E177: 2023-04-02 | F177: 137125243.00 | G177: GBP | H177: 250 | I177: Host & Stay North Yorkshire | J177: info@hostandstay.co.uk | K177: United Kingdom | L177: Alastair Richmond | M177: alastair_richmond@me.com | N177: United Kingdom | O177: Pearl Apartment | P177: Pearl Street 23 | Q177: 2023-04-10T15:00:00 | R177: 2023-04-12T09:00:00
A178: VP-52032 | B178: Waiver | C178: Paid | D178: 2023-04-02 | E178: 2023-04-02 | F178: 137125721.00 | G178: GBP | H178: 25 | I178: Host & Stay North Yorkshire | J178: info@hostandstay.co.uk | K178: United Kingdom | L178: Holly Foster | M178: hols.foster98@gmail.com | N178: United Kingdom | O178: The Gathering | P178: High Bellridge Farm | Q178: 2023-04-14T15:00:00 | R178: 2023-04-16T09:00:00
A179: VP-52033 | B179: Fee | C179: Paid | D179: 2023-04-02 | E179: 2023-04-02 | F179: 137126127.00 | G179: GBP | H179: 10 | I179: Host & Stay North Yorkshire | J179: info@hostandstay.co.uk | K179: United Kingdom | L179: Greig Dunlop | M179: greig@columbusfm.co.uk | N179: United Kingdom | O179: North Bay Villa | P179: Columbus Ravine 111 | Q179: 2023-04-03T15:00:00 | R179: 2023-04-07T09:00:00
A180: VP-52034 | B180: Deposit | C180: Paid | D180: 2023-04-02 | E180: 2023-04-02 | F180: 137126159.00 | G180: GBP | H180: 250 | I180: Host & Stay North Yorkshire | J180: info@hostandstay.co.uk | K180: United Kingdom | L180: Greig Dunlop | M180: greig@columbusfm.co.uk | N180: United Kingdom | O180: North Bay Villa | P180: Columbus Ravine 111 | Q180: 2023-04-03T15:00:00 | R180: 2023-04-07T09:00:00
A181: VP-52035 | B181: Waiver | C181: Paid | D181: 2023-04-02 | E181: 2023-04-02 | F181: 137126975.00 | G181: GBP | H181: 25 | I181: Host & Stay North Yorkshire | J181: info@hostandstay.co.uk | K181: United Kingdom | L181: Peter Amthor | M181: peter.amthor@gmx.net | N181: United Kingdom | O181: 82F Galgate | P181: Galgate 82 | Q181: 2023-04-10T15:00:00 | R181: 2023-04-12T09:00:00
A182: VP-52042 | B182: Waiver | C182: Paid | D182: 2023-04-02 | E182: 2023-04-02 | F182: 137128179.00 | G182: GBP | H182: 25 | I182: Host & Stay North Yorkshire | J182: info@hostandstay.co.uk | K182: United Kingdom | L182: Julianne Ambrosino | M182: julianne.basu@gmail.com | N182: United Kingdom | O182: Clifton House | P182: Clifton Street 8a | Q182: 2023-06-16T15:00:00 | R182: 2023-06-18T09:00:00
A183: VP-52043 | B183: Waiver | C183: Paid | D183: 2023-04-02 | E183: 2023-04-02 | F183: 137128221.00 | G183: GBP | H183: 25 | I183: Host & Stay North Yorkshire | J183: info@hostandstay.co.uk | K183: United Kingdom | L183: Brian Hull | M183: brian.hull1@btinternet.com | N183: United Kingdom | O183: Mindello Apartment | P183: Argyle Road 11 | Q183: 2023-07-04T14:00:00 | R183: 2023-07-09T09:00:00
A184: VP-52045 | B184: Waiver | C184: Paid | D184: 2023-04-02 | E184: 2023-04-02 | F184: 137128525.00 | G184: GBP | H184: 25 | I184: Host & Stay North Yorkshire | J184: info@hostandstay.co.uk | K184: United Kingdom | L184: Stephanie Yates | M184: steph.yates@btinternet.com | N184: United Kingdom | O184: Apt 5, North Quay | P184: North Terrace | Q184: 2023-04-12T15:00:00 | R184: 2023-04-14T09:00:00
A185: VP-52050 | B185: Waiver | C185: Paid | D185: 2023-04-02 | E185: 2023-04-02 | F185: 137129203.00 | G185: GBP | H185: 25 | I185: Host & Stay North Yorkshire | J185: info@hostandstay.co.uk | K185: United Kingdom | L185: Dominic Squires | M185: dsquireshk@hotmail.com | N185: United Kingdom | O185: The Seaside Escape | P185: Milton Street 25 | Q185: 2023-04-10T15:00:00 | R185: 2023-04-12T09:00:00
A186: VP-52054 | B186: Fee | C186: Paid | D186: 2023-04-02 | E186: 2023-04-02 | F186: 137130967.00 | G186: GBP | H186: 10 | I186: Host & Stay North Yorkshire | J186: info@hostandstay.co.uk | K186: United Kingdom | L186: Stella Crompton | M186: stella.crompton@yahoo.co.uk | N186: United Kingdom | O186: No.3 Rose Cottage | P186: Bradford House Cottages 6 | Q186: 2023-04-11T15:00:00 | R186: 2023-04-14T09:00:00
A187: VP-52055 | B187: Deposit | C187: Paid | D187: 2023-04-02 | E187: 2023-04-02 | F187: 137131097.00 | G187: GBP | H187: 250 | I187: Host & Stay North Yorkshire | J187: info@hostandstay.co.uk | K187: United Kingdom | L187: Stella Crompton | M187: stella.crompton@yahoo.co.uk | N187: United Kingdom | O187: No.3 Rose Cottage | P187: Bradford House Cottages 6 | Q187: 2023-04-11T15:00:00 | R187: 2023-04-14T09:00:00
A188: VP-52056 | B188: Waiver | C188: Paid | D188: 2023-04-02 | E188: 2023-04-02 | F188: 137131297.00 | G188: GBP | H188: 25 | I188: Host & Stay North Yorkshire | J188: info@hostandstay.co.uk | K188: United Kingdom | L188: Gary Shaw | M188: gary4julie@ail.com | N188: United Kingdom | O188: Fox Cottage | P188: 6 Fox Court | Q188: 2023-06-09T15:00:00 | R188: 2023-06-11T09:00:00
A189: VP-52058 | B189: Fee | C189: Paid | D189: 2023-04-02 | E189: 2023-04-02 | F189: 137131745.00 | G189: GBP | H189: 10 | I189: Host & Stay North Yorkshire | J189: info@hostandstay.co.uk | K189: United Kingdom | L189: Changyu Hu | M189: hcy040119@outlook.com | N189: United Kingdom | O189: The Ruby Retreat | P189: Ruby Street 43 | Q189: 2023-04-10T15:00:00 | R189: 2023-04-11T09:00:00
A190: VP-52059 | B190: Deposit | C190: Paid | D190: 2023-04-02 | E190: 2023-04-02 | F190: 137131803.00 | G190: GBP | H190: 250 | I190: Host & Stay North Yorkshire | J190: info@hostandstay.co.uk | K190: United Kingdom | L190: Changyu Hu | M190: hcy040119@outlook.com | N190: United Kingdom | O190: The Ruby Retreat | P190: Ruby Street 43 | Q190: 2023-04-10T15:00:00 | R190: 2023-04-11T09:00:00
A191: VP-52061 | B191: Waiver | C191: Paid | D191: 2023-04-02 | E191: 2023-04-02 | F191: 137131773.00 | G191: GBP | H191: 25 | I191: Host & Stay North Yorkshire | J191: info@hostandstay.co.uk | K191: United Kingdom | L191: Sharon Craik | M191: sharoncraik3176@gmail.com | N191: United Kingdom | O191: Turnstones Apt | P191: Chubb Hill Road | Q191: 2023-04-10T15:00:00 | R191: 2023-04-12T09:00:00
A192: VP-52063 | B192: Waiver | C192: Paid | D192: 2023-04-02 | E192: 2023-04-02 | F192: 137131811.00 | G192: GBP | H192: 25 | I192: Host & Stay North Yorkshire | J192: info@hostandstay.co.uk | K192: United Kingdom | L192: Samantha Lester | M192: sammylester20@gmail.com | N192: United Kingdom | O192: Oxford House | P192: Oxford Street 28 | Q192: 2023-04-14T15:00:00 | R192: 2023-04-16T09:00:00
A193: VP-52065 | B193: Waiver | C193: Paid | D193: 2023-04-02 | E193: 2023-04-02 | F193: 137132203.00 | G193: GBP | H193: 25 | I193: Host & Stay North Yorkshire | J193: info@hostandstay.co.uk | K193: United Kingdom | L193: Darren Wood | M193: darren.wood@sayesltd.com | N193: United Kingdom | O193: Clinker Cottage | P193: Clarkson Street 5 | Q193: 2023-04-21T15:00:00 | R193: 2023-04-23T09:00:00
A194: VP-52068 | B194: Waiver | C194: Paid | D194: 2023-04-02 | E194: 2023-04-02 | F194: 137133767.00 | G194: GBP | H194: 25 | I194: Host & Stay North Yorkshire | J194: info@hostandstay.co.uk | K194: United Kingdom | L194: Nicolax Needham | M194: nwordsworth@hotmail.co.uk | N194: United Kingdom | O194: Princess Place Townh | P194: Princess Place 4 | Q194: 2023-04-10T15:00:00 | R194: 2023-04-12T09:00:00
A195: VP-52069 | B195: Waiver | C195: Paid | D195: 2023-04-02 | E195: 2023-04-02 | F195: 137134059.00 | G195: GBP | H195: 25 | I195: Host & Stay North Yorkshire | J195: info@hostandstay.co.uk | K195: United Kingdom | L195: Kenny Matthews | M195: heathermatthewsnsc@gmail.com | N195: United Kingdom | O195: Bagdale Rise | P195: Bagdale | Q195: 2023-05-12T15:00:00 | R195: 2023-05-14T09:00:00
A196: VP-52070 | B196: Waiver | C196: Paid | D196: 2023-04-02 | E196: 2023-04-02 | F196: 137134159.00 | G196: GBP | H196: 25 | I196: Host & Stay North Yorkshire | J196: info@hostandstay.co.uk | K196: United Kingdom | L196: Sky Tabor-Jackson | M196: skytabor-jack@hotmail.com | N196: United Kingdom | O196: Brook Villa | P196: The Avenue 5 | Q196: 2023-04-14T15:00:00 | R196: 2023-04-16T09:00:00
A197: VP-51952 | B197: Fee | C197: Paid | D197: 2023-04-02 | E197: 2023-04-02 | F197: 137114643.00 | G197: GBP | H197: 10 | I197: Just For You Holiday Homes Bookings | J197: hello@justforyouholidayhomes.co.uk | K197: United Kingdom | L197: Bhavna Mistry | M197: bhavna1uk@yahoo.com | N197: United Kingdom | O197: 7 Medina Rise Family fun for all | P197: 7 Medina Rise, Thorness Holiday Park, Thorness Bay | Q197: 2023-04-07T16:00:00 | R197: 2023-04-12T10:00:00
A198: VP-51953 | B198: Deposit | C198: Paid | D198: 2023-04-02 | E198: 2023-04-02 | F198: 137114863.00 | G198: GBP | H198: 500 | I198: Just For You Holiday Homes Bookings | J198: hello@justforyouholidayhomes.co.uk | K198: United Kingdom | L198: Bhavna Mistry | M198: bhavna1uk@yahoo.com | N198: United Kingdom | O198: 7 Medina Rise Family fun for all | P198: 7 Medina Rise, Thorness Holiday Park, Thorness Bay | Q198: 2023-04-07T16:00:00 | R198: 2023-04-12T10:00:00
A199: VP-51995 | B199: Waiver | C199: Paid | D199: 2023-04-02 | E199: 2023-04-02 | F199: 137121821.00 | G199: GBP | H199: 35 | I199: Just For You Holiday Homes Bookings | J199: hello@justforyouholidayhomes.co.uk | K199: United Kingdom | L199: Patricia Alderson | M199: tricia.alderson@hotmail.com | N199: United Kingdom | O199: Seashells a cosy dog friendly seaside retreat. | P199: The Seashells, 60 Salterns Beach Bungalows, Duver Road, Seaview, PO34 5AJ | Q199: 2023-06-15T16:00:00 | R199: 2023-06-20T10:00:00
A200: VP-51925 | B200: Waiver | C200: Paid | D200: 2023-04-02 | E200: 2023-04-02 | F200: 137107309.00 | G200: GBP | H200: 50 | I200: Just Stay Wales Bookings | J200: reservations@juststaywales.com | K200: United Kingdom | L200: Gareth John | M200: garethjohn8@googlemail.com | N200: United Kingdom | O200: 26 Heatherslade Road | P200: Southgate | Q200: 2023-04-05 | R200: 2023-04-07
... 4299 more rows
